Workbook

Sheet Display
F2: CQG iShares Russell 1000® Growth ETF Performance | AB2: =RTD("cqg.rtd", ,"SystemInfo", "Linetime") -> 45783.60544
B5: Exchange Traded Funds Performance | S5: Top 15 Performing Companies
B6: Symbol | C6: Description | H6: Last | I6: NC | J6: %NC | K6: NC/ATR | L6: Open | M6: High | N6: Low | O6: Volume | Q6: Ratio
B7: IWF | C7: =RTD("cqg.rtd", ,"ContractData",B7, "LongDescription",, "T") -> iShares Russell 1000 Growth ETF | H7: =RTD("cqg.rtd", ,"ContractData",B7, "LastTradeToday",, "T") -> 372.71 | I7: =RTD("cqg.rtd", ,"ContractData",B7, "NetLastTradeToday",, "T") -> -2.01 | J7: =RTD("cqg.rtd", ,"ContractData",B7, "PerCentNetLastTrade",, "T")/100 -> -0.005364005124 | K7: =I7/RTD("cqg.rtd",,"StudyData",B7, "ATR", "MaType=Sim,Period=10", "ATR","D","-1","ALL",,,"FALSE","T")/100 -> -0.002350052613 | L7: =RTD("cqg.rtd", ,"ContractData",B7, "OPen",, "T") -> 370.35 | M7: =RTD("cqg.rtd", ,"ContractData", B7, "HIgh",, "T") -> 374.3 | N7: =RTD("cqg.rtd", ,"ContractData",B7, "LOw",, "T") -> 369.4 | O7: =RTD("cqg.rtd", ,"ContractData",B7, "T_CVol",, "T") -> 815974 | Q7: =IFERROR(O7/RTD("cqg.rtd",,"StudyData",B7, "MA", "InputChoice=Vol,MAType=Sim,Period=21", "MA","D","-1","all",,,,"T"),"") -> 0.3318389518
B8: SPY | C8: =RTD("cqg.rtd", ,"ContractData",B8, "LongDescription",, "T") -> SPDR S&P 500 | H8: =RTD("cqg.rtd", ,"ContractData",B8, "LastTradeToday",, "T") -> 560.88 | I8: =RTD("cqg.rtd", ,"ContractData",B8, "NetLastTradeToday",, "T") -> -2.63 | J8: =RTD("cqg.rtd", ,"ContractData",B8, "PerCentNetLastTrade",, "T")/100 -> -0.004667175383 | K8: =I8/RTD("cqg.rtd",,"StudyData",B8, "ATR", "MaType=Sim,Period=10", "ATR","D","-1","ALL",,,"FALSE","T")/100 -> -0.002375146753 | L8: =RTD("cqg.rtd", ,"ContractData",B8, "OPen",, "T") -> 557.93 | M8: =RTD("cqg.rtd", ,"ContractData", B8, "HIgh",, "T") -> 563.34 | N8: =RTD("cqg.rtd", ,"ContractData",B8, "LOw",, "T") -> 556.96 | O8: =RTD("cqg.rtd", ,"ContractData",B8, "T_CVol",, "T") -> 33353268 | Q8: =IFERROR(O8/RTD("cqg.rtd",,"StudyData",B8, "MA", "InputChoice=Vol,MAType=Sim,Period=21", "MA","D","-1","all",,,,"T"),"") -> 0.3268459167
B9: XLF | C9: =RTD("cqg.rtd", ,"ContractData",B9, "LongDescription",, "T") -> Financial Select Sector SPDR | H9: =RTD("cqg.rtd", ,"ContractData",B9, "LastTradeToday",, "T") -> 49.36 | I9: =RTD("cqg.rtd", ,"ContractData",B9, "NetLastTradeToday",, "T") -> -0.08 | J9: =RTD("cqg.rtd", ,"ContractData",B9, "PerCentNetLastTrade",, "T")/100 -> -0.001618122977 | K9: =I9/RTD("cqg.rtd",,"StudyData",B9, "ATR", "MaType=Sim,Period=10", "ATR","D","-1","ALL",,,"FALSE","T")/100 -> -0.00078125 | L9: =RTD("cqg.rtd", ,"ContractData",B9, "OPen",, "T") -> 49 | M9: =RTD("cqg.rtd", ,"ContractData", B9, "HIgh",, "T") -> 49.55 | N9: =RTD("cqg.rtd", ,"ContractData",B9, "LOw",, "T") -> 48.97 | O9: =RTD("cqg.rtd", ,"ContractData",B9, "T_CVol",, "T") -> 21783005 | Q9: =IFERROR(O9/RTD("cqg.rtd",,"StudyData",B9, "MA", "InputChoice=Vol,MAType=Sim,Period=21", "MA","D","-1","all",,,,"T"),"") -> 0.342653991
B10: S.GDX | C10: =RTD("cqg.rtd", ,"ContractData",B10, "LongDescription",, "T") -> Market Vectors Gold Miners ETF | H10: =RTD("cqg.rtd", ,"ContractData",B10, "LastTradeToday",, "T") -> 50.49 | I10: =RTD("cqg.rtd", ,"ContractData",B10, "NetLastTradeToday",, "T") -> 1.77 | J10: =RTD("cqg.rtd", ,"ContractData",B10, "PerCentNetLastTrade",, "T")/100 -> 0.03633004926 | K10: =I10/RTD("cqg.rtd",,"StudyData",B10, "ATR", "MaType=Sim,Period=10", "ATR","D","-1","ALL",,,"FALSE","T")/100 -> 0.01129546905 | L10: =RTD("cqg.rtd", ,"ContractData",B10, "OPen",, "T") -> 49.91 | M10: =RTD("cqg.rtd", ,"ContractData", B10, "HIgh",, "T") -> 50.51 | N10: =RTD("cqg.rtd", ,"ContractData",B10, "LOw",, "T") -> 49.36 | O10: =RTD("cqg.rtd", ,"ContractData",B10, "T_CVol",, "T") -> 18614244 | Q10: =IFERROR(O10/RTD("cqg.rtd",,"StudyData",B10, "MA", "InputChoice=Vol,MAType=Sim,Period=21", "MA","D","-1","all",,,,"T"),"") -> 0.6506205298
B11: S.FXI | C11: =RTD("cqg.rtd", ,"ContractData",B11, "LongDescription",, "T") -> iShares China Large-Cap ETF | H11: =RTD("cqg.rtd", ,"ContractData",B11, "LastTradeToday",, "T") -> 35.29 | I11: =RTD("cqg.rtd", ,"ContractData",B11, "NetLastTradeToday",, "T") -> 0.42 | J11: =RTD("cqg.rtd", ,"ContractData",B11, "PerCentNetLastTrade",, "T")/100 -> 0.0120447376 | K11: =I11/RTD("cqg.rtd",,"StudyData",B11, "ATR", "MaType=Sim,Period=10", "ATR","D","-1","ALL",,,"FALSE","T")/100 -> 0.00752688172 | L11: =RTD("cqg.rtd", ,"ContractData",B11, "OPen",, "T") -> 35.19 | M11: =RTD("cqg.rtd", ,"ContractData", B11, "HIgh",, "T") -> 35.46 | N11: =RTD("cqg.rtd", ,"ContractData",B11, "LOw",, "T") -> 35.16 | O11: =RTD("cqg.rtd", ,"ContractData",B11, "T_CVol",, "T") -> 28092264 | Q11: =IFERROR(O11/RTD("cqg.rtd",,"StudyData",B11, "MA", "InputChoice=Vol,MAType=Sim,Period=21", "MA","D","-1","all",,,,"T"),"") -> 0.4218364055
B12: IWF | C12: =RTD("cqg.rtd", ,"ContractData",B12, "LongDescription",, "T") -> iShares Russell 1000 Growth ETF | H12: =RTD("cqg.rtd", ,"ContractData",B12, "LastTradeToday",, "T") -> 372.71 | I12: =RTD("cqg.rtd", ,"ContractData",B12, "NetLastTradeToday",, "T") -> -2.01 | J12: =RTD("cqg.rtd", ,"ContractData",B12, "PerCentNetLastTrade",, "T")/100 -> -0.005364005124 | K12: =I12/RTD("cqg.rtd",,"StudyData",B12, "ATR", "MaType=Sim,Period=10", "ATR","D","-1","ALL",,,"FALSE","T")/100 -> -0.002350052613 | L12: =RTD("cqg.rtd", ,"ContractData",B12, "OPen",, "T") -> 370.35 | M12: =RTD("cqg.rtd", ,"ContractData", B12, "HIgh",, "T") -> 374.3 | N12: =RTD("cqg.rtd", ,"ContractData",B12, "LOw",, "T") -> 369.4 | O12: =RTD("cqg.rtd", ,"ContractData",B12, "T_CVol",, "T") -> 815974 | Q12: =IFERROR(O12/RTD("cqg.rtd",,"StudyData",B12, "MA", "InputChoice=Vol,MAType=Sim,Period=21", "MA","D","-1","all",,,,"T"),"") -> 0.3318389518
B13: IWO | C13: =RTD("cqg.rtd", ,"ContractData",B13, "LongDescription",, "T") -> iShares Russell 2000 Growth ETF | H13: =RTD("cqg.rtd", ,"ContractData",B13, "LastTradeToday",, "T") -> 256.86 | I13: =RTD("cqg.rtd", ,"ContractData",B13, "NetLastTradeToday",, "T") -> -3.13 | J13: =RTD("cqg.rtd", ,"ContractData",B13, "PerCentNetLastTrade",, "T")/100 -> -0.01203892457 | K13: =I13/RTD("cqg.rtd",,"StudyData",B13, "ATR", "MaType=Sim,Period=10", "ATR","D","-1","ALL",,,"FALSE","T")/100 -> -0.005044319098 | L13: =RTD("cqg.rtd", ,"ContractData",B13, "OPen",, "T") -> 256.07 | M13: =RTD("cqg.rtd", ,"ContractData", B13, "HIgh",, "T") -> 258.73 | N13: =RTD("cqg.rtd", ,"ContractData",B13, "LOw",, "T") -> 255.09 | O13: =RTD("cqg.rtd", ,"ContractData",B13, "T_CVol",, "T") -> 284927 | Q13: =IFERROR(O13/RTD("cqg.rtd",,"StudyData",B13, "MA", "InputChoice=Vol,MAType=Sim,Period=21", "MA","D","-1","all",,,,"T"),"") -> 0.4342484934
B14: EP | C14: =RTD("cqg.rtd", ,"ContractData",B14, "LongDescription",, "T") -> E-Mini S&P 500, Jun 25 | H14: =RTD("cqg.rtd", ,"ContractData",B14, "LastTradeToday",, "T") -> 5646.75 | I14: =RTD("cqg.rtd", ,"ContractData",B14, "NetLastTradeToday",, "T") -> -25 | J14: =RTD("cqg.rtd", ,"ContractData",B14, "PerCentNetLastTrade",, "T")/100 -> -0.00440781064 | K14: =I14/RTD("cqg.rtd",,"StudyData",B14, "ATR", "MaType=Sim,Period=10", "ATR","D","-1","ALL",,,"FALSE","T")/100 -> -0.002037489813 | L14: =RTD("cqg.rtd", ,"ContractData",B14, "OPen",, "T") -> 5666.25 | M14: =RTD("cqg.rtd", ,"ContractData", B14, "HIgh",, "T") -> 5673.25 | N14: =RTD("cqg.rtd", ,"ContractData",B14, "LOw",, "T") -> 5607 | O14: =RTD("cqg.rtd", ,"ContractData",B14, "T_CVol",, "T") -> 1025491 | Q14: =IFERROR(O14/RTD("cqg.rtd",,"StudyData",B14, "MA", "InputChoice=Vol,MAType=Sim,Period=21", "MA","D","-1","all",,,,"T"),"") -> 0.5656266492
B15: XLE | C15: =RTD("cqg.rtd", ,"ContractData",B15, "LongDescription",, "T") -> Energy Select Sector SPDR | H15: =RTD("cqg.rtd", ,"ContractData",B15, "LastTradeToday",, "T") -> 80.84 | I15: =RTD("cqg.rtd", ,"ContractData",B15, "NetLastTradeToday",, "T") -> 0.34 | J15: =RTD("cqg.rtd", ,"ContractData",B15, "PerCentNetLastTrade",, "T")/100 -> 0.004223602484 | K15: =I15/RTD("cqg.rtd",,"StudyData",B15, "ATR", "MaType=Sim,Period=10", "ATR","D","-1","ALL",,,"FALSE","T")/100 -> 0.001801801802 | L15: =RTD("cqg.rtd", ,"ContractData",B15, "OPen",, "T") -> 80.86 | M15: =RTD("cqg.rtd", ,"ContractData", B15, "HIgh",, "T") -> 81.22 | N15: =RTD("cqg.rtd", ,"ContractData",B15, "LOw",, "T") -> 80.07 | O15: =RTD("cqg.rtd", ,"ContractData",B15, "T_CVol",, "T") -> 9016294 | Q15: =IFERROR(O15/RTD("cqg.rtd",,"StudyData",B15, "MA", "InputChoice=Vol,MAType=Sim,Period=21", "MA","D","-1","all",,,,"T"),"") -> 0.3854431107
B16: USO | C16: =RTD("cqg.rtd", ,"ContractData",B16, "LongDescription",, "T") -> United States Oil Fund | H16: =RTD("cqg.rtd", ,"ContractData",B16, "LastTradeToday",, "T") -> 64.53 | I16: =RTD("cqg.rtd", ,"ContractData",B16, "NetLastTradeToday",, "T") -> 2.15 | J16: =RTD("cqg.rtd", ,"ContractData",B16, "PerCentNetLastTrade",, "T")/100 -> 0.03446617506 | K16: =I16/RTD("cqg.rtd",,"StudyData",B16, "ATR", "MaType=Sim,Period=10", "ATR","D","-1","ALL",,,"FALSE","T")/100 -> 0.01095262354 | L16: =RTD("cqg.rtd", ,"ContractData",B16, "OPen",, "T") -> 64.15 | M16: =RTD("cqg.rtd", ,"ContractData", B16, "HIgh",, "T") -> 65.41 | N16: =RTD("cqg.rtd", ,"ContractData",B16, "LOw",, "T") -> 64.06 | O16: =RTD("cqg.rtd", ,"ContractData",B16, "T_CVol",, "T") -> 4732887 | Q16: =IFERROR(O16/RTD("cqg.rtd",,"StudyData",B16, "MA", "InputChoice=Vol,MAType=Sim,Period=21", "MA","D","-1","all",,,,"T"),"") -> 0.7577500207
C17: Top 15 Description | H17: Last | I17: NC | J17: %NC | K17: NC/ATR | L17: Open | M17: High | N17: Low | O17: Volume | Q17: Ratio
A18: =TRIM(IWF!O1) -> S.US.CEG | B18: News | C18: =RTD("cqg.rtd", ,"ContractData",A18, "LongDescription",, "T")&" ("&RIGHT(A18,LEN(A18)-5)&")" -> Constellation Energy Corporation (CEG) | H18: =RTD("cqg.rtd", ,"ContractData",A18, "LastTradeToday",, "T") -> 277.4 | I18: =RTD("cqg.rtd", ,"ContractData",A18, "NetLastTradeToday",, "T") -> 29.13 | J18: =RTD("cqg.rtd", ,"ContractData",A18, "PerCentNetLastTrade",, "T")/100 -> 0.117331937 | K18: =I18/RTD("cqg.rtd",,"StudyData",A18, "ATR", "MaType=Sim,Period=10", "ATR","D","-1","ALL",,,"FALSE","T")/100 -> 0.02789161241 | L18: =RTD("cqg.rtd", ,"ContractData",A18, "OPen",, "T") -> 258.83 | M18: =RTD("cqg.rtd", ,"ContractData", A18, "HIgh",, "T") -> 279.73 | N18: =RTD("cqg.rtd", ,"ContractData",A18, "LOw",, "T") -> 256.12 | O18: =RTD("cqg.rtd", ,"ContractData",A18, "T_CVol",, "T") -> 5645416 | Q18: =IFERROR(O18/RTD("cqg.rtd",,"StudyData",A18, "MA", "InputChoice=Vol,MAType=Sim,Period=21", "MA","D","-1","all",,,,"T"),"") -> 1.483752595 | R18: =IWF!R1 -> https://finance.yahoo.com/quote/CEG
A19: =TRIM(IWF!O2) -> S.US.CE | B19: News | C19: =RTD("cqg.rtd", ,"ContractData",A19, "LongDescription",, "T")&" ("&RIGHT(A19,LEN(A19)-5)&")" -> Celanese Corp (CE) | H19: =RTD("cqg.rtd", ,"ContractData",A19, "LastTradeToday",, "T") -> 48.96 | I19: =RTD("cqg.rtd", ,"ContractData",A19, "NetLastTradeToday",, "T") -> 4.19 | J19: =RTD("cqg.rtd", ,"ContractData",A19, "PerCentNetLastTrade",, "T")/100 -> 0.09358945723 | K19: =I19/RTD("cqg.rtd",,"StudyData",A19, "ATR", "MaType=Sim,Period=10", "ATR","D","-1","ALL",,,"FALSE","T")/100 -> 0.02002868069 | L19: =RTD("cqg.rtd", ,"ContractData",A19, "OPen",, "T") -> 47.61 | M19: =RTD("cqg.rtd", ,"ContractData", A19, "HIgh",, "T") -> 49.58 | N19: =RTD("cqg.rtd", ,"ContractData",A19, "LOw",, "T") -> 46.78 | O19: =RTD("cqg.rtd", ,"ContractData",A19, "T_CVol",, "T") -> 4235727 | Q19: =IFERROR(O19/RTD("cqg.rtd",,"StudyData",A19, "MA", "InputChoice=Vol,MAType=Sim,Period=21", "MA","D","-1","all",,,,"T"),"") -> 1.155060401 | R19: =IWF!R2 -> https://finance.yahoo.com/quote/CE
A20: =TRIM(IWF!O3) -> S.US.NBIX | B20: News | C20: =RTD("cqg.rtd", ,"ContractData",A20, "LongDescription",, "T")&" ("&RIGHT(A20,LEN(A20)-5)&")" -> Neurocrine Biosciences Inc (NBIX) | H20: =RTD("cqg.rtd", ,"ContractData",A20, "LastTradeToday",, "T") -> 117.6 | I20: =RTD("cqg.rtd", ,"ContractData",A20, "NetLastTradeToday",, "T") -> 7.85 | J20: =RTD("cqg.rtd", ,"ContractData",A20, "PerCentNetLastTrade",, "T")/100 -> 0.0715261959 | K20: =I20/RTD("cqg.rtd",,"StudyData",A20, "ATR", "MaType=Sim,Period=10", "ATR","D","-1","ALL",,,"FALSE","T")/100 -> 0.02301377895 | L20: =RTD("cqg.rtd", ,"ContractData",A20, "OPen",, "T") -> 123 | M20: =RTD("cqg.rtd", ,"ContractData", A20, "HIgh",, "T") -> 130.46 | N20: =RTD("cqg.rtd", ,"ContractData",A20, "LOw",, "T") -> 116.56 | O20: =RTD("cqg.rtd", ,"ContractData",A20, "T_CVol",, "T") -> 4105143 | Q20: =IFERROR(O20/RTD("cqg.rtd",,"StudyData",A20, "MA", "InputChoice=Vol,MAType=Sim,Period=21", "MA","D","-1","all",,,,"T"),"") -> 2.311447637 | R20: =IWF!R3 -> https://finance.yahoo.com/quote/NBIX
A21: =TRIM(IWF!O4) -> S.US.CELH | B21: News | C21: =RTD("cqg.rtd", ,"ContractData",A21, "LongDescription",, "T")&" ("&RIGHT(A21,LEN(A21)-5)&")" -> Celsius Holdings, Inc. (CELH) | H21: =RTD("cqg.rtd", ,"ContractData",A21, "LastTradeToday",, "T") -> 35.84 | I21: =RTD("cqg.rtd", ,"ContractData",A21, "NetLastTradeToday",, "T") -> 1.95 | J21: =RTD("cqg.rtd", ,"ContractData",A21, "PerCentNetLastTrade",, "T")/100 -> 0.05753909708 | K21: =I21/RTD("cqg.rtd",,"StudyData",A21, "ATR", "MaType=Sim,Period=10", "ATR","D","-1","ALL",,,"FALSE","T")/100 -> 0.0119047619 | L21: =RTD("cqg.rtd", ,"ContractData",A21, "OPen",, "T") -> 33.23 | M21: =RTD("cqg.rtd", ,"ContractData", A21, "HIgh",, "T") -> 36.16 | N21: =RTD("cqg.rtd", ,"ContractData",A21, "LOw",, "T") -> 32.36 | O21: =RTD("cqg.rtd", ,"ContractData",A21, "T_CVol",, "T") -> 14020298 | Q21: =IFERROR(O21/RTD("cqg.rtd",,"StudyData",A21, "MA", "InputChoice=Vol,MAType=Sim,Period=21", "MA","D","-1","all",,,,"T"),"") -> 1.988078656 | R21: =IWF!R4 -> https://finance.yahoo.com/quote/CELH
A22: =TRIM(IWF!O5) -> S.US.KBR | B22: News | C22: =RTD("cqg.rtd", ,"ContractData",A22, "LongDescription",, "T")&" ("&RIGHT(A22,LEN(A22)-5)&")" -> KBR, Inc (KBR) | H22: =RTD("cqg.rtd", ,"ContractData",A22, "LastTradeToday",, "T") -> 54.33 | I22: =RTD("cqg.rtd", ,"ContractData",A22, "NetLastTradeToday",, "T") -> 2.76 | J22: =RTD("cqg.rtd", ,"ContractData",A22, "PerCentNetLastTrade",, "T")/100 -> 0.05351948807 | K22: =I22/RTD("cqg.rtd",,"StudyData",A22, "ATR", "MaType=Sim,Period=10", "ATR","D","-1","ALL",,,"FALSE","T")/100 -> 0.02041420118 | L22: =RTD("cqg.rtd", ,"ContractData",A22, "OPen",, "T") -> 52.14 | M22: =RTD("cqg.rtd", ,"ContractData", A22, "HIgh",, "T") -> 54.34 | N22: =RTD("cqg.rtd", ,"ContractData",A22, "LOw",, "T") -> 50.63 | O22: =RTD("cqg.rtd", ,"ContractData",A22, "T_CVol",, "T") -> 1633969 | Q22: =IFERROR(O22/RTD("cqg.rtd",,"StudyData",A22, "MA", "InputChoice=Vol,MAType=Sim,Period=21", "MA","D","-1","all",,,,"T"),"") -> 1.195428877 | R22: =IWF!R5 -> https://finance.yahoo.com/quote/KBR
A23: =TRIM(IWF!O6) -> S.US.SEE | B23: News | C23: =RTD("cqg.rtd", ,"ContractData",A23, "LongDescription",, "T")&" ("&RIGHT(A23,LEN(A23)-5)&")" -> Sealed Air Corp New (SEE) | H23: =RTD("cqg.rtd", ,"ContractData",A23, "LastTradeToday",, "T") -> 28.87 | I23: =RTD("cqg.rtd", ,"ContractData",A23, "NetLastTradeToday",, "T") -> 1.34 | J23: =RTD("cqg.rtd", ,"ContractData",A23, "PerCentNetLastTrade",, "T")/100 -> 0.04867417363 | K23: =I23/RTD("cqg.rtd",,"StudyData",A23, "ATR", "MaType=Sim,Period=10", "ATR","D","-1","ALL",,,"FALSE","T")/100 -> 0.01670822943 | L23: =RTD("cqg.rtd", ,"ContractData",A23, "OPen",, "T") -> 29.05 | M23: =RTD("cqg.rtd", ,"ContractData", A23, "HIgh",, "T") -> 29.38 | N23: =RTD("cqg.rtd", ,"ContractData",A23, "LOw",, "T") -> 27.34 | O23: =RTD("cqg.rtd", ,"ContractData",A23, "T_CVol",, "T") -> 2231279 | Q23: =IFERROR(O23/RTD("cqg.rtd",,"StudyData",A23, "MA", "InputChoice=Vol,MAType=Sim,Period=21", "MA","D","-1","all",,,,"T"),"") -> 1.038029725 | R23: =IWF!R6 -> https://finance.yahoo.com/quote/SEE
A24: =TRIM(IWF!O7) -> S.US.VST | B24: News | C24: =RTD("cqg.rtd", ,"ContractData",A24, "LongDescription",, "T")&" ("&RIGHT(A24,LEN(A24)-5)&")" -> Vistra Corp. (VST) | H24: =RTD("cqg.rtd", ,"ContractData",A24, "LastTradeToday",, "T") -> 145.98 | I24: =RTD("cqg.rtd", ,"ContractData",A24, "NetLastTradeToday",, "T") -> 5.98 | J24: =RTD("cqg.rtd", ,"ContractData",A24, "PerCentNetLastTrade",, "T")/100 -> 0.04271428571 | K24: =I24/RTD("cqg.rtd",,"StudyData",A24, "ATR", "MaType=Sim,Period=10", "ATR","D","-1","ALL",,,"FALSE","T")/100 -> 0.008912071535 | L24: =RTD("cqg.rtd", ,"ContractData",A24, "OPen",, "T") -> 138.48 | M24: =RTD("cqg.rtd", ,"ContractData", A24, "HIgh",, "T") -> 146.88 | N24: =RTD("cqg.rtd", ,"ContractData",A24, "LOw",, "T") -> 137.44 | O24: =RTD("cqg.rtd", ,"ContractData",A24, "T_CVol",, "T") -> 8388850 | Q24: =IFERROR(O24/RTD("cqg.rtd",,"StudyData",A24, "MA", "InputChoice=Vol,MAType=Sim,Period=21", "MA","D","-1","all",,,,"T"),"") -> 1.145071772 | R24: =IWF!R7 -> https://finance.yahoo.com/quote/VST
A25: =TRIM(IWF!O8) -> S.US.LPX | B25: News | C25: =RTD("cqg.rtd", ,"ContractData",A25, "LongDescription",, "T")&" ("&RIGHT(A25,LEN(A25)-5)&")" -> Louisiana-Pacific Corp (LPX) | H25: =RTD("cqg.rtd", ,"ContractData",A25, "LastTradeToday",, "T") -> 91.19 | I25: =RTD("cqg.rtd", ,"ContractData",A25, "NetLastTradeToday",, "T") -> 3.66 | J25: =RTD("cqg.rtd", ,"ContractData",A25, "PerCentNetLastTrade",, "T")/100 -> 0.04181423512 | K25: =I25/RTD("cqg.rtd",,"StudyData",A25, "ATR", "MaType=Sim,Period=10", "ATR","D","-1","ALL",,,"FALSE","T")/100 -> 0.01402836336 | L25: =RTD("cqg.rtd", ,"ContractData",A25, "OPen",, "T") -> 87.01 | M25: =RTD("cqg.rtd", ,"ContractData", A25, "HIgh",, "T") -> 92.99 | N25: =RTD("cqg.rtd", ,"ContractData",A25, "LOw",, "T") -> 86.14 | O25: =RTD("cqg.rtd", ,"ContractData",A25, "T_CVol",, "T") -> 1349474 | Q25: =IFERROR(O25/RTD("cqg.rtd",,"StudyData",A25, "MA", "InputChoice=Vol,MAType=Sim,Period=21", "MA","D","-1","all",,,,"T"),"") -> 2.249969929 | R25: =IWF!R8 -> https://finance.yahoo.com/quote/LPX
A26: =TRIM(IWF!O9) -> S.US.BAH | B26: News | C26: =RTD("cqg.rtd", ,"ContractData",A26, "LongDescription",, "T")&" ("&RIGHT(A26,LEN(A26)-5)&")" -> Booz Allen Hamilton Holding Corporation (BAH) | H26: =RTD("cqg.rtd", ,"ContractData",A26, "LastTradeToday",, "T") -> 123.52 | I26: =RTD("cqg.rtd", ,"ContractData",A26, "NetLastTradeToday",, "T") -> 4.35 | J26: =RTD("cqg.rtd", ,"ContractData",A26, "PerCentNetLastTrade",, "T")/100 -> 0.03650247546 | K26: =I26/RTD("cqg.rtd",,"StudyData",A26, "ATR", "MaType=Sim,Period=10", "ATR","D","-1","ALL",,,"FALSE","T")/100 -> 0.01373539627 | L26: =RTD("cqg.rtd", ,"ContractData",A26, "OPen",, "T") -> 118.35 | M26: =RTD("cqg.rtd", ,"ContractData", A26, "HIgh",, "T") -> 123.62 | N26: =RTD("cqg.rtd", ,"ContractData",A26, "LOw",, "T") -> 118.35 | O26: =RTD("cqg.rtd", ,"ContractData",A26, "T_CVol",, "T") -> 1425423 | Q26: =IFERROR(O26/RTD("cqg.rtd",,"StudyData",A26, "MA", "InputChoice=Vol,MAType=Sim,Period=21", "MA","D","-1","all",,,,"T"),"") -> 0.6245737753 | R26: =IWF!R9 -> https://finance.yahoo.com/quote/BAH
A27: =TRIM(IWF!O10) -> S.US.NFE | B27: News | C27: =RTD("cqg.rtd", ,"ContractData",A27, "LongDescription",, "T")&" ("&RIGHT(A27,LEN(A27)-5)&")" -> New Fortress Energy Inc. Class A (NFE) | H27: =RTD("cqg.rtd", ,"ContractData",A27, "LastTradeToday",, "T") -> 5.73 | I27: =RTD("cqg.rtd", ,"ContractData",A27, "NetLastTradeToday",, "T") -> 0.19 | J27: =RTD("cqg.rtd", ,"ContractData",A27, "PerCentNetLastTrade",, "T")/100 -> 0.03429602888 | K27: =I27/RTD("cqg.rtd",,"StudyData",A27, "ATR", "MaType=Sim,Period=10", "ATR","D","-1","ALL",,,"FALSE","T")/100 -> 0.003538175047 | L27: =RTD("cqg.rtd", ,"ContractData",A27, "OPen",, "T") -> 5.5 | M27: =RTD("cqg.rtd", ,"ContractData", A27, "HIgh",, "T") -> 5.76 | N27: =RTD("cqg.rtd", ,"ContractData",A27, "LOw",, "T") -> 5.49 | O27: =RTD("cqg.rtd", ,"ContractData",A27, "T_CVol",, "T") -> 3035197 | Q27: =IFERROR(O27/RTD("cqg.rtd",,"StudyData",A27, "MA", "InputChoice=Vol,MAType=Sim,Period=21", "MA","D","-1","all",,,,"T"),"") -> 0.3624364617 | R27: =IWF!R10 -> https://finance.yahoo.com/quote/NFE | S27: Bottom 15 Performing Companies
A28: =TRIM(IWF!O11) -> S.US.SMCI | B28: News | C28: =RTD("cqg.rtd", ,"ContractData",A28, "LongDescription",, "T")&" ("&RIGHT(A28,LEN(A28)-5)&")" -> Super Micro Computer (SMCI) | H28: =RTD("cqg.rtd", ,"ContractData",A28, "LastTradeToday",, "T") -> 33.25 | I28: =RTD("cqg.rtd", ,"ContractData",A28, "NetLastTradeToday",, "T") -> 1.08 | J28: =RTD("cqg.rtd", ,"ContractData",A28, "PerCentNetLastTrade",, "T")/100 -> 0.03357165061 | K28: =I28/RTD("cqg.rtd",,"StudyData",A28, "ATR", "MaType=Sim,Period=10", "ATR","D","-1","ALL",,,"FALSE","T")/100 -> 0.004005934718 | L28: =RTD("cqg.rtd", ,"ContractData",A28, "OPen",, "T") -> 31.72 | M28: =RTD("cqg.rtd", ,"ContractData", A28, "HIgh",, "T") -> 33.3 | N28: =RTD("cqg.rtd", ,"ContractData",A28, "LOw",, "T") -> 31.52 | O28: =RTD("cqg.rtd", ,"ContractData",A28, "T_CVol",, "T") -> 29960249 | Q28: =IFERROR(O28/RTD("cqg.rtd",,"StudyData",A28, "MA", "InputChoice=Vol,MAType=Sim,Period=21", "MA","D","-1","all",,,,"T"),"") -> 0.6405314565 | R28: =IWF!R11 -> https://finance.yahoo.com/quote/SMCI
A29: =TRIM(IWF!O12) -> S.US.RYAN | B29: News | C29: =RTD("cqg.rtd", ,"ContractData",A29, "LongDescription",, "T")&" ("&RIGHT(A29,LEN(A29)-5)&")" -> Ryan Specialty Group Holdings, Inc. (RYAN) | H29: =RTD("cqg.rtd", ,"ContractData",A29, "LastTradeToday",, "T") -> 69.34 | I29: =RTD("cqg.rtd", ,"ContractData",A29, "NetLastTradeToday",, "T") -> 1.68 | J29: =RTD("cqg.rtd", ,"ContractData",A29, "PerCentNetLastTrade",, "T")/100 -> 0.02483003252 | K29: =I29/RTD("cqg.rtd",,"StudyData",A29, "ATR", "MaType=Sim,Period=10", "ATR","D","-1","ALL",,,"FALSE","T")/100 -> 0.006466512702 | L29: =RTD("cqg.rtd", ,"ContractData",A29, "OPen",, "T") -> 67.88 | M29: =RTD("cqg.rtd", ,"ContractData", A29, "HIgh",, "T") -> 69.38 | N29: =RTD("cqg.rtd", ,"ContractData",A29, "LOw",, "T") -> 67.3 | O29: =RTD("cqg.rtd", ,"ContractData",A29, "T_CVol",, "T") -> 712971 | Q29: =IFERROR(O29/RTD("cqg.rtd",,"StudyData",A29, "MA", "InputChoice=Vol,MAType=Sim,Period=21", "MA","D","-1","all",,,,"T"),"") -> 0.5411099461 | R29: =IWF!R12 -> https://finance.yahoo.com/quote/RYAN
A30: =TRIM(IWF!O13) -> S.US.FRPT | B30: News | C30: =RTD("cqg.rtd", ,"ContractData",A30, "LongDescription",, "T")&" ("&RIGHT(A30,LEN(A30)-5)&")" -> Freshpet, Inc. (FRPT) | H30: =RTD("cqg.rtd", ,"ContractData",A30, "LastTradeToday",, "T") -> 81 | I30: =RTD("cqg.rtd", ,"ContractData",A30, "NetLastTradeToday",, "T") -> 1.91 | J30: =RTD("cqg.rtd", ,"ContractData",A30, "PerCentNetLastTrade",, "T")/100 -> 0.02414970287 | K30: =I30/RTD("cqg.rtd",,"StudyData",A30, "ATR", "MaType=Sim,Period=10", "ATR","D","-1","ALL",,,"FALSE","T")/100 -> 0.005534627644 | L30: =RTD("cqg.rtd", ,"ContractData",A30, "OPen",, "T") -> 78.87 | M30: =RTD("cqg.rtd", ,"ContractData", A30, "HIgh",, "T") -> 82.04 | N30: =RTD("cqg.rtd", ,"ContractData",A30, "LOw",, "T") -> 78.53 | O30: =RTD("cqg.rtd", ,"ContractData",A30, "T_CVol",, "T") -> 1574570 | Q30: =IFERROR(O30/RTD("cqg.rtd",,"StudyData",A30, "MA", "InputChoice=Vol,MAType=Sim,Period=21", "MA","D","-1","all",,,,"T"),"") -> 1.209634547 | R30: =IWF!R13 -> https://finance.yahoo.com/quote/FRPT
A31: =TRIM(IWF!O14) -> S.US.MTDR | B31: News | C31: =RTD("cqg.rtd", ,"ContractData",A31, "LongDescription",, "T")&" ("&RIGHT(A31,LEN(A31)-5)&")" -> Matador Resources Company (MTDR) | H31: =RTD("cqg.rtd", ,"ContractData",A31, "LastTradeToday",, "T") -> 40.58 | I31: =RTD("cqg.rtd", ,"ContractData",A31, "NetLastTradeToday",, "T") -> 0.93 | J31: =RTD("cqg.rtd", ,"ContractData",A31, "PerCentNetLastTrade",, "T")/100 -> 0.02345523329 | K31: =I31/RTD("cqg.rtd",,"StudyData",A31, "ATR", "MaType=Sim,Period=10", "ATR","D","-1","ALL",,,"FALSE","T")/100 -> 0.005126791621 | L31: =RTD("cqg.rtd", ,"ContractData",A31, "OPen",, "T") -> 40.35 | M31: =RTD("cqg.rtd", ,"ContractData", A31, "HIgh",, "T") -> 41.29 | N31: =RTD("cqg.rtd", ,"ContractData",A31, "LOw",, "T") -> 39.85 | O31: =RTD("cqg.rtd", ,"ContractData",A31, "T_CVol",, "T") -> 1205270 | Q31: =IFERROR(O31/RTD("cqg.rtd",,"StudyData",A31, "MA", "InputChoice=Vol,MAType=Sim,Period=21", "MA","D","-1","all",,,,"T"),"") -> 0.4470874841 | R31: =IWF!R14 -> https://finance.yahoo.com/quote/MTDR
A32: =TRIM(IWF!O15) -> S.US.HCA | B32: News | C32: =RTD("cqg.rtd", ,"ContractData",A32, "LongDescription",, "T")&" ("&RIGHT(A32,LEN(A32)-5)&")" -> HCA Holdings Inc. (HCA) | H32: =RTD("cqg.rtd", ,"ContractData",A32, "LastTradeToday",, "T") -> 357.16 | I32: =RTD("cqg.rtd", ,"ContractData",A32, "NetLastTradeToday",, "T") -> 7.78 | J32: =RTD("cqg.rtd", ,"ContractData",A32, "PerCentNetLastTrade",, "T")/100 -> 0.02226801763 | K32: =I32/RTD("cqg.rtd",,"StudyData",A32, "ATR", "MaType=Sim,Period=10", "ATR","D","-1","ALL",,,"FALSE","T")/100 -> 0.007174474364 | L32: =RTD("cqg.rtd", ,"ContractData",A32, "OPen",, "T") -> 349.6 | M32: =RTD("cqg.rtd", ,"ContractData", A32, "HIgh",, "T") -> 360.94 | N32: =RTD("cqg.rtd", ,"ContractData",A32, "LOw",, "T") -> 346.21 | O32: =RTD("cqg.rtd", ,"ContractData",A32, "T_CVol",, "T") -> 1019968 | Q32: =IFERROR(O32/RTD("cqg.rtd",,"StudyData",A32, "MA", "InputChoice=Vol,MAType=Sim,Period=21", "MA","D","-1","all",,,,"T"),"") -> 0.6105135789 | R32: =IWF!R15 -> https://finance.yahoo.com/quote/HCA
C33: Bottom 15 Description | H33: Last | I33: NC | J33: %NC | K33: NC/ATR | L33: Open | M33: High | N33: Low | O33: Volume | Q33: Ratio
A34: =TRIM(IWF!AC1) -> S.US.SRPT | B34: News | C34: =RTD("cqg.rtd", ,"ContractData",A34, "LongDescription",, "T")&" ("&RIGHT(A34,LEN(A34)-5)&")" -> Sarepta Therapeutics, Inc. (SRPT) | H34: =RTD("cqg.rtd", ,"ContractData",A34, "LastTradeToday",, "T") -> 48.76 | I34: =RTD("cqg.rtd", ,"ContractData",A34, "NetLastTradeToday",, "T") -> -14.9 | J34: =RTD("cqg.rtd", ,"ContractData",A34, "PerCentNetLastTrade",, "T")/100 -> -0.2340559221 | K34: =I34/RTD("cqg.rtd",,"StudyData",A34, "ATR", "MaType=Sim,Period=10", "ATR","D","-1","ALL",,,"FALSE","T")/100 -> -0.05650360258 | L34: =RTD("cqg.rtd", ,"ContractData",A34, "OPen",, "T") -> 62.92 | M34: =RTD("cqg.rtd", ,"ContractData", A34, "HIgh",, "T") -> 63.91 | N34: =RTD("cqg.rtd", ,"ContractData",A34, "LOw",, "T") -> 46.62 | O34: =RTD("cqg.rtd", ,"ContractData",A34, "T_CVol",, "T") -> 9842310 | Q34: =IFERROR(O34/RTD("cqg.rtd",,"StudyData",A34, "MA", "InputChoice=Vol,MAType=Sim,Period=21", "MA","D","-1","all",,,,"T"),"") -> 4.155899032 | R34: =IWF!AH1 -> https://finance.yahoo.com/quote/SRPT
A35: =TRIM(IWF!AC2) -> S.US.UWMC | B35: News | C35: =RTD("cqg.rtd", ,"ContractData",A35, "LongDescription",, "T")&" ("&RIGHT(A35,LEN(A35)-5)&")" -> UWM Holdings Corporation (UWMC) | H35: =RTD("cqg.rtd", ,"ContractData",A35, "LastTradeToday",, "T") -> 4.06 | I35: =RTD("cqg.rtd", ,"ContractData",A35, "NetLastTradeToday",, "T") -> -0.71 | J35: =RTD("cqg.rtd", ,"ContractData",A35, "PerCentNetLastTrade",, "T")/100 -> -0.1488469602 | K35: =I35/RTD("cqg.rtd",,"StudyData",A35, "ATR", "MaType=Sim,Period=10", "ATR","D","-1","ALL",,,"FALSE","T")/100 -> -0.03641025641 | L35: =RTD("cqg.rtd", ,"ContractData",A35, "OPen",, "T") -> 4.45 | M35: =RTD("cqg.rtd", ,"ContractData", A35, "HIgh",, "T") -> 4.61 | N35: =RTD("cqg.rtd", ,"ContractData",A35, "LOw",, "T") -> 4.06 | O35: =RTD("cqg.rtd", ,"ContractData",A35, "T_CVol",, "T") -> 6912284 | Q35: =IFERROR(O35/RTD("cqg.rtd",,"StudyData",A35, "MA", "InputChoice=Vol,MAType=Sim,Period=21", "MA","D","-1","all",,,,"T"),"") -> 1.513123565 | R35: =IWF!AH2 -> https://finance.yahoo.com/quote/UWMC
A36: =TRIM(IWF!AC3) -> S.US.LSCC | B36: News | C36: =RTD("cqg.rtd", ,"ContractData",A36, "LongDescription",, "T")&" ("&RIGHT(A36,LEN(A36)-5)&")" -> Lattice Semiconductor (LSCC) | H36: =RTD("cqg.rtd", ,"ContractData",A36, "LastTradeToday",, "T") -> 46.24 | I36: =RTD("cqg.rtd", ,"ContractData",A36, "NetLastTradeToday",, "T") -> -6.22 | J36: =RTD("cqg.rtd", ,"ContractData",A36, "PerCentNetLastTrade",, "T")/100 -> -0.1185665269 | K36: =I36/RTD("cqg.rtd",,"StudyData",A36, "ATR", "MaType=Sim,Period=10", "ATR","D","-1","ALL",,,"FALSE","T")/100 -> -0.02444968553 | L36: =RTD("cqg.rtd", ,"ContractData",A36, "OPen",, "T") -> 48.65 | M36: =RTD("cqg.rtd", ,"ContractData", A36, "HIgh",, "T") -> 49.04 | N36: =RTD("cqg.rtd", ,"ContractData",A36, "LOw",, "T") -> 45.17 | O36: =RTD("cqg.rtd", ,"ContractData",A36, "T_CVol",, "T") -> 5439325 | Q36: =IFERROR(O36/RTD("cqg.rtd",,"StudyData",A36, "MA", "InputChoice=Vol,MAType=Sim,Period=21", "MA","D","-1","all",,,,"T"),"") -> 1.436535815 | R36: =IWF!AH3 -> https://finance.yahoo.com/quote/LSCC
A37: =TRIM(IWF!AC4) -> S.US.PLTR | B37: News | C37: =RTD("cqg.rtd", ,"ContractData",A37, "LongDescription",, "T")&" ("&RIGHT(A37,LEN(A37)-5)&")" -> Palantir Technologies Inc. (PLTR) | H37: =RTD("cqg.rtd", ,"ContractData",A37, "LastTradeToday",, "T") -> 109.2 | I37: =RTD("cqg.rtd", ,"ContractData",A37, "NetLastTradeToday",, "T") -> -14.57 | J37: =RTD("cqg.rtd", ,"ContractData",A37, "PerCentNetLastTrade",, "T")/100 -> -0.1177183485 | K37: =I37/RTD("cqg.rtd",,"StudyData",A37, "ATR", "MaType=Sim,Period=10", "ATR","D","-1","ALL",,,"FALSE","T")/100 -> -0.02300647402 | L37: =RTD("cqg.rtd", ,"ContractData",A37, "OPen",, "T") -> 112.71 | M37: =RTD("cqg.rtd", ,"ContractData", A37, "HIgh",, "T") -> 113.91 | N37: =RTD("cqg.rtd", ,"ContractData",A37, "LOw",, "T") -> 105.32 | O37: =RTD("cqg.rtd", ,"ContractData",A37, "T_CVol",, "T") -> 183384116 | Q37: =IFERROR(O37/RTD("cqg.rtd",,"StudyData",A37, "MA", "InputChoice=Vol,MAType=Sim,Period=21", "MA","D","-1","all",,,,"T"),"") -> 1.584216348 | R37: =IWF!AH4 -> https://finance.yahoo.com/quote/PLTR
A38: =TRIM(IWF!AC5) -> S.US.VRTX | B38: News | C38: =RTD("cqg.rtd", ,"ContractData",A38, "LongDescription",, "T")&" ("&RIGHT(A38,LEN(A38)-5)&")" -> Vertex Pharmaceuticals Incorporated (VRTX) | H38: =RTD("cqg.rtd", ,"ContractData",A38, "LastTradeToday",, "T") -> 445.46 | I38: =RTD("cqg.rtd", ,"ContractData",A38, "NetLastTradeToday",, "T") -> -54.73 | J38: =RTD("cqg.rtd", ,"ContractData",A38, "PerCentNetLastTrade",, "T")/100 -> -0.109418421 | K38: =I38/RTD("cqg.rtd",,"StudyData",A38, "ATR", "MaType=Sim,Period=10", "ATR","D","-1","ALL",,,"FALSE","T")/100 -> -0.04831391243 | L38: =RTD("cqg.rtd", ,"ContractData",A38, "OPen",, "T") -> 465.55 | M38: =RTD("cqg.rtd", ,"ContractData", A38, "HIgh",, "T") -> 467.85 | N38: =RTD("cqg.rtd", ,"ContractData",A38, "LOw",, "T") -> 428.54 | O38: =RTD("cqg.rtd", ,"ContractData",A38, "T_CVol",, "T") -> 6095379 | Q38: =IFERROR(O38/RTD("cqg.rtd",,"StudyData",A38, "MA", "InputChoice=Vol,MAType=Sim,Period=21", "MA","D","-1","all",,,,"T"),"") -> 3.611471704 | R38: =IWF!AH5 -> https://finance.yahoo.com/quote/VRTX
A39: =TRIM(IWF!AC6) -> S.US.RARE | B39: News | C39: =RTD("cqg.rtd", ,"ContractData",A39, "LongDescription",, "T")&" ("&RIGHT(A39,LEN(A39)-5)&")" -> Ultragenyx Pharmaceutical Inc. (RARE) | H39: =RTD("cqg.rtd", ,"ContractData",A39, "LastTradeToday",, "T") -> 35.13 | I39: =RTD("cqg.rtd", ,"ContractData",A39, "NetLastTradeToday",, "T") -> -3.74 | J39: =RTD("cqg.rtd", ,"ContractData",A39, "PerCentNetLastTrade",, "T")/100 -> -0.09621816311 | K39: =I39/RTD("cqg.rtd",,"StudyData",A39, "ATR", "MaType=Sim,Period=10", "ATR","D","-1","ALL",,,"FALSE","T")/100 -> -0.0310373444 | L39: =RTD("cqg.rtd", ,"ContractData",A39, "OPen",, "T") -> 38 | M39: =RTD("cqg.rtd", ,"ContractData", A39, "HIgh",, "T") -> 38.39 | N39: =RTD("cqg.rtd", ,"ContractData",A39, "LOw",, "T") -> 35.05 | O39: =RTD("cqg.rtd", ,"ContractData",A39, "T_CVol",, "T") -> 926171 | Q39: =IFERROR(O39/RTD("cqg.rtd",,"StudyData",A39, "MA", "InputChoice=Vol,MAType=Sim,Period=21", "MA","D","-1","all",,,,"T"),"") -> 0.9006195235 | R39: =IWF!AH6 -> https://finance.yahoo.com/quote/RARE
A40: =TRIM(IWF!AC7) -> S.US.DASH | B40: News | C40: =RTD("cqg.rtd", ,"ContractData",A40, "LongDescription",, "T")&" ("&RIGHT(A40,LEN(A40)-5)&")" -> DoorDash, Inc (DASH) | H40: =RTD("cqg.rtd", ,"ContractData",A40, "LastTradeToday",, "T") -> 188.63 | I40: =RTD("cqg.rtd", ,"ContractData",A40, "NetLastTradeToday",, "T") -> -16.77 | J40: =RTD("cqg.rtd", ,"ContractData",A40, "PerCentNetLastTrade",, "T")/100 -> -0.08164556962 | K40: =I40/RTD("cqg.rtd",,"StudyData",A40, "ATR", "MaType=Sim,Period=10", "ATR","D","-1","ALL",,,"FALSE","T")/100 -> -0.02276676622 | L40: =RTD("cqg.rtd", ,"ContractData",A40, "OPen",, "T") -> 193.75 | M40: =RTD("cqg.rtd", ,"ContractData", A40, "HIgh",, "T") -> 195.41 | N40: =RTD("cqg.rtd", ,"ContractData",A40, "LOw",, "T") -> 185.25 | O40: =RTD("cqg.rtd", ,"ContractData",A40, "T_CVol",, "T") -> 7563655 | Q40: =IFERROR(O40/RTD("cqg.rtd",,"StudyData",A40, "MA", "InputChoice=Vol,MAType=Sim,Period=21", "MA","D","-1","all",,,,"T"),"") -> 1.807616521 | R40: =IWF!AH7 -> https://finance.yahoo.com/quote/DASH
A41: =TRIM(IWF!AC8) -> S.US.EXEL | B41: News | C41: =RTD("cqg.rtd", ,"ContractData",A41, "LongDescription",, "T")&" ("&RIGHT(A41,LEN(A41)-5)&")" -> Exelixis, Inc. (EXEL) | H41: =RTD("cqg.rtd", ,"ContractData",A41, "LastTradeToday",, "T") -> 36.65 | I41: =RTD("cqg.rtd", ,"ContractData",A41, "NetLastTradeToday",, "T") -> -3.19 | J41: =RTD("cqg.rtd", ,"ContractData",A41, "PerCentNetLastTrade",, "T")/100 -> -0.08007028112 | K41: =I41/RTD("cqg.rtd",,"StudyData",A41, "ATR", "MaType=Sim,Period=10", "ATR","D","-1","ALL",,,"FALSE","T")/100 -> -0.03100097182 | L41: =RTD("cqg.rtd", ,"ContractData",A41, "OPen",, "T") -> 39.38 | M41: =RTD("cqg.rtd", ,"ContractData", A41, "HIgh",, "T") -> 39.38 | N41: =RTD("cqg.rtd", ,"ContractData",A41, "LOw",, "T") -> 36.52 | O41: =RTD("cqg.rtd", ,"ContractData",A41, "T_CVol",, "T") -> 2821396 | Q41: =IFERROR(O41/RTD("cqg.rtd",,"StudyData",A41, "MA", "InputChoice=Vol,MAType=Sim,Period=21", "MA","D","-1","all",,,,"T"),"") -> 1.198024735 | R41: =IWF!AH8 -> https://finance.yahoo.com/quote/EXEL
A42: =TRIM(IWF!AC9) -> S.US.VKTX | B42: News | C42: =RTD("cqg.rtd", ,"ContractData",A42, "LongDescription",, "T")&" ("&RIGHT(A42,LEN(A42)-5)&")" -> Viking Therapeutics, Inc. (VKTX) | H42: =RTD("cqg.rtd", ,"ContractData",A42, "LastTradeToday",, "T") -> 27.23 | I42: =RTD("cqg.rtd", ,"ContractData",A42, "NetLastTradeToday",, "T") -> -2.26 | J42: =RTD("cqg.rtd", ,"ContractData",A42, "PerCentNetLastTrade",, "T")/100 -> -0.07663614785 | K42: =I42/RTD("cqg.rtd",,"StudyData",A42, "ATR", "MaType=Sim,Period=10", "ATR","D","-1","ALL",,,"FALSE","T")/100 -> -0.01228928766 | L42: =RTD("cqg.rtd", ,"ContractData",A42, "OPen",, "T") -> 29.06 | M42: =RTD("cqg.rtd", ,"ContractData", A42, "HIgh",, "T") -> 29.08 | N42: =RTD("cqg.rtd", ,"ContractData",A42, "LOw",, "T") -> 26.73 | O42: =RTD("cqg.rtd", ,"ContractData",A42, "T_CVol",, "T") -> 3021456 | Q42: =IFERROR(O42/RTD("cqg.rtd",,"StudyData",A42, "MA", "InputChoice=Vol,MAType=Sim,Period=21", "MA","D","-1","all",,,,"T"),"") -> 0.6093367228 | R42: =IWF!AH9 -> https://finance.yahoo.com/quote/VKTX
A43: =TRIM(IWF!AC10) -> S.US.FTRE | B43: News | C43: =RTD("cqg.rtd", ,"ContractData",A43, "LongDescription",, "T")&" ("&RIGHT(A43,LEN(A43)-5)&")" -> Fortrea Holdings Inc. (FTRE) | H43: =RTD("cqg.rtd", ,"ContractData",A43, "LastTradeToday",, "T") -> 5.51 | I43: =RTD("cqg.rtd", ,"ContractData",A43, "NetLastTradeToday",, "T") -> -0.42 | J43: =RTD("cqg.rtd", ,"ContractData",A43, "PerCentNetLastTrade",, "T")/100 -> -0.07082630691 | K43: =I43/RTD("cqg.rtd",,"StudyData",A43, "ATR", "MaType=Sim,Period=10", "ATR","D","-1","ALL",,,"FALSE","T")/100 -> -0.009150326797 | L43: =RTD("cqg.rtd", ,"ContractData",A43, "OPen",, "T") -> 5.78 | M43: =RTD("cqg.rtd", ,"ContractData", A43, "HIgh",, "T") -> 5.91 | N43: =RTD("cqg.rtd", ,"ContractData",A43, "LOw",, "T") -> 5.4 | O43: =RTD("cqg.rtd", ,"ContractData",A43, "T_CVol",, "T") -> 1179886 | Q43: =IFERROR(O43/RTD("cqg.rtd",,"StudyData",A43, "MA", "InputChoice=Vol,MAType=Sim,Period=21", "MA","D","-1","all",,,,"T"),"") -> 0.5088178668 | R43: =IWF!AH10 -> https://finance.yahoo.com/quote/FTRE
A44: =TRIM(IWF!AC11) -> S.US.REGN | B44: News | C44: =RTD("cqg.rtd", ,"ContractData",A44, "LongDescription",, "T")&" ("&RIGHT(A44,LEN(A44)-5)&")" -> Regeneron Pharm Inc (REGN) | H44: =RTD("cqg.rtd", ,"ContractData",A44, "LastTradeToday",, "T") -> 563.6 | I44: =RTD("cqg.rtd", ,"ContractData",A44, "NetLastTradeToday",, "T") -> -39.98 | J44: =RTD("cqg.rtd", ,"ContractData",A44, "PerCentNetLastTrade",, "T")/100 -> -0.06623811259 | K44: =I44/RTD("cqg.rtd",,"StudyData",A44, "ATR", "MaType=Sim,Period=10", "ATR","D","-1","ALL",,,"FALSE","T")/100 -> -0.0162000081 | L44: =RTD("cqg.rtd", ,"ContractData",A44, "OPen",, "T") -> 601.01 | M44: =RTD("cqg.rtd", ,"ContractData", A44, "HIgh",, "T") -> 606.87 | N44: =RTD("cqg.rtd", ,"ContractData",A44, "LOw",, "T") -> 559.17 | O44: =RTD("cqg.rtd", ,"ContractData",A44, "T_CVol",, "T") -> 964984 | Q44: =IFERROR(O44/RTD("cqg.rtd",,"StudyData",A44, "MA", "InputChoice=Vol,MAType=Sim,Period=21", "MA","D","-1","all",,,,"T"),"") -> 0.7624813953 | R44: =IWF!AH11 -> https://finance.yahoo.com/quote/REGN
A45: =TRIM(IWF!AC12) -> S.US.RGEN | B45: News | C45: =RTD("cqg.rtd", ,"ContractData",A45, "LongDescription",, "T")&" ("&RIGHT(A45,LEN(A45)-5)&")" -> Repligen Corp (RGEN) | H45: =RTD("cqg.rtd", ,"ContractData",A45, "LastTradeToday",, "T") -> 132.2 | I45: =RTD("cqg.rtd", ,"ContractData",A45, "NetLastTradeToday",, "T") -> -8.72 | J45: =RTD("cqg.rtd", ,"ContractData",A45, "PerCentNetLastTrade",, "T")/100 -> -0.06187908033 | K45: =I45/RTD("cqg.rtd",,"StudyData",A45, "ATR", "MaType=Sim,Period=10", "ATR","D","-1","ALL",,,"FALSE","T")/100 -> -0.01217877095 | L45: =RTD("cqg.rtd", ,"ContractData",A45, "OPen",, "T") -> 140.21 | M45: =RTD("cqg.rtd", ,"ContractData", A45, "HIgh",, "T") -> 141.99 | N45: =RTD("cqg.rtd", ,"ContractData",A45, "LOw",, "T") -> 130.27 | O45: =RTD("cqg.rtd", ,"ContractData",A45, "T_CVol",, "T") -> 720371 | Q45: =IFERROR(O45/RTD("cqg.rtd",,"StudyData",A45, "MA", "InputChoice=Vol,MAType=Sim,Period=21", "MA","D","-1","all",,,,"T"),"") -> 0.7424603625 | R45: =IWF!AH12 -> https://finance.yahoo.com/quote/RGEN
A46: =TRIM(IWF!AC13) -> S.US.TDG | B46: News | C46: =RTD("cqg.rtd", ,"ContractData",A46, "LongDescription",, "T")&" ("&RIGHT(A46,LEN(A46)-5)&")" -> TransDigm Group (TDG) | H46: =RTD("cqg.rtd", ,"ContractData",A46, "LastTradeToday",, "T") -> 1387.74 | I46: =RTD("cqg.rtd", ,"ContractData",A46, "NetLastTradeToday",, "T") -> -84.88 | J46: =RTD("cqg.rtd", ,"ContractData",A46, "PerCentNetLastTrade",, "T")/100 -> -0.05763876628 | K46: =I46/RTD("cqg.rtd",,"StudyData",A46, "ATR", "MaType=Sim,Period=10", "ATR","D","-1","ALL",,,"FALSE","T")/100 -> -0.02533806979 | L46: =RTD("cqg.rtd", ,"ContractData",A46, "OPen",, "T") -> 1416.43 | M46: =RTD("cqg.rtd", ,"ContractData", A46, "HIgh",, "T") -> 1445.46 | N46: =RTD("cqg.rtd", ,"ContractData",A46, "LOw",, "T") -> 1370.58 | O46: =RTD("cqg.rtd", ,"ContractData",A46, "T_CVol",, "T") -> 414076 | Q46: =IFERROR(O46/RTD("cqg.rtd",,"StudyData",A46, "MA", "InputChoice=Vol,MAType=Sim,Period=21", "MA","D","-1","all",,,,"T"),"") -> 1.189615878 | R46: =IWF!AH13 -> https://finance.yahoo.com/quote/TDG
A47: =TRIM(IWF!AC14) -> S.US.LLY | B47: News | C47: =RTD("cqg.rtd", ,"ContractData",A47, "LongDescription",, "T")&" ("&RIGHT(A47,LEN(A47)-5)&")" -> Lilly (Eli) & Company (LLY) | H47: =RTD("cqg.rtd", ,"ContractData",A47, "LastTradeToday",, "T") -> 774.49 | I47: =RTD("cqg.rtd", ,"ContractData",A47, "NetLastTradeToday",, "T") -> -46.97 | J47: =RTD("cqg.rtd", ,"ContractData",A47, "PerCentNetLastTrade",, "T")/100 -> -0.05717868186 | K47: =I47/RTD("cqg.rtd",,"StudyData",A47, "ATR", "MaType=Sim,Period=10", "ATR","D","-1","ALL",,,"FALSE","T")/100 -> -0.01407130018 | L47: =RTD("cqg.rtd", ,"ContractData",A47, "OPen",, "T") -> 816.89 | M47: =RTD("cqg.rtd", ,"ContractData", A47, "HIgh",, "T") -> 818.42 | N47: =RTD("cqg.rtd", ,"ContractData",A47, "LOw",, "T") -> 770.35 | O47: =RTD("cqg.rtd", ,"ContractData",A47, "T_CVol",, "T") -> 3726444 | Q47: =IFERROR(O47/RTD("cqg.rtd",,"StudyData",A47, "MA", "InputChoice=Vol,MAType=Sim,Period=21", "MA","D","-1","all",,,,"T"),"") -> 0.80285179 | R47: =IWF!AH14 -> https://finance.yahoo.com/quote/LLY
A48: =TRIM(IWF!AC15) -> S.US.WEN | B48: News | C48: =RTD("cqg.rtd", ,"ContractData",A48, "LongDescription",, "T")&" ("&RIGHT(A48,LEN(A48)-5)&")" -> The Wendy's Company (WEN) | H48: =RTD("cqg.rtd", ,"ContractData",A48, "LastTradeToday",, "T") -> 11.86 | I48: =RTD("cqg.rtd", ,"ContractData",A48, "NetLastTradeToday",, "T") -> -0.66 | J48: =RTD("cqg.rtd", ,"ContractData",A48, "PerCentNetLastTrade",, "T")/100 -> -0.05271565495 | K48: =I48/RTD("cqg.rtd",,"StudyData",A48, "ATR", "MaType=Sim,Period=10", "ATR","D","-1","ALL",,,"FALSE","T")/100 -> -0.01808219178 | L48: =RTD("cqg.rtd", ,"ContractData",A48, "OPen",, "T") -> 12.45 | M48: =RTD("cqg.rtd", ,"ContractData", A48, "HIgh",, "T") -> 12.45 | N48: =RTD("cqg.rtd", ,"ContractData",A48, "LOw",, "T") -> 11.75 | O48: =RTD("cqg.rtd", ,"ContractData",A48, "T_CVol",, "T") -> 6357262 | Q48: =IFERROR(O48/RTD("cqg.rtd",,"StudyData",A48, "MA", "InputChoice=Vol,MAType=Sim,Period=21", "MA","D","-1","all",,,,"T"),"") -> 1.15702607 | R48: =IWF!AH15 -> https://finance.yahoo.com/quote/WEN
C49: CQG Inc., Copyright © 2025 | G49: Designed by Thom Hartle | J49: iShares is a registered trademark of BlackRock, Inc. S&P® is a registered trademark of Standard & Poor’s Financial Services LLC. Russell indexes are trademarks of the London Stock Exchange Group companies. | Z49: =Z52 -> 34% of the stocks in the ETF are higher today
Z51: =IWF!B392 -> 0.3401534527 | AA51: of the stocks in the ETF are higher today
Z52: =TEXT(Display!Z51,"0%")&" "&Display!AA51 -> 34% of the stocks in the ETF are higher today

Sheet IWF (hidden)
A1: S.US.AAL | B1: =IF(J1>0,1,0) -> 0 | C1: S.US.AAL | D1: =RTD("cqg.rtd", ,"ContractData",C1, "LongDescription",, "T") -> American Airlines Group Inc. | H1: =RTD("cqg.rtd", ,"ContractData",C1, "LastTradeToday",, "T") -> 10.5 | I1: =RTD("cqg.rtd", ,"ContractData",C1, "NetLastTradeToday",, "T") -> -0.16 | J1: =IFERROR(RTD("cqg.rtd", ,"ContractData",C1, "PerCentNetLastTrade",, "T")/100,"") -> -0.01500938086 | K1: =RTD("cqg.rtd", ,"ContractData", C1, "T_CVol",, "T") -> 52514292 | L1: 1 | M1: =IFERROR(RANK($J1,$J$1:J$391)+COUNTIF($J$1:J1,J1)-1,"") -> 317 | N1: =C1 -> S.US.AAL | O1: =VLOOKUP($L1,$M$1:$N$391,2,FALSE) -> S.US.CEG | P1: =RTD("cqg.rtd", ,"ContractData",O1, "LongDescription",, "T") -> Constellation Energy Corporation | Q1: =RTD("cqg.rtd", ,"ContractData",O1, "PerCentNetLastTrade",, "T")/100 -> 0.117331937 | R1: ="https://finance.yahoo.com/quote/"&RIGHT(O1,(LEN(O1)-5)) -> https://finance.yahoo.com/quote/CEG | T1: =IF(Q1>=0,Q1,NA()) -> 0.117331937 | U1: =IF(Q1>=0,NA(),-1*Q1) ->  | W1: =RTD("cqg.rtd", ,"ContractData",O1, "LongDescription",, "T") -> Constellation Energy Corporation | Z1: =IFERROR(T1,Q1) -> 0.117331937 | AA1: =MIN(J1:J391) -> -0.2340559221 | AB1: =VLOOKUP(AA1,J1:O391,4,FALSE) -> 391 | AC1: =VLOOKUP($AB1,$M$1:$N$391,2,FALSE) -> S.US.SRPT | AD1: =RTD("cqg.rtd", ,"ContractData",AC1, "PerCentNetLastTrade",, "T")/100 -> -0.2340559221 | AE1: =RTD("cqg.rtd", ,"ContractData",AC1, "LongDescription",, "T") -> Sarepta Therapeutics, Inc. | AF1: =IFERROR(U1,"") ->  | AG1: =AD1*-1 -> 0.2340559221 | AH1: ="https://finance.yahoo.com/quote/"&RIGHT(AC1,(LEN(AC1)-5)) -> https://finance.yahoo.com/quote/SRPT
A2: S.US.AAON | B2: =IF(J2>0,1,0) -> 0 | C2: S.US.AAON | D2: =RTD("cqg.rtd", ,"ContractData",C2, "LongDescription",, "T") -> AAON | H2: =RTD("cqg.rtd", ,"ContractData",C2, "LastTradeToday",, "T") -> 98.05 | I2: =RTD("cqg.rtd", ,"ContractData",C2, "NetLastTradeToday",, "T") -> -0.87 | J2: =IFERROR(RTD("cqg.rtd", ,"ContractData",C2, "PerCentNetLastTrade",, "T")/100,"") -> -0.008794985847 | K2: =RTD("cqg.rtd", ,"ContractData", C2, "T_CVol",, "T") -> 426365 | L2: =L1+1 -> 2 | M2: =IFERROR(RANK($J2,$J$1:J$391)+COUNTIF($J$1:J2,J2)-1,"") -> 272 | N2: =C2 -> S.US.AAON | O2: =VLOOKUP($L2,$M$1:$N$391,2,FALSE) -> S.US.CE | P2: =RTD("cqg.rtd", ,"ContractData",O2, "LongDescription",, "T") -> Celanese Corp | Q2: =RTD("cqg.rtd", ,"ContractData",O2, "PerCentNetLastTrade",, "T")/100 -> 0.09358945723 | R2: ="https://finance.yahoo.com/quote/"&RIGHT(O2,(LEN(O2)-5)) -> https://finance.yahoo.com/quote/CE | T2: =IF(Q2>=0,Q2,NA()) -> 0.09358945723 | U2: =IF(Q2>=0,NA(),-1*Q2) ->  | W2: =RTD("cqg.rtd", ,"ContractData",O2, "LongDescription",, "T") -> Celanese Corp | Z2: =IFERROR(T2,Q2) -> 0.09358945723 | AB2: =AB1-1 -> 390 | AC2: =VLOOKUP($AB2,$M$1:$N$391,2,FALSE) -> S.US.UWMC | AD2: =RTD("cqg.rtd", ,"ContractData",AC2, "PerCentNetLastTrade",, "T")/100 -> -0.1488469602 | AE2: =RTD("cqg.rtd", ,"ContractData",AC2, "LongDescription",, "T") -> UWM Holdings Corporation | AF2: =IFERROR(U2,"") ->  | AG2: =AD2*-1 -> 0.1488469602 | AH2: ="https://finance.yahoo.com/quote/"&RIGHT(AC2,(LEN(AC2)-5)) -> https://finance.yahoo.com/quote/UWMC
A3: S.US.AAPL | B3: 1 | C3: S.US.AAPL | D3: =RTD("cqg.rtd", ,"ContractData",C3, "LongDescription",, "T") -> Apple Inc | H3: =RTD("cqg.rtd", ,"ContractData",C3, "LastTradeToday",, "T") -> 199.84 | I3: =RTD("cqg.rtd", ,"ContractData",C3, "NetLastTradeToday",, "T") -> 0.95 | J3: =IFERROR(RTD("cqg.rtd", ,"ContractData",C3, "PerCentNetLastTrade",, "T")/100,"") -> 0.004776509628 | K3: =RTD("cqg.rtd", ,"ContractData", C3, "T_CVol",, "T") -> 35844587 | L3: =L2+1 -> 3 | M3: =IFERROR(RANK($J3,$J$1:J$391)+COUNTIF($J$1:J3,J3)-1,"") -> 86 | N3: S.US.AAPL | O3: S.US.NBIX | P3: =RTD("cqg.rtd", ,"ContractData",O3, "LongDescription",, "T") -> Neurocrine Biosciences Inc | Q3: =RTD("cqg.rtd", ,"ContractData",O3, "PerCentNetLastTrade",, "T")/100 -> 0.0715261959 | R3: https://finance.yahoo.com/quote/NBIX | T3: 0.0715261959 | W3: =RTD("cqg.rtd", ,"ContractData",O3, "LongDescription",, "T") -> Neurocrine Biosciences Inc | Z3: 0.0715261959 | AB3: =AB2-1 -> 389 | AC3: S.US.LSCC | AD3: =RTD("cqg.rtd", ,"ContractData",AC3, "PerCentNetLastTrade",, "T")/100 -> -0.1185665269 | AE3: =RTD("cqg.rtd", ,"ContractData",AC3, "LongDescription",, "T") -> Lattice Semiconductor | AG3: 0.1185665269 | AH3: https://finance.yahoo.com/quote/LSCC
A4: S.US.ABBV | B4: 0 | C4: S.US.ABBV | D4: =RTD("cqg.rtd", ,"ContractData",C4, "LongDescription",, "T") -> AbbVie Inc. | H4: =RTD("cqg.rtd", ,"ContractData",C4, "LastTradeToday",, "T") -> 186.99 | I4: =RTD("cqg.rtd", ,"ContractData",C4, "NetLastTradeToday",, "T") -> -9.08 | J4: =IFERROR(RTD("cqg.rtd", ,"ContractData",C4, "PerCentNetLastTrade",, "T")/100,"") -> -0.04630999133 | K4: =RTD("cqg.rtd", ,"ContractData", C4, "T_CVol",, "T") -> 6214912 | L4: 4 | M4: =IFERROR(RANK($J4,$J$1:J$391)+COUNTIF($J$1:J4,J4)-1,"") -> 372 | N4: S.US.ABBV | O4: S.US.CELH | P4: =RTD("cqg.rtd", ,"ContractData",O4, "LongDescription",, "T") -> Celsius Holdings, Inc. | Q4: =RTD("cqg.rtd", ,"ContractData",O4, "PerCentNetLastTrade",, "T")/100 -> 0.05753909708 | R4: https://finance.yahoo.com/quote/CELH | T4: 0.05753909708 | W4: =RTD("cqg.rtd", ,"ContractData",O4, "LongDescription",, "T") -> Celsius Holdings, Inc. | Z4: 0.05753909708 | AB4: 388 | AC4: S.US.PLTR | AD4: =RTD("cqg.rtd", ,"ContractData",AC4, "PerCentNetLastTrade",, "T")/100 -> -0.1177183485 | AE4: =RTD("cqg.rtd", ,"ContractData",AC4, "LongDescription",, "T") -> Palantir Technologies Inc. | AG4: 0.1177183485 | AH4: https://finance.yahoo.com/quote/PLTR
A5: S.US.ABNB | B5: 0 | C5: S.US.ABNB | D5: =RTD("cqg.rtd", ,"ContractData",C5, "LongDescription",, "T") -> Airbnb, Inc. Class A | H5: =RTD("cqg.rtd", ,"ContractData",C5, "LastTradeToday",, "T") -> 122.12 | I5: =RTD("cqg.rtd", ,"ContractData",C5, "NetLastTradeToday",, "T") -> -2.77 | J5: =IFERROR(RTD("cqg.rtd", ,"ContractData",C5, "PerCentNetLastTrade",, "T")/100,"") -> -0.02217951798 | K5: =RTD("cqg.rtd", ,"ContractData", C5, "T_CVol",, "T") -> 3276427 | L5: 5 | M5: =IFERROR(RANK($J5,$J$1:J$391)+COUNTIF($J$1:J5,J5)-1,"") -> 342 | N5: S.US.ABNB | O5: S.US.KBR | P5: =RTD("cqg.rtd", ,"ContractData",O5, "LongDescription",, "T") -> KBR, Inc | Q5: =RTD("cqg.rtd", ,"ContractData",O5, "PerCentNetLastTrade",, "T")/100 -> 0.05351948807 | R5: https://finance.yahoo.com/quote/KBR | T5: 0.05351948807 | W5: =RTD("cqg.rtd", ,"ContractData",O5, "LongDescription",, "T") -> KBR, Inc | Z5: 0.05351948807 | AB5: 387 | AC5: S.US.VRTX | AD5: =RTD("cqg.rtd", ,"ContractData",AC5, "PerCentNetLastTrade",, "T")/100 -> -0.109418421 | AE5: =RTD("cqg.rtd", ,"ContractData",AC5, "LongDescription",, "T") -> Vertex Pharmaceuticals Incorporated | AG5: 0.109418421 | AH5: https://finance.yahoo.com/quote/VRTX
A6: S.US.ADBE | B6: 1 | C6: S.US.ADBE | D6: =RTD("cqg.rtd", ,"ContractData",C6, "LongDescription",, "T") -> Adobe Inc. | H6: =RTD("cqg.rtd", ,"ContractData",C6, "LastTradeToday",, "T") -> 384.54 | I6: =RTD("cqg.rtd", ,"ContractData",C6, "NetLastTradeToday",, "T") -> 3.48 | J6: =IFERROR(RTD("cqg.rtd", ,"ContractData",C6, "PerCentNetLastTrade",, "T")/100,"") -> 0.009132420091 | K6: =RTD("cqg.rtd", ,"ContractData", C6, "T_CVol",, "T") -> 1441783 | L6: 6 | M6: =IFERROR(RANK($J6,$J$1:J$391)+COUNTIF($J$1:J6,J6)-1,"") -> 49 | N6: S.US.ADBE | O6: S.US.SEE | P6: =RTD("cqg.rtd", ,"ContractData",O6, "LongDescription",, "T") -> Sealed Air Corp New | Q6: =RTD("cqg.rtd", ,"ContractData",O6, "PerCentNetLastTrade",, "T")/100 -> 0.04867417363 | R6: https://finance.yahoo.com/quote/SEE | T6: 0.04867417363 | W6: =RTD("cqg.rtd", ,"ContractData",O6, "LongDescription",, "T") -> Sealed Air Corp New | Z6: 0.04867417363 | AB6: 386 | AC6: S.US.RARE | AD6: =RTD("cqg.rtd", ,"ContractData",AC6, "PerCentNetLastTrade",, "T")/100 -> -0.09621816311 | AE6: =RTD("cqg.rtd", ,"ContractData",AC6, "LongDescription",, "T") -> Ultragenyx Pharmaceutical Inc. | AG6: 0.09621816311 | AH6: https://finance.yahoo.com/quote/RARE
A7: S.US.ADP | B7: 0 | C7: S.US.ADP | D7: =RTD("cqg.rtd", ,"ContractData",C7, "LongDescription",, "T") -> Auto Data Processing Inc | H7: =RTD("cqg.rtd", ,"ContractData",C7, "LastTradeToday",, "T") -> 303.53 | I7: =RTD("cqg.rtd", ,"ContractData",C7, "NetLastTradeToday",, "T") -> -0.43 | J7: =IFERROR(RTD("cqg.rtd", ,"ContractData",C7, "PerCentNetLastTrade",, "T")/100,"") -> -0.001414659824 | K7: =RTD("cqg.rtd", ,"ContractData", C7, "T_CVol",, "T") -> 411489 | L7: 7 | M7: =IFERROR(RANK($J7,$J$1:J$391)+COUNTIF($J$1:J7,J7)-1,"") -> 159 | N7: S.US.ADP | O7: S.US.VST | P7: =RTD("cqg.rtd", ,"ContractData",O7, "LongDescription",, "T") -> Vistra Corp. | Q7: =RTD("cqg.rtd", ,"ContractData",O7, "PerCentNetLastTrade",, "T")/100 -> 0.04271428571 | R7: https://finance.yahoo.com/quote/VST | T7: 0.04271428571 | W7: =RTD("cqg.rtd", ,"ContractData",O7, "LongDescription",, "T") -> Vistra Corp. | Z7: 0.04271428571 | AB7: 385 | AC7: S.US.DASH | AD7: =RTD("cqg.rtd", ,"ContractData",AC7, "PerCentNetLastTrade",, "T")/100 -> -0.08164556962 | AE7: =RTD("cqg.rtd", ,"ContractData",AC7, "LongDescription",, "T") -> DoorDash, Inc | AG7: 0.08164556962 | AH7: https://finance.yahoo.com/quote/DASH
A8: S.US.ADSK | B8: 0 | C8: S.US.ADSK | D8: =RTD("cqg.rtd", ,"ContractData",C8, "LongDescription",, "T") -> Autodesk Inc | H8: =RTD("cqg.rtd", ,"ContractData",C8, "LastTradeToday",, "T") -> 280 | I8: =RTD("cqg.rtd", ,"ContractData",C8, "NetLastTradeToday",, "T") -> -0.07 | J8: =IFERROR(RTD("cqg.rtd", ,"ContractData",C8, "PerCentNetLastTrade",, "T")/100,"") -> -0.0002499375156 | K8: =RTD("cqg.rtd", ,"ContractData", C8, "T_CVol",, "T") -> 346276 | L8: 8 | M8: =IFERROR(RANK($J8,$J$1:J$391)+COUNTIF($J$1:J8,J8)-1,"") -> 139 | N8: S.US.ADSK | O8: S.US.LPX | P8: =RTD("cqg.rtd", ,"ContractData",O8, "LongDescription",, "T") -> Louisiana-Pacific Corp | Q8: =RTD("cqg.rtd", ,"ContractData",O8, "PerCentNetLastTrade",, "T")/100 -> 0.04181423512 | R8: https://finance.yahoo.com/quote/LPX | T8: 0.04181423512 | W8: =RTD("cqg.rtd", ,"ContractData",O8, "LongDescription",, "T") -> Louisiana-Pacific Corp | Z8: 0.04181423512 | AB8: 384 | AC8: S.US.EXEL | AD8: =RTD("cqg.rtd", ,"ContractData",AC8, "PerCentNetLastTrade",, "T")/100 -> -0.08007028112 | AE8: =RTD("cqg.rtd", ,"ContractData",AC8, "LongDescription",, "T") -> Exelixis, Inc. | AG8: 0.08007028112 | AH8: https://finance.yahoo.com/quote/EXEL
A9: S.US.AJG | B9: 1 | C9: S.US.AJG | D9: =RTD("cqg.rtd", ,"ContractData",C9, "LongDescription",, "T") -> Arthur J Gallagher Co | H9: =RTD("cqg.rtd", ,"ContractData",C9, "LastTradeToday",, "T") -> 338.86 | I9: =RTD("cqg.rtd", ,"ContractData",C9, "NetLastTradeToday",, "T") -> 4 | J9: =IFERROR(RTD("cqg.rtd", ,"ContractData",C9, "PerCentNetLastTrade",, "T")/100,"") -> 0.01194529057 | K9: =RTD("cqg.rtd", ,"ContractData", C9, "T_CVol",, "T") -> 916865 | L9: 9 | M9: =IFERROR(RANK($J9,$J$1:J$391)+COUNTIF($J$1:J9,J9)-1,"") -> 39 | N9: S.US.AJG | O9: S.US.BAH | P9: =RTD("cqg.rtd", ,"ContractData",O9, "LongDescription",, "T") -> Booz Allen Hamilton Holding Corporation | Q9: =RTD("cqg.rtd", ,"ContractData",O9, "PerCentNetLastTrade",, "T")/100 -> 0.03650247546 | R9: https://finance.yahoo.com/quote/BAH | T9: 0.03650247546 | W9: =RTD("cqg.rtd", ,"ContractData",O9, "LongDescription",, "T") -> Booz Allen Hamilton Holding Corporation | Z9: 0.03650247546 | AB9: 383 | AC9: S.US.VKTX | AD9: =RTD("cqg.rtd", ,"ContractData",AC9, "PerCentNetLastTrade",, "T")/100 -> -0.07663614785 | AE9: =RTD("cqg.rtd", ,"ContractData",AC9, "LongDescription",, "T") -> Viking Therapeutics, Inc. | AG9: 0.07663614785 | AH9: https://finance.yahoo.com/quote/VKTX
A10: S.US.ALAB | B10: 0 | C10: S.US.ALAB | D10: =RTD("cqg.rtd", ,"ContractData",C10, "LongDescription",, "T") -> Astera Labs, Inc. | H10: =RTD("cqg.rtd", ,"ContractData",C10, "LastTradeToday",, "T") -> 71.94 | I10: =RTD("cqg.rtd", ,"ContractData",C10, "NetLastTradeToday",, "T") -> -0.21 | J10: =IFERROR(RTD("cqg.rtd", ,"ContractData",C10, "PerCentNetLastTrade",, "T")/100,"") -> -0.002910602911 | K10: =RTD("cqg.rtd", ,"ContractData", C10, "T_CVol",, "T") -> 2849293 | L10: 10 | M10: =IFERROR(RANK($J10,$J$1:J$391)+COUNTIF($J$1:J10,J10)-1,"") -> 181 | N10: S.US.ALAB | O10: S.US.NFE | P10: =RTD("cqg.rtd", ,"ContractData",O10, "LongDescription",, "T") -> New Fortress Energy Inc. Class A | Q10: =RTD("cqg.rtd", ,"ContractData",O10, "PerCentNetLastTrade",, "T")/100 -> 0.03429602888 | R10: https://finance.yahoo.com/quote/NFE | T10: 0.03429602888 | W10: =RTD("cqg.rtd", ,"ContractData",O10, "LongDescription",, "T") -> New Fortress Energy Inc. Class A | Z10: 0.03429602888 | AB10: 382 | AC10: S.US.FTRE | AD10: =RTD("cqg.rtd", ,"ContractData",AC10, "PerCentNetLastTrade",, "T")/100 -> -0.07082630691 | AE10: =RTD("cqg.rtd", ,"ContractData",AC10, "LongDescription",, "T") -> Fortrea Holdings Inc. | AG10: 0.07082630691 | AH10: https://finance.yahoo.com/quote/FTRE
A11: S.US.ALGN | B11: 0 | C11: S.US.ALGN | D11: =RTD("cqg.rtd", ,"ContractData",C11, "LongDescription",, "T") -> Align Technology Inc | H11: =RTD("cqg.rtd", ,"ContractData",C11, "LastTradeToday",, "T") -> 174.96 | I11: =RTD("cqg.rtd", ,"ContractData",C11, "NetLastTradeToday",, "T") -> -2.65 | J11: =IFERROR(RTD("cqg.rtd", ,"ContractData",C11, "PerCentNetLastTrade",, "T")/100,"") -> -0.01492033106 | K11: =RTD("cqg.rtd", ,"ContractData", C11, "T_CVol",, "T") -> 1004906 | L11: 11 | M11: =IFERROR(RANK($J11,$J$1:J$391)+COUNTIF($J$1:J11,J11)-1,"") -> 315 | N11: S.US.ALGN | O11: S.US.SMCI | P11: =RTD("cqg.rtd", ,"ContractData",O11, "LongDescription",, "T") -> Super Micro Computer | Q11: =RTD("cqg.rtd", ,"ContractData",O11, "PerCentNetLastTrade",, "T")/100 -> 0.03357165061 | R11: https://finance.yahoo.com/quote/SMCI | T11: 0.03357165061 | W11: =RTD("cqg.rtd", ,"ContractData",O11, "LongDescription",, "T") -> Super Micro Computer | Z11: 0.03357165061 | AB11: 381 | AC11: S.US.REGN | AD11: =RTD("cqg.rtd", ,"ContractData",AC11, "PerCentNetLastTrade",, "T")/100 -> -0.06623811259 | AE11: =RTD("cqg.rtd", ,"ContractData",AC11, "LongDescription",, "T") -> Regeneron Pharm Inc | AG11: 0.06623811259 | AH11: https://finance.yahoo.com/quote/REGN
A12: S.US.ALL | B12: 1 | C12: S.US.ALL | D12: =RTD("cqg.rtd", ,"ContractData",C12, "LongDescription",, "T") -> Allstate Corporation | H12: =RTD("cqg.rtd", ,"ContractData",C12, "LastTradeToday",, "T") -> 202 | I12: =RTD("cqg.rtd", ,"ContractData",C12, "NetLastTradeToday",, "T") -> 1.75 | J12: =IFERROR(RTD("cqg.rtd", ,"ContractData",C12, "PerCentNetLastTrade",, "T")/100,"") -> 0.008739076155 | K12: =RTD("cqg.rtd", ,"ContractData", C12, "T_CVol",, "T") -> 534480 | L12: 12 | M12: =IFERROR(RANK($J12,$J$1:J$391)+COUNTIF($J$1:J12,J12)-1,"") -> 52 | N12: S.US.ALL | O12: S.US.RYAN | P12: =RTD("cqg.rtd", ,"ContractData",O12, "LongDescription",, "T") -> Ryan Specialty Group Holdings, Inc. | Q12: =RTD("cqg.rtd", ,"ContractData",O12, "PerCentNetLastTrade",, "T")/100 -> 0.02483003252 | R12: https://finance.yahoo.com/quote/RYAN | T12: 0.02483003252 | W12: =RTD("cqg.rtd", ,"ContractData",O12, "LongDescription",, "T") -> Ryan Specialty Group Holdings, Inc. | Z12: 0.02483003252 | AB12: 380 | AC12: S.US.RGEN | AD12: =RTD("cqg.rtd", ,"ContractData",AC12, "PerCentNetLastTrade",, "T")/100 -> -0.06187908033 | AE12: =RTD("cqg.rtd", ,"ContractData",AC12, "LongDescription",, "T") -> Repligen Corp | AG12: 0.06187908033 | AH12: https://finance.yahoo.com/quote/RGEN
A13: S.US.ALLY | B13: 0 | C13: S.US.ALLY | D13: =RTD("cqg.rtd", ,"ContractData",C13, "LongDescription",, "T") -> Ally Financial, Inc. | H13: =RTD("cqg.rtd", ,"ContractData",C13, "LastTradeToday",, "T") -> 32.58 | I13: =RTD("cqg.rtd", ,"ContractData",C13, "NetLastTradeToday",, "T") -> -0.44 | J13: =IFERROR(RTD("cqg.rtd", ,"ContractData",C13, "PerCentNetLastTrade",, "T")/100,"") -> -0.01332525742 | K13: =RTD("cqg.rtd", ,"ContractData", C13, "T_CVol",, "T") -> 979973 | L13: 13 | M13: =IFERROR(RANK($J13,$J$1:J$391)+COUNTIF($J$1:J13,J13)-1,"") -> 307 | N13: S.US.ALLY | O13: S.US.FRPT | P13: =RTD("cqg.rtd", ,"ContractData",O13, "LongDescription",, "T") -> Freshpet, Inc. | Q13: =RTD("cqg.rtd", ,"ContractData",O13, "PerCentNetLastTrade",, "T")/100 -> 0.02414970287 | R13: https://finance.yahoo.com/quote/FRPT | T13: 0.02414970287 | W13: =RTD("cqg.rtd", ,"ContractData",O13, "LongDescription",, "T") -> Freshpet, Inc. | Z13: 0.02414970287 | AB13: 379 | AC13: S.US.TDG | AD13: =RTD("cqg.rtd", ,"ContractData",AC13, "PerCentNetLastTrade",, "T")/100 -> -0.05763876628 | AE13: =RTD("cqg.rtd", ,"ContractData",AC13, "LongDescription",, "T") -> TransDigm Group | AG13: 0.05763876628 | AH13: https://finance.yahoo.com/quote/TDG
A14: S.US.ALNY | B14: 0 | C14: S.US.ALNY | D14: =RTD("cqg.rtd", ,"ContractData",C14, "LongDescription",, "T") -> Alnylam Pharmaceuticals, Inc. | H14: =RTD("cqg.rtd", ,"ContractData",C14, "LastTradeToday",, "T") -> 270.76 | I14: =RTD("cqg.rtd", ,"ContractData",C14, "NetLastTradeToday",, "T") -> -2.79 | J14: =IFERROR(RTD("cqg.rtd", ,"ContractData",C14, "PerCentNetLastTrade",, "T")/100,"") -> -0.01019923232 | K14: =RTD("cqg.rtd", ,"ContractData", C14, "T_CVol",, "T") -> 1042615 | L14: 14 | M14: =IFERROR(RANK($J14,$J$1:J$391)+COUNTIF($J$1:J14,J14)-1,"") -> 283 | N14: S.US.ALNY | O14: S.US.MTDR | P14: =RTD("cqg.rtd", ,"ContractData",O14, "LongDescription",, "T") -> Matador Resources Company | Q14: =RTD("cqg.rtd", ,"ContractData",O14, "PerCentNetLastTrade",, "T")/100 -> 0.02345523329 | R14: https://finance.yahoo.com/quote/MTDR | T14: 0.02345523329 | W14: =RTD("cqg.rtd", ,"ContractData",O14, "LongDescription",, "T") -> Matador Resources Company | Z14: 0.02345523329 | AB14: 378 | AC14: S.US.LLY | AD14: =RTD("cqg.rtd", ,"ContractData",AC14, "PerCentNetLastTrade",, "T")/100 -> -0.05717868186 | AE14: =RTD("cqg.rtd", ,"ContractData",AC14, "LongDescription",, "T") -> Lilly (Eli) & Company | AG14: 0.05717868186 | AH14: https://finance.yahoo.com/quote/LLY
A15: S.US.AM | B15: 1 | C15: S.US.AM | D15: =RTD("cqg.rtd", ,"ContractData",C15, "LongDescription",, "T") -> Antero Resources Midstream LLC | H15: =RTD("cqg.rtd", ,"ContractData",C15, "LastTradeToday",, "T") -> 17.58 | I15: =RTD("cqg.rtd", ,"ContractData",C15, "NetLastTradeToday",, "T") -> 0.02 | J15: =IFERROR(RTD("cqg.rtd", ,"ContractData",C15, "PerCentNetLastTrade",, "T")/100,"") -> 0.001138952164 | K15: =RTD("cqg.rtd", ,"ContractData", C15, "T_CVol",, "T") -> 1762489 | L15: 15 | M15: =IFERROR(RANK($J15,$J$1:J$391)+COUNTIF($J$1:J15,J15)-1,"") -> 117 | N15: S.US.AM | O15: S.US.HCA | P15: =RTD("cqg.rtd", ,"ContractData",O15, "LongDescription",, "T") -> HCA Holdings Inc. | Q15: =RTD("cqg.rtd", ,"ContractData",O15, "PerCentNetLastTrade",, "T")/100 -> 0.02226801763 | R15: https://finance.yahoo.com/quote/HCA | T15: 0.02226801763 | W15: =RTD("cqg.rtd", ,"ContractData",O15, "LongDescription",, "T") -> HCA Holdings Inc. | Z15: 0.02226801763 | AB15: 377 | AC15: S.US.WEN | AD15: =RTD("cqg.rtd", ,"ContractData",AC15, "PerCentNetLastTrade",, "T")/100 -> -0.05271565495 | AE15: =RTD("cqg.rtd", ,"ContractData",AC15, "LongDescription",, "T") -> The Wendy's Company | AG15: 0.05271565495 | AH15: https://finance.yahoo.com/quote/WEN
A16: S.US.AMAT | B16: 0 | C16: S.US.AMAT | D16: =RTD("cqg.rtd", ,"ContractData",C16, "LongDescription",, "T") -> Applied Materials Inc | H16: =RTD("cqg.rtd", ,"ContractData",C16, "LastTradeToday",, "T") -> 153.99 | I16: =RTD("cqg.rtd", ,"ContractData",C16, "NetLastTradeToday",, "T") -> -0.62 | J16: =IFERROR(RTD("cqg.rtd", ,"ContractData",C16, "PerCentNetLastTrade",, "T")/100,"") -> -0.004010089904 | K16: =RTD("cqg.rtd", ,"ContractData", C16, "T_CVol",, "T") -> 1942053 | L16: 16 | M16: =IFERROR(RANK($J16,$J$1:J$391)+COUNTIF($J$1:J16,J16)-1,"") -> 204 | N16: S.US.AMAT | O16: S.US.DXCM
A17: S.US.AMD | B17: 0 | C17: S.US.AMD | D17: =RTD("cqg.rtd", ,"ContractData",C17, "LongDescription",, "T") -> Advanced Micro Devices | H17: =RTD("cqg.rtd", ,"ContractData",C17, "LastTradeToday",, "T") -> 99.81 | I17: =RTD("cqg.rtd", ,"ContractData",C17, "NetLastTradeToday",, "T") -> -0.78 | J17: =IFERROR(RTD("cqg.rtd", ,"ContractData",C17, "PerCentNetLastTrade",, "T")/100,"") -> -0.007754249925 | K17: =RTD("cqg.rtd", ,"ContractData", C17, "T_CVol",, "T") -> 29888529 | L17: 17 | M17: =IFERROR(RANK($J17,$J$1:J$391)+COUNTIF($J$1:J17,J17)-1,"") -> 261 | N17: S.US.AMD | O17: S.US.SCCO
A18: S.US.AMGN | B18: 0 | C18: S.US.AMGN | D18: =RTD("cqg.rtd", ,"ContractData",C18, "LongDescription",, "T") -> Amgen Inc | H18: =RTD("cqg.rtd", ,"ContractData",C18, "LastTradeToday",, "T") -> 270.42 | I18: =RTD("cqg.rtd", ,"ContractData",C18, "NetLastTradeToday",, "T") -> -9.64 | J18: =IFERROR(RTD("cqg.rtd", ,"ContractData",C18, "PerCentNetLastTrade",, "T")/100,"") -> -0.03442119546 | K18: =RTD("cqg.rtd", ,"ContractData", C18, "T_CVol",, "T") -> 2165051 | L18: 18 | M18: =IFERROR(RANK($J18,$J$1:J$391)+COUNTIF($J$1:J18,J18)-1,"") -> 363 | N18: S.US.AMGN | O18: S.US.IRDM
A19: S.US.AMP | B19: 0 | C19: S.US.AMP | D19: =RTD("cqg.rtd", ,"ContractData",C19, "LongDescription",, "T") -> Ameriprise Financial Inc | H19: =RTD("cqg.rtd", ,"ContractData",C19, "LastTradeToday",, "T") -> 477.47 | I19: =RTD("cqg.rtd", ,"ContractData",C19, "NetLastTradeToday",, "T") -> -3.34 | J19: =IFERROR(RTD("cqg.rtd", ,"ContractData",C19, "PerCentNetLastTrade",, "T")/100,"") -> -0.006946610927 | K19: =RTD("cqg.rtd", ,"ContractData", C19, "T_CVol",, "T") -> 174319 | L19: 19 | M19: =IFERROR(RANK($J19,$J$1:J$391)+COUNTIF($J$1:J19,J19)-1,"") -> 251 | N19: S.US.AMP | O19: S.US.GTLB
A20: S.US.AMT | B20: 1 | C20: S.US.AMT | D20: =RTD("cqg.rtd", ,"ContractData",C20, "LongDescription",, "T") -> American Tower Corp ClA | H20: =RTD("cqg.rtd", ,"ContractData",C20, "LastTradeToday",, "T") -> 224.11 | I20: =RTD("cqg.rtd", ,"ContractData",C20, "NetLastTradeToday",, "T") -> 0.24 | J20: =IFERROR(RTD("cqg.rtd", ,"ContractData",C20, "PerCentNetLastTrade",, "T")/100,"") -> 0.001072050744 | K20: =RTD("cqg.rtd", ,"ContractData", C20, "T_CVol",, "T") -> 820778 | L20: 20 | M20: =IFERROR(RANK($J20,$J$1:J$391)+COUNTIF($J$1:J20,J20)-1,"") -> 118 | N20: S.US.AMT | O20: S.US.MSI
A21: S.US.AMZN | B21: 0 | C21: S.US.AMZN | D21: =RTD("cqg.rtd", ,"ContractData",C21, "LongDescription",, "T") -> Amazon.com Inc | H21: =RTD("cqg.rtd", ,"ContractData",C21, "LastTradeToday",, "T") -> 185.69 | I21: =RTD("cqg.rtd", ,"ContractData",C21, "NetLastTradeToday",, "T") -> -0.66 | J21: =IFERROR(RTD("cqg.rtd", ,"ContractData",C21, "PerCentNetLastTrade",, "T")/100,"") -> -0.003541722565 | K21: =RTD("cqg.rtd", ,"ContractData", C21, "T_CVol",, "T") -> 19961860 | L21: 21 | M21: =IFERROR(RANK($J21,$J$1:J$391)+COUNTIF($J$1:J21,J21)-1,"") -> 195 | N21: S.US.AMZN | O21: S.US.OKTA
A22: S.US.ANET | B22: 1 | C22: S.US.ANET | D22: =RTD("cqg.rtd", ,"ContractData",C22, "LongDescription",, "T") -> Arista Networks, Inc. | H22: =RTD("cqg.rtd", ,"ContractData",C22, "LastTradeToday",, "T") -> 91.57 | I22: =RTD("cqg.rtd", ,"ContractData",C22, "NetLastTradeToday",, "T") -> 1.19 | J22: =IFERROR(RTD("cqg.rtd", ,"ContractData",C22, "PerCentNetLastTrade",, "T")/100,"") -> 0.01316662979 | K22: =RTD("cqg.rtd", ,"ContractData", C22, "T_CVol",, "T") -> 7912348 | L22: 22 | M22: =IFERROR(RANK($J22,$J$1:J$391)+COUNTIF($J$1:J22,J22)-1,"") -> 34 | N22: S.US.ANET | O22: S.US.VVV
A23: S.US.APH | B23: 0 | C23: S.US.APH | D23: =RTD("cqg.rtd", ,"ContractData",C23, "LongDescription",, "T") -> Amphenol | H23: =RTD("cqg.rtd", ,"ContractData",C23, "LastTradeToday",, "T") -> 79.88 | I23: =RTD("cqg.rtd", ,"ContractData",C23, "NetLastTradeToday",, "T") -> -0.29 | J23: =IFERROR(RTD("cqg.rtd", ,"ContractData",C23, "PerCentNetLastTrade",, "T")/100,"") -> -0.003617313209 | K23: =RTD("cqg.rtd", ,"ContractData", C23, "T_CVol",, "T") -> 3743948 | L23: 23 | M23: =IFERROR(RANK($J23,$J$1:J$391)+COUNTIF($J$1:J23,J23)-1,"") -> 196 | N23: S.US.APH | O23: S.US.KMB
A24: S.US.APLS | B24: 0 | C24: S.US.APLS | D24: =RTD("cqg.rtd", ,"ContractData",C24, "LongDescription",, "T") -> Apellis Pharmaceuticals, Inc. | H24: =RTD("cqg.rtd", ,"ContractData",C24, "LastTradeToday",, "T") -> 19.44 | I24: =RTD("cqg.rtd", ,"ContractData",C24, "NetLastTradeToday",, "T") -> -0.54 | J24: =IFERROR(RTD("cqg.rtd", ,"ContractData",C24, "PerCentNetLastTrade",, "T")/100,"") -> -0.02702702703 | K24: =RTD("cqg.rtd", ,"ContractData", C24, "T_CVol",, "T") -> 2165900 | L24: 24 | M24: =IFERROR(RANK($J24,$J$1:J$391)+COUNTIF($J$1:J24,J24)-1,"") -> 352 | N24: S.US.APLS | O24: S.US.APP
A25: S.US.APO | B25: 0 | C25: S.US.APO | D25: =RTD("cqg.rtd", ,"ContractData",C25, "LongDescription",, "T") -> Apollo Global Management, LLC | H25: =RTD("cqg.rtd", ,"ContractData",C25, "LastTradeToday",, "T") -> 130 | I25: =RTD("cqg.rtd", ,"ContractData",C25, "NetLastTradeToday",, "T") -> -3.98 | J25: =IFERROR(RTD("cqg.rtd", ,"ContractData",C25, "PerCentNetLastTrade",, "T")/100,"") -> -0.02970592626 | K25: =RTD("cqg.rtd", ,"ContractData", C25, "T_CVol",, "T") -> 2287838 | L25: 25 | M25: =IFERROR(RANK($J25,$J$1:J$391)+COUNTIF($J$1:J25,J25)-1,"") -> 356 | N25: S.US.APO | O25: S.US.HSY
A26: S.US.APP | B26: 1 | C26: S.US.APP | D26: =RTD("cqg.rtd", ,"ContractData",C26, "LongDescription",, "T") -> Applovin Corporation Class A | H26: =RTD("cqg.rtd", ,"ContractData",C26, "LastTradeToday",, "T") -> 306.6 | I26: =RTD("cqg.rtd", ,"ContractData",C26, "NetLastTradeToday",, "T") -> 4.76 | J26: =IFERROR(RTD("cqg.rtd", ,"ContractData",C26, "PerCentNetLastTrade",, "T")/100,"") -> 0.01576994434 | K26: =RTD("cqg.rtd", ,"ContractData", C26, "T_CVol",, "T") -> 3696271 | L26: 26 | M26: =IFERROR(RANK($J26,$J$1:J$391)+COUNTIF($J$1:J26,J26)-1,"") -> 24 | N26: S.US.APP | O26: S.US.WFRD
A27: S.US.APPF | B27: 1 | C27: S.US.APPF | D27: =RTD("cqg.rtd", ,"ContractData",C27, "LongDescription",, "T") -> AppFolio, Inc. | H27: =RTD("cqg.rtd", ,"ContractData",C27, "LastTradeToday",, "T") -> 214.44 | I27: =RTD("cqg.rtd", ,"ContractData",C27, "NetLastTradeToday",, "T") -> 0.1 | J27: =IFERROR(RTD("cqg.rtd", ,"ContractData",C27, "PerCentNetLastTrade",, "T")/100,"") -> 0.0004665484744 | K27: =RTD("cqg.rtd", ,"ContractData", C27, "T_CVol",, "T") -> 96636 | L27: 27 | M27: =IFERROR(RANK($J27,$J$1:J$391)+COUNTIF($J$1:J27,J27)-1,"") -> 127 | N27: S.US.APPF | O27: S.US.EL
A28: S.US.ARES | B28: 0 | C28: S.US.ARES | D28: =RTD("cqg.rtd", ,"ContractData",C28, "LongDescription",, "T") -> Ares Management, L.P. | H28: =RTD("cqg.rtd", ,"ContractData",C28, "LastTradeToday",, "T") -> 160.39 | I28: =RTD("cqg.rtd", ,"ContractData",C28, "NetLastTradeToday",, "T") -> -0.37 | J28: =IFERROR(RTD("cqg.rtd", ,"ContractData",C28, "PerCentNetLastTrade",, "T")/100,"") -> -0.002301567554 | K28: =RTD("cqg.rtd", ,"ContractData", C28, "T_CVol",, "T") -> 1100649 | L28: 28 | M28: =IFERROR(RANK($J28,$J$1:J$391)+COUNTIF($J$1:J28,J28)-1,"") -> 172 | N28: S.US.ARES | O28: S.US.GLOB
A29: S.US.AVGO | B29: 1 | C29: S.US.AVGO | D29: =RTD("cqg.rtd", ,"ContractData",C29, "LongDescription",, "T") -> Broadcom Inc. | H29: =RTD("cqg.rtd", ,"ContractData",C29, "LastTradeToday",, "T") -> 201.02 | I29: =RTD("cqg.rtd", ,"ContractData",C29, "NetLastTradeToday",, "T") -> 0.3 | J29: =IFERROR(RTD("cqg.rtd", ,"ContractData",C29, "PerCentNetLastTrade",, "T")/100,"") -> 0.00149461937 | K29: =RTD("cqg.rtd", ,"ContractData", C29, "T_CVol",, "T") -> 9885998 | L29: 29 | M29: =IFERROR(RANK($J29,$J$1:J$391)+COUNTIF($J$1:J29,J29)-1,"") -> 112 | N29: S.US.AVGO | O29: S.US.LBRDA
A30: S.US.AVY | B30: 0 | C30: S.US.AVY | D30: =RTD("cqg.rtd", ,"ContractData",C30, "LongDescription",, "T") -> Avery Dennison Corp | H30: =RTD("cqg.rtd", ,"ContractData",C30, "LastTradeToday",, "T") -> 170.21 | I30: =RTD("cqg.rtd", ,"ContractData",C30, "NetLastTradeToday",, "T") -> -0.72 | J30: =IFERROR(RTD("cqg.rtd", ,"ContractData",C30, "PerCentNetLastTrade",, "T")/100,"") -> -0.004212250629 | K30: =RTD("cqg.rtd", ,"ContractData", C30, "T_CVol",, "T") -> 301059 | L30: 30 | M30: =IFERROR(RANK($J30,$J$1:J$391)+COUNTIF($J$1:J30,J30)-1,"") -> 207 | N30: S.US.AVY | O30: S.US.LVS
A31: S.US.AWI | B31: 1 | C31: S.US.AWI | D31: =RTD("cqg.rtd", ,"ContractData",C31, "LongDescription",, "T") -> Armstrong World Industries Inc. | H31: =RTD("cqg.rtd", ,"ContractData",C31, "LastTradeToday",, "T") -> 150.3 | I31: =RTD("cqg.rtd", ,"ContractData",C31, "NetLastTradeToday",, "T") -> 0.18 | J31: =IFERROR(RTD("cqg.rtd", ,"ContractData",C31, "PerCentNetLastTrade",, "T")/100,"") -> 0.001199040767 | K31: =RTD("cqg.rtd", ,"ContractData", C31, "T_CVol",, "T") -> 91924 | L31: 31 | M31: =IFERROR(RANK($J31,$J$1:J$391)+COUNTIF($J$1:J31,J31)-1,"") -> 115 | N31: S.US.AWI | O31: S.US.IT
A32: S.US.AXON | B32: 0 | C32: S.US.AXON | D32: =RTD("cqg.rtd", ,"ContractData",C32, "LongDescription",, "T") -> Axon Enterprise, Inc. | H32: =RTD("cqg.rtd", ,"ContractData",C32, "LastTradeToday",, "T") -> 605.86 | I32: =RTD("cqg.rtd", ,"ContractData",C32, "NetLastTradeToday",, "T") -> -15.54 | J32: =IFERROR(RTD("cqg.rtd", ,"ContractData",C32, "PerCentNetLastTrade",, "T")/100,"") -> -0.02500804635 | K32: =RTD("cqg.rtd", ,"ContractData", C32, "T_CVol",, "T") -> 439586 | L32: 32 | M32: =IFERROR(RANK($J32,$J$1:J$391)+COUNTIF($J$1:J32,J32)-1,"") -> 346 | N32: S.US.AXON | O32: S.US.HWM
A33: S.US.AXP | B33: 0 | C33: S.US.AXP | D33: =RTD("cqg.rtd", ,"ContractData",C33, "LongDescription",, "T") -> American Express Co | H33: =RTD("cqg.rtd", ,"ContractData",C33, "LastTradeToday",, "T") -> 276.31 | I33: =RTD("cqg.rtd", ,"ContractData",C33, "NetLastTradeToday",, "T") -> -1.72 | J33: =IFERROR(RTD("cqg.rtd", ,"ContractData",C33, "PerCentNetLastTrade",, "T")/100,"") -> -0.006186382764 | K33: =RTD("cqg.rtd", ,"ContractData", C33, "T_CVol",, "T") -> 1698532 | L33: 33 | M33: =IFERROR(RANK($J33,$J$1:J$391)+COUNTIF($J$1:J33,J33)-1,"") -> 245 | N33: S.US.AXP | O33: S.US.SBUX
A34: S.US.AZEK | B34: 0 | C34: S.US.AZEK | D34: =RTD("cqg.rtd", ,"ContractData",C34, "LongDescription",, "T") -> CPG Newco LLC | H34: =RTD("cqg.rtd", ,"ContractData",C34, "LastTradeToday",, "T") -> 49.63 | I34: =RTD("cqg.rtd", ,"ContractData",C34, "NetLastTradeToday",, "T") -> -0.13 | J34: =IFERROR(RTD("cqg.rtd", ,"ContractData",C34, "PerCentNetLastTrade",, "T")/100,"") -> -0.002612540193 | K34: =RTD("cqg.rtd", ,"ContractData", C34, "T_CVol",, "T") -> 1509160 | L34: 34 | M34: =IFERROR(RANK($J34,$J$1:J$391)+COUNTIF($J$1:J34,J34)-1,"") -> 176 | N34: S.US.AZEK | O34: S.US.ANET
A35: S.US.AZO | B35: 0 | C35: S.US.AZO | D35: =RTD("cqg.rtd", ,"ContractData",C35, "LongDescription",, "T") -> Autozone Inc | H35: =RTD("cqg.rtd", ,"ContractData",C35, "LastTradeToday",, "T") -> 3744.68 | I35: =RTD("cqg.rtd", ,"ContractData",C35, "NetLastTradeToday",, "T") -> -30.87 | J35: =IFERROR(RTD("cqg.rtd", ,"ContractData",C35, "PerCentNetLastTrade",, "T")/100,"") -> -0.008176292196 | K35: =RTD("cqg.rtd", ,"ContractData", C35, "T_CVol",, "T") -> 40542 | L35: 35 | M35: =IFERROR(RANK($J35,$J$1:J$391)+COUNTIF($J$1:J35,J35)-1,"") -> 267 | N35: S.US.AZO | O35: S.US.XYZ
A36: S.US.BA | B36: 0 | C36: S.US.BA | D36: =RTD("cqg.rtd", ,"ContractData",C36, "LongDescription",, "T") -> Boeing Company | H36: =RTD("cqg.rtd", ,"ContractData",C36, "LastTradeToday",, "T") -> 185.74 | I36: =RTD("cqg.rtd", ,"ContractData",C36, "NetLastTradeToday",, "T") -> -0.72 | J36: =IFERROR(RTD("cqg.rtd", ,"ContractData",C36, "PerCentNetLastTrade",, "T")/100,"") -> -0.003861417998 | K36: =RTD("cqg.rtd", ,"ContractData", C36, "T_CVol",, "T") -> 3201068 | L36: 36 | M36: =IFERROR(RANK($J36,$J$1:J$391)+COUNTIF($J$1:J36,J36)-1,"") -> 197 | N36: S.US.BA | O36: S.US.TT
A37: S.US.BAH | B37: 1 | C37: S.US.BAH | D37: =RTD("cqg.rtd", ,"ContractData",C37, "LongDescription",, "T") -> Booz Allen Hamilton Holding Corporation | H37: =RTD("cqg.rtd", ,"ContractData",C37, "LastTradeToday",, "T") -> 123.52 | I37: =RTD("cqg.rtd", ,"ContractData",C37, "NetLastTradeToday",, "T") -> 4.35 | J37: =IFERROR(RTD("cqg.rtd", ,"ContractData",C37, "PerCentNetLastTrade",, "T")/100,"") -> 0.03650247546 | K37: =RTD("cqg.rtd", ,"ContractData", C37, "T_CVol",, "T") -> 1425423 | L37: 37 | M37: =IFERROR(RANK($J37,$J$1:J$391)+COUNTIF($J$1:J37,J37)-1,"") -> 9 | N37: S.US.BAH | O37: S.US.LBRDK
A38: S.US.BFAM | B38: 0 | C38: S.US.BFAM | D38: =RTD("cqg.rtd", ,"ContractData",C38, "LongDescription",, "T") -> Bright Horizons Family Solutions Inc. | H38: =RTD("cqg.rtd", ,"ContractData",C38, "LastTradeToday",, "T") -> 122.71 | I38: =RTD("cqg.rtd", ,"ContractData",C38, "NetLastTradeToday",, "T") -> -4.11 | J38: =IFERROR(RTD("cqg.rtd", ,"ContractData",C38, "PerCentNetLastTrade",, "T")/100,"") -> -0.03240813752 | K38: =RTD("cqg.rtd", ,"ContractData", C38, "T_CVol",, "T") -> 342858 | L38: 38 | M38: =IFERROR(RANK($J38,$J$1:J$391)+COUNTIF($J$1:J38,J38)-1,"") -> 359 | N38: S.US.BFAM | O38: S.US.NRG
A39: S.US.BILL | B39: 0 | C39: S.US.BILL | D39: =RTD("cqg.rtd", ,"ContractData",C39, "LongDescription",, "T") -> BILL Holdings, Inc. | H39: =RTD("cqg.rtd", ,"ContractData",C39, "LastTradeToday",, "T") -> 45.15 | I39: =RTD("cqg.rtd", ,"ContractData",C39, "NetLastTradeToday",, "T") -> -0.04 | J39: =IFERROR(RTD("cqg.rtd", ,"ContractData",C39, "PerCentNetLastTrade",, "T")/100,"") -> -0.0008851515822 | K39: =RTD("cqg.rtd", ,"ContractData", C39, "T_CVol",, "T") -> 1065916 | L39: 39 | M39: =IFERROR(RANK($J39,$J$1:J$391)+COUNTIF($J$1:J39,J39)-1,"") -> 149 | N39: S.US.BILL | O39: S.US.AJG
A40: S.US.BKNG | B40: 1 | C40: S.US.BKNG | D40: =RTD("cqg.rtd", ,"ContractData",C40, "LongDescription",, "T") -> Booking Holdings Inc. | H40: =RTD("cqg.rtd", ,"ContractData",C40, "LastTradeToday",, "T") -> 5192.71 | I40: =RTD("cqg.rtd", ,"ContractData",C40, "NetLastTradeToday",, "T") -> 1.59 | J40: =IFERROR(RTD("cqg.rtd", ,"ContractData",C40, "PerCentNetLastTrade",, "T")/100,"") -> 0.0003062922837 | K40: =RTD("cqg.rtd", ,"ContractData", C40, "T_CVol",, "T") -> 93234 | L40: 40 | M40: =IFERROR(RANK($J40,$J$1:J$391)+COUNTIF($J$1:J40,J40)-1,"") -> 130 | N40: S.US.BKNG | O40: S.US.TPL
A41: S.US.BLD | B41: 0 | C41: S.US.BLD | D41: =RTD("cqg.rtd", ,"ContractData",C41, "LongDescription",, "T") -> TopBuild Corp. | H41: =RTD("cqg.rtd", ,"ContractData",C41, "LastTradeToday",, "T") -> 286.28 | I41: =RTD("cqg.rtd", ,"ContractData",C41, "NetLastTradeToday",, "T") -> -5.72 | J41: =IFERROR(RTD("cqg.rtd", ,"ContractData",C41, "PerCentNetLastTrade",, "T")/100,"") -> -0.0195890411 | K41: =RTD("cqg.rtd", ,"ContractData", C41, "T_CVol",, "T") -> 388063 | L41: 41 | M41: =IFERROR(RANK($J41,$J$1:J$391)+COUNTIF($J$1:J41,J41)-1,"") -> 338 | N41: S.US.BLD | O41: S.US.UBER
A42: S.US.BLDR | B42: 0 | C42: S.US.BLDR | D42: =RTD("cqg.rtd", ,"ContractData",C42, "LongDescription",, "T") -> Builders FirstSource Inc | H42: =RTD("cqg.rtd", ,"ContractData",C42, "LastTradeToday",, "T") -> 107.43 | I42: =RTD("cqg.rtd", ,"ContractData",C42, "NetLastTradeToday",, "T") -> -4.43 | J42: =IFERROR(RTD("cqg.rtd", ,"ContractData",C42, "PerCentNetLastTrade",, "T")/100,"") -> -0.03960307527 | K42: =RTD("cqg.rtd", ,"ContractData", C42, "T_CVol",, "T") -> 1722025 | L42: 42 | M42: =IFERROR(RANK($J42,$J$1:J$391)+COUNTIF($J$1:J42,J42)-1,"") -> 367 | N42: S.US.BLDR | O42: S.US.EXAS
A43: S.US.BPOP | B43: 1 | C43: S.US.BPOP | D43: =RTD("cqg.rtd", ,"ContractData",C43, "LongDescription",, "T") -> BanPonce Corp | H43: =RTD("cqg.rtd", ,"ContractData",C43, "LastTradeToday",, "T") -> 99.6 | I43: =RTD("cqg.rtd", ,"ContractData",C43, "NetLastTradeToday",, "T") -> 0.12 | J43: =IFERROR(RTD("cqg.rtd", ,"ContractData",C43, "PerCentNetLastTrade",, "T")/100,"") -> 0.001206272618 | K43: =RTD("cqg.rtd", ,"ContractData", C43, "T_CVol",, "T") -> 344569 | L43: 43 | M43: =IFERROR(RANK($J43,$J$1:J$391)+COUNTIF($J$1:J43,J43)-1,"") -> 114 | N43: S.US.BPOP | O43: S.US.PR
A44: S.US.BR | B44: 1 | C44: S.US.BR | D44: =RTD("cqg.rtd", ,"ContractData",C44, "LongDescription",, "T") -> Broadridge Financial Solutions | H44: =RTD("cqg.rtd", ,"ContractData",C44, "LastTradeToday",, "T") -> 234.02 | I44: =RTD("cqg.rtd", ,"ContractData",C44, "NetLastTradeToday",, "T") -> 1.84 | J44: =IFERROR(RTD("cqg.rtd", ,"ContractData",C44, "PerCentNetLastTrade",, "T")/100,"") -> 0.007924885864 | K44: =RTD("cqg.rtd", ,"ContractData", C44, "T_CVol",, "T") -> 295880 | L44: 44 | M44: =IFERROR(RANK($J44,$J$1:J$391)+COUNTIF($J$1:J44,J44)-1,"") -> 60 | N44: S.US.BR | O44: S.US.PATH
A45: S.US.BRKR | B45: 0 | C45: S.US.BRKR | D45: =RTD("cqg.rtd", ,"ContractData",C45, "LongDescription",, "T") -> Bruker Corp | H45: =RTD("cqg.rtd", ,"ContractData",C45, "LastTradeToday",, "T") -> 39.32 | I45: =RTD("cqg.rtd", ,"ContractData",C45, "NetLastTradeToday",, "T") -> -1.41 | J45: =IFERROR(RTD("cqg.rtd", ,"ContractData",C45, "PerCentNetLastTrade",, "T")/100,"") -> -0.03461821753 | K45: =RTD("cqg.rtd", ,"ContractData", C45, "T_CVol",, "T") -> 1561912 | L45: 45 | M45: =IFERROR(RANK($J45,$J$1:J$391)+COUNTIF($J$1:J45,J45)-1,"") -> 364 | N45: S.US.BRKR | O45: S.US.CHDN
A46: S.US.BRO | B46: 1 | C46: S.US.BRO | D46: =RTD("cqg.rtd", ,"ContractData",C46, "LongDescription",, "T") -> BROWN AND BROWN INC | H46: =RTD("cqg.rtd", ,"ContractData",C46, "LastTradeToday",, "T") -> 110.73 | I46: =RTD("cqg.rtd", ,"ContractData",C46, "NetLastTradeToday",, "T") -> 0.33 | J46: =IFERROR(RTD("cqg.rtd", ,"ContractData",C46, "PerCentNetLastTrade",, "T")/100,"") -> 0.002989130435 | K46: =RTD("cqg.rtd", ,"ContractData", C46, "T_CVol",, "T") -> 569532 | L46: 46 | M46: =IFERROR(RANK($J46,$J$1:J$391)+COUNTIF($J$1:J46,J46)-1,"") -> 98 | N46: S.US.BRO | O46: S.US.DVA
A47: S.US.BROS | B47: 0 | C47: S.US.BROS | D47: =RTD("cqg.rtd", ,"ContractData",C47, "LongDescription",, "T") -> Dutch Bros Inc. | H47: =RTD("cqg.rtd", ,"ContractData",C47, "LastTradeToday",, "T") -> 59.73 | I47: =RTD("cqg.rtd", ,"ContractData",C47, "NetLastTradeToday",, "T") -> -0.63 | J47: =IFERROR(RTD("cqg.rtd", ,"ContractData",C47, "PerCentNetLastTrade",, "T")/100,"") -> -0.01043737575 | K47: =RTD("cqg.rtd", ,"ContractData", C47, "T_CVol",, "T") -> 2053238 | L47: 47 | M47: =IFERROR(RANK($J47,$J$1:J$391)+COUNTIF($J$1:J47,J47)-1,"") -> 285 | N47: S.US.BROS | O47: S.US.CAR
A48: S.US.BSY | B48: 0 | C48: S.US.BSY | D48: =RTD("cqg.rtd", ,"ContractData",C48, "LongDescription",, "T") -> Bentley Systems, Incorporated Class B | H48: =RTD("cqg.rtd", ,"ContractData",C48, "LastTradeToday",, "T") -> 43.85 | I48: =RTD("cqg.rtd", ,"ContractData",C48, "NetLastTradeToday",, "T") -> 0 | J48: =IFERROR(RTD("cqg.rtd", ,"ContractData",C48, "PerCentNetLastTrade",, "T")/100,"") -> 0 | K48: =RTD("cqg.rtd", ,"ContractData", C48, "T_CVol",, "T") -> 904495 | L48: 48 | M48: =IFERROR(RANK($J48,$J$1:J$391)+COUNTIF($J$1:J48,J48)-1,"") -> 134 | N48: S.US.BSY | O48: S.US.CIVI
A49: S.US.BURL | B49: 0 | C49: S.US.BURL | D49: =RTD("cqg.rtd", ,"ContractData",C49, "LongDescription",, "T") -> Burlington Stores, Inc. | H49: =RTD("cqg.rtd", ,"ContractData",C49, "LastTradeToday",, "T") -> 236.71 | I49: =RTD("cqg.rtd", ,"ContractData",C49, "NetLastTradeToday",, "T") -> -0.33 | J49: =IFERROR(RTD("cqg.rtd", ,"ContractData",C49, "PerCentNetLastTrade",, "T")/100,"") -> -0.001392170098 | K49: =RTD("cqg.rtd", ,"ContractData", C49, "T_CVol",, "T") -> 743163 | L49: 49 | M49: =IFERROR(RANK($J49,$J$1:J$391)+COUNTIF($J$1:J49,J49)-1,"") -> 158 | N49: S.US.BURL | O49: S.US.ADBE
A50: S.US.BWXT | B50: 0 | C50: S.US.BWXT | D50: =RTD("cqg.rtd", ,"ContractData",C50, "LongDescription",, "T") -> BWX Technologies, Inc. | H50: =RTD("cqg.rtd", ,"ContractData",C50, "LastTradeToday",, "T") -> 107.33 | I50: =RTD("cqg.rtd", ,"ContractData",C50, "NetLastTradeToday",, "T") -> -4.68 | J50: =IFERROR(RTD("cqg.rtd", ,"ContractData",C50, "PerCentNetLastTrade",, "T")/100,"") -> -0.04178198375 | K50: =RTD("cqg.rtd", ,"ContractData", C50, "T_CVol",, "T") -> 1581301 | L50: 50 | M50: =IFERROR(RANK($J50,$J$1:J$391)+COUNTIF($J$1:J50,J50)-1,"") -> 368 | N50: S.US.BWXT | O50: S.US.YUM
A51: S.US.BX | B51: 0 | C51: S.US.BX | D51: =RTD("cqg.rtd", ,"ContractData",C51, "LongDescription",, "T") -> Blackstone Inc. | H51: =RTD("cqg.rtd", ,"ContractData",C51, "LastTradeToday",, "T") -> 134.46 | I51: =RTD("cqg.rtd", ,"ContractData",C51, "NetLastTradeToday",, "T") -> -1.65 | J51: =IFERROR(RTD("cqg.rtd", ,"ContractData",C51, "PerCentNetLastTrade",, "T")/100,"") -> -0.01212254794 | K51: =RTD("cqg.rtd", ,"ContractData", C51, "T_CVol",, "T") -> 1770779 | L51: 51 | M51: =IFERROR(RANK($J51,$J$1:J$391)+COUNTIF($J$1:J51,J51)-1,"") -> 296 | N51: S.US.BX | O51: S.US.MCK
A52: S.US.CACC | B52: 1 | C52: S.US.CACC | D52: =RTD("cqg.rtd", ,"ContractData",C52, "LongDescription",, "T") -> Credit Acceptence Corp | H52: =RTD("cqg.rtd", ,"ContractData",C52, "LastTradeToday",, "T") -> 499.9 | I52: =RTD("cqg.rtd", ,"ContractData",C52, "NetLastTradeToday",, "T") -> 3.79 | J52: =IFERROR(RTD("cqg.rtd", ,"ContractData",C52, "PerCentNetLastTrade",, "T")/100,"") -> 0.007639434803 | K52: =RTD("cqg.rtd", ,"ContractData", C52, "T_CVol",, "T") -> 74462 | L52: 52 | M52: =IFERROR(RANK($J52,$J$1:J$391)+COUNTIF($J$1:J52,J52)-1,"") -> 63 | N52: S.US.CACC | O52: S.US.ALL
A53: S.US.CAH | B53: 0 | C53: S.US.CAH | D53: =RTD("cqg.rtd", ,"ContractData",C53, "LongDescription",, "T") -> Cardinal Health Inc | H53: =RTD("cqg.rtd", ,"ContractData",C53, "LastTradeToday",, "T") -> 151.75 | I53: =RTD("cqg.rtd", ,"ContractData",C53, "NetLastTradeToday",, "T") -> -0.24 | J53: =IFERROR(RTD("cqg.rtd", ,"ContractData",C53, "PerCentNetLastTrade",, "T")/100,"") -> -0.001579051253 | K53: =RTD("cqg.rtd", ,"ContractData", C53, "T_CVol",, "T") -> 1106467 | L53: 53 | M53: =IFERROR(RANK($J53,$J$1:J$391)+COUNTIF($J$1:J53,J53)-1,"") -> 164 | N53: S.US.CAH | O53: S.US.TKO
A54: S.US.CAR | B54: 1 | C54: S.US.CAR | D54: =RTD("cqg.rtd", ,"ContractData",C54, "LongDescription",, "T") -> AVIS Budget Group Inc | H54: =RTD("cqg.rtd", ,"ContractData",C54, "LastTradeToday",, "T") -> 97.21 | I54: =RTD("cqg.rtd", ,"ContractData",C54, "NetLastTradeToday",, "T") -> 0.91 | J54: =IFERROR(RTD("cqg.rtd", ,"ContractData",C54, "PerCentNetLastTrade",, "T")/100,"") -> 0.009449636552 | K54: =RTD("cqg.rtd", ,"ContractData", C54, "T_CVol",, "T") -> 712913 | L54: 54 | M54: =IFERROR(RANK($J54,$J$1:J$391)+COUNTIF($J$1:J54,J54)-1,"") -> 47 | N54: S.US.CAR | O54: S.US.RNG
A55: S.US.CASY | B55: 0 | C55: S.US.CASY | D55: =RTD("cqg.rtd", ,"ContractData",C55, "LongDescription",, "T") -> Caseys General Stores Inc | H55: =RTD("cqg.rtd", ,"ContractData",C55, "LastTradeToday",, "T") -> 466.05 | I55: =RTD("cqg.rtd", ,"ContractData",C55, "NetLastTradeToday",, "T") -> -0.33 | J55: =IFERROR(RTD("cqg.rtd", ,"ContractData",C55, "PerCentNetLastTrade",, "T")/100,"") -> -0.0007075775119 | K55: =RTD("cqg.rtd", ,"ContractData", C55, "T_CVol",, "T") -> 127579 | L55: 55 | M55: =IFERROR(RANK($J55,$J$1:J$391)+COUNTIF($J$1:J55,J55)-1,"") -> 147 | N55: S.US.CASY | O55: S.US.VRSK
A56: S.US.CAT | B56: 0 | C56: S.US.CAT | D56: =RTD("cqg.rtd", ,"ContractData",C56, "LongDescription",, "T") -> Caterpillar Inc | H56: =RTD("cqg.rtd", ,"ContractData",C56, "LastTradeToday",, "T") -> 321.82 | I56: =RTD("cqg.rtd", ,"ContractData",C56, "NetLastTradeToday",, "T") -> -1.29 | J56: =IFERROR(RTD("cqg.rtd", ,"ContractData",C56, "PerCentNetLastTrade",, "T")/100,"") -> -0.003992448392 | K56: =RTD("cqg.rtd", ,"ContractData", C56, "T_CVol",, "T") -> 1071601 | L56: 56 | M56: =IFERROR(RANK($J56,$J$1:J$391)+COUNTIF($J$1:J56,J56)-1,"") -> 203 | N56: S.US.CAT | O56: S.US.PSTG
A57: S.US.CAVA | B57: 0 | C57: S.US.CAVA | D57: =RTD("cqg.rtd", ,"ContractData",C57, "LongDescription",, "T") -> Cava Group Inc. | H57: =RTD("cqg.rtd", ,"ContractData",C57, "LastTradeToday",, "T") -> 93.48 | I57: =RTD("cqg.rtd", ,"ContractData",C57, "NetLastTradeToday",, "T") -> -2.36 | J57: =IFERROR(RTD("cqg.rtd", ,"ContractData",C57, "PerCentNetLastTrade",, "T")/100,"") -> -0.02462437396 | K57: =RTD("cqg.rtd", ,"ContractData", C57, "T_CVol",, "T") -> 2083724 | L57: 57 | M57: =IFERROR(RANK($J57,$J$1:J$391)+COUNTIF($J$1:J57,J57)-1,"") -> 345 | N57: S.US.CAVA | O57: S.US.HES
A58: S.US.CC | B58: 0 | C58: S.US.CC | D58: =RTD("cqg.rtd", ,"ContractData",C58, "LongDescription",, "T") -> The Chemours Company | H58: =RTD("cqg.rtd", ,"ContractData",C58, "LastTradeToday",, "T") -> 12.03 | I58: =RTD("cqg.rtd", ,"ContractData",C58, "NetLastTradeToday",, "T") -> -0.07 | J58: =IFERROR(RTD("cqg.rtd", ,"ContractData",C58, "PerCentNetLastTrade",, "T")/100,"") -> -0.005785123967 | K58: =RTD("cqg.rtd", ,"ContractData", C58, "T_CVol",, "T") -> 2102995 | L58: 58 | M58: =IFERROR(RANK($J58,$J$1:J$391)+COUNTIF($J$1:J58,J58)-1,"") -> 241 | N58: S.US.CC | O58: S.US.PLNT
A59: S.US.CDNS | B59: 0 | C59: S.US.CDNS | D59: =RTD("cqg.rtd", ,"ContractData",C59, "LongDescription",, "T") -> Cadence Design Systems, Inc | H59: =RTD("cqg.rtd", ,"ContractData",C59, "LastTradeToday",, "T") -> 307.19 | I59: =RTD("cqg.rtd", ,"ContractData",C59, "NetLastTradeToday",, "T") -> -1.64 | J59: =IFERROR(RTD("cqg.rtd", ,"ContractData",C59, "PerCentNetLastTrade",, "T")/100,"") -> -0.005310364926 | K59: =RTD("cqg.rtd", ,"ContractData", C59, "T_CVol",, "T") -> 1057627 | L59: 59 | M59: =IFERROR(RANK($J59,$J$1:J$391)+COUNTIF($J$1:J59,J59)-1,"") -> 236 | N59: S.US.CDNS | O59: S.US.WYNN
A60: S.US.CDW | B60: 0 | C60: S.US.CDW | D60: =RTD("cqg.rtd", ,"ContractData",C60, "LongDescription",, "T") -> CDW Corporation | H60: =RTD("cqg.rtd", ,"ContractData",C60, "LastTradeToday",, "T") -> 165.23 | I60: =RTD("cqg.rtd", ,"ContractData",C60, "NetLastTradeToday",, "T") -> -0.52 | J60: =IFERROR(RTD("cqg.rtd", ,"ContractData",C60, "PerCentNetLastTrade",, "T")/100,"") -> -0.003137254902 | K60: =RTD("cqg.rtd", ,"ContractData", C60, "T_CVol",, "T") -> 769608 | L60: 60 | M60: =IFERROR(RANK($J60,$J$1:J$391)+COUNTIF($J$1:J60,J60)-1,"") -> 186 | N60: S.US.CDW | O60: S.US.BR
A61: S.US.CE | B61: 1 | C61: S.US.CE | D61: =RTD("cqg.rtd", ,"ContractData",C61, "LongDescription",, "T") -> Celanese Corp | H61: =RTD("cqg.rtd", ,"ContractData",C61, "LastTradeToday",, "T") -> 48.96 | I61: =RTD("cqg.rtd", ,"ContractData",C61, "NetLastTradeToday",, "T") -> 4.19 | J61: =IFERROR(RTD("cqg.rtd", ,"ContractData",C61, "PerCentNetLastTrade",, "T")/100,"") -> 0.09358945723 | K61: =RTD("cqg.rtd", ,"ContractData", C61, "T_CVol",, "T") -> 4235727 | L61: 61 | M61: =IFERROR(RANK($J61,$J$1:J$391)+COUNTIF($J$1:J61,J61)-1,"") -> 2 | N61: S.US.CE | O61: S.US.LII
A62: S.US.CEG | B62: 1 | C62: S.US.CEG | D62: =RTD("cqg.rtd", ,"ContractData",C62, "LongDescription",, "T") -> Constellation Energy Corporation | H62: =RTD("cqg.rtd", ,"ContractData",C62, "LastTradeToday",, "T") -> 277.4 | I62: =RTD("cqg.rtd", ,"ContractData",C62, "NetLastTradeToday",, "T") -> 29.13 | J62: =IFERROR(RTD("cqg.rtd", ,"ContractData",C62, "PerCentNetLastTrade",, "T")/100,"") -> 0.117331937 | K62: =RTD("cqg.rtd", ,"ContractData", C62, "T_CVol",, "T") -> 5645416 | L62: 62 | M62: =IFERROR(RANK($J62,$J$1:J$391)+COUNTIF($J$1:J62,J62)-1,"") -> 1 | N62: S.US.CEG | O62: S.US.CRWD
A63: S.US.CELH | B63: 1 | C63: S.US.CELH | D63: =RTD("cqg.rtd", ,"ContractData",C63, "LongDescription",, "T") -> Celsius Holdings, Inc. | H63: =RTD("cqg.rtd", ,"ContractData",C63, "LastTradeToday",, "T") -> 35.84 | I63: =RTD("cqg.rtd", ,"ContractData",C63, "NetLastTradeToday",, "T") -> 1.95 | J63: =IFERROR(RTD("cqg.rtd", ,"ContractData",C63, "PerCentNetLastTrade",, "T")/100,"") -> 0.05753909708 | K63: =RTD("cqg.rtd", ,"ContractData", C63, "T_CVol",, "T") -> 14020298 | L63: 63 | M63: =IFERROR(RANK($J63,$J$1:J$391)+COUNTIF($J$1:J63,J63)-1,"") -> 4 | N63: S.US.CELH | O63: S.US.CACC
A64: S.US.CFLT | B64: 1 | C64: S.US.CFLT | D64: =RTD("cqg.rtd", ,"ContractData",C64, "LongDescription",, "T") -> Confluent, Inc. Class A | H64: =RTD("cqg.rtd", ,"ContractData",C64, "LastTradeToday",, "T") -> 19.82 | I64: =RTD("cqg.rtd", ,"ContractData",C64, "NetLastTradeToday",, "T") -> 0.07 | J64: =IFERROR(RTD("cqg.rtd", ,"ContractData",C64, "PerCentNetLastTrade",, "T")/100,"") -> 0.003544303797 | K64: =RTD("cqg.rtd", ,"ContractData", C64, "T_CVol",, "T") -> 3724713 | L64: 64 | M64: =IFERROR(RANK($J64,$J$1:J$391)+COUNTIF($J$1:J64,J64)-1,"") -> 93 | N64: S.US.CFLT | O64: S.US.CSL
A65: S.US.CGNX | B65: 1 | C65: S.US.CGNX | D65: =RTD("cqg.rtd", ,"ContractData",C65, "LongDescription",, "T") -> Cognex Corp | H65: =RTD("cqg.rtd", ,"ContractData",C65, "LastTradeToday",, "T") -> 28.01 | I65: =RTD("cqg.rtd", ,"ContractData",C65, "NetLastTradeToday",, "T") -> 0.02 | J65: =IFERROR(RTD("cqg.rtd", ,"ContractData",C65, "PerCentNetLastTrade",, "T")/100,"") -> 0.0007145409075 | K65: =RTD("cqg.rtd", ,"ContractData", C65, "T_CVol",, "T") -> 882091 | L65: 65 | M65: =IFERROR(RANK($J65,$J$1:J$391)+COUNTIF($J$1:J65,J65)-1,"") -> 123 | N65: S.US.CGNX | O65: =VLOOKUP($L65,$M$1:$N$391,2,FALSE) -> S.US.CTAS
A66: S.US.CHDN | B66: =IF(J66>0,1,0) -> 1 | C66: S.US.CHDN | D66: =RTD("cqg.rtd", ,"ContractData",C66, "LongDescription",, "T") -> Churchill Downs | H66: =RTD("cqg.rtd", ,"ContractData",C66, "LastTradeToday",, "T") -> 91.63 | I66: =RTD("cqg.rtd", ,"ContractData",C66, "NetLastTradeToday",, "T") -> 0.92 | J66: =IFERROR(RTD("cqg.rtd", ,"ContractData",C66, "PerCentNetLastTrade",, "T")/100,"") -> 0.01014221144 | K66: =RTD("cqg.rtd", ,"ContractData", C66, "T_CVol",, "T") -> 682091 | L66: 66 | M66: =IFERROR(RANK($J66,$J$1:J$391)+COUNTIF($J$1:J66,J66)-1,"") -> 45 | N66: =C66 -> S.US.CHDN | O66: S.US.FOUR
A67: S.US.CHE | B67: 1 | C67: S.US.CHE | D67: =RTD("cqg.rtd", ,"ContractData",C67, "LongDescription",, "T") -> Chemed Corp | H67: =RTD("cqg.rtd", ,"ContractData",C67, "LastTradeToday",, "T") -> 578.13 | I67: =RTD("cqg.rtd", ,"ContractData",C67, "NetLastTradeToday",, "T") -> 2.06 | J67: =IFERROR(RTD("cqg.rtd", ,"ContractData",C67, "PerCentNetLastTrade",, "T")/100,"") -> 0.003575954311 | K67: =RTD("cqg.rtd", ,"ContractData", C67, "T_CVol",, "T") -> 95185 | L67: =L66+1 -> 67 | M67: =IFERROR(RANK($J67,$J$1:J$391)+COUNTIF($J$1:J67,J67)-1,"") -> 92 | N67: S.US.CHE | O67: S.US.MSGS
A68: S.US.CHH | B68: 0 | C68: S.US.CHH | D68: =RTD("cqg.rtd", ,"ContractData",C68, "LongDescription",, "T") -> Choice Hotels Internatl Inc | H68: =RTD("cqg.rtd", ,"ContractData",C68, "LastTradeToday",, "T") -> 126.28 | I68: =RTD("cqg.rtd", ,"ContractData",C68, "NetLastTradeToday",, "T") -> -0.65 | J68: =IFERROR(RTD("cqg.rtd", ,"ContractData",C68, "PerCentNetLastTrade",, "T")/100,"") -> -0.005120932798 | K68: =RTD("cqg.rtd", ,"ContractData", C68, "T_CVol",, "T") -> 317119 | L68: 68 | M68: =IFERROR(RANK($J68,$J$1:J$391)+COUNTIF($J$1:J68,J68)-1,"") -> 227 | N68: S.US.CHH | O68: S.US.GWRE
A69: S.US.CI | B69: 1 | C69: S.US.CI | D69: =RTD("cqg.rtd", ,"ContractData",C69, "LongDescription",, "T") -> The Cigna Group | H69: =RTD("cqg.rtd", ,"ContractData",C69, "LastTradeToday",, "T") -> 333.89 | I69: =RTD("cqg.rtd", ,"ContractData",C69, "NetLastTradeToday",, "T") -> 0.88 | J69: =IFERROR(RTD("cqg.rtd", ,"ContractData",C69, "PerCentNetLastTrade",, "T")/100,"") -> 0.002642563286 | K69: =RTD("cqg.rtd", ,"ContractData", C69, "T_CVol",, "T") -> 1176561 | L69: 69 | M69: =IFERROR(RANK($J69,$J$1:J$391)+COUNTIF($J$1:J69,J69)-1,"") -> 103 | N69: S.US.CI | O69: S.US.GDDY
A70: S.US.CIVI | B70: 1 | C70: S.US.CIVI | D70: =RTD("cqg.rtd", ,"ContractData",C70, "LongDescription",, "T") -> Civitas Resources, Inc. | H70: =RTD("cqg.rtd", ,"ContractData",C70, "LastTradeToday",, "T") -> 27.5 | I70: =RTD("cqg.rtd", ,"ContractData",C70, "NetLastTradeToday",, "T") -> 0.25 | J70: =IFERROR(RTD("cqg.rtd", ,"ContractData",C70, "PerCentNetLastTrade",, "T")/100,"") -> 0.009174311927 | K70: =RTD("cqg.rtd", ,"ContractData", C70, "T_CVol",, "T") -> 772519 | L70: 70 | M70: =IFERROR(RANK($J70,$J$1:J$391)+COUNTIF($J$1:J70,J70)-1,"") -> 48 | N70: S.US.CIVI | O70: S.US.PANW
A71: S.US.CL | B71: 1 | C71: S.US.CL | D71: =RTD("cqg.rtd", ,"ContractData",C71, "LongDescription",, "T") -> Colgate-Palmolive Co | H71: =RTD("cqg.rtd", ,"ContractData",C71, "LastTradeToday",, "T") -> 91.18 | I71: =RTD("cqg.rtd", ,"ContractData",C71, "NetLastTradeToday",, "T") -> 0.44 | J71: =IFERROR(RTD("cqg.rtd", ,"ContractData",C71, "PerCentNetLastTrade",, "T")/100,"") -> 0.004849019176 | K71: =RTD("cqg.rtd", ,"ContractData", C71, "T_CVol",, "T") -> 1861369 | L71: 71 | M71: =IFERROR(RANK($J71,$J$1:J$391)+COUNTIF($J$1:J71,J71)-1,"") -> 84 | N71: S.US.CL | O71: S.US.TTD
A72: S.US.CLF | B72: 0 | C72: S.US.CLF | D72: =RTD("cqg.rtd", ,"ContractData",C72, "LongDescription",, "T") -> Cleveland-Cliffs Inc. | H72: =RTD("cqg.rtd", ,"ContractData",C72, "LastTradeToday",, "T") -> 8.63 | I72: =RTD("cqg.rtd", ,"ContractData",C72, "NetLastTradeToday",, "T") -> -0.04 | J72: =IFERROR(RTD("cqg.rtd", ,"ContractData",C72, "PerCentNetLastTrade",, "T")/100,"") -> -0.00461361015 | K72: =RTD("cqg.rtd", ,"ContractData", C72, "T_CVol",, "T") -> 7274219 | L72: 72 | M72: =IFERROR(RANK($J72,$J$1:J$391)+COUNTIF($J$1:J72,J72)-1,"") -> 217 | N72: S.US.CLF | O72: S.US.NFLX
A73: S.US.CLX | B73: 0 | C73: S.US.CLX | D73: =RTD("cqg.rtd", ,"ContractData",C73, "LongDescription",, "T") -> Clorox Company | H73: =RTD("cqg.rtd", ,"ContractData",C73, "LastTradeToday",, "T") -> 134.8 | I73: =RTD("cqg.rtd", ,"ContractData",C73, "NetLastTradeToday",, "T") -> -3.59 | J73: =IFERROR(RTD("cqg.rtd", ,"ContractData",C73, "PerCentNetLastTrade",, "T")/100,"") -> -0.02594118072 | K73: =RTD("cqg.rtd", ,"ContractData", C73, "T_CVol",, "T") -> 2397457 | L73: 73 | M73: =IFERROR(RANK($J73,$J$1:J$391)+COUNTIF($J$1:J73,J73)-1,"") -> 349 | N73: S.US.CLX | O73: S.US.INSP
A74: S.US.CMG | B74: 1 | C74: S.US.CMG | D74: =RTD("cqg.rtd", ,"ContractData",C74, "LongDescription",, "T") -> Chipotle Mexican Grill | H74: =RTD("cqg.rtd", ,"ContractData",C74, "LastTradeToday",, "T") -> 50.31 | I74: =RTD("cqg.rtd", ,"ContractData",C74, "NetLastTradeToday",, "T") -> 0.3 | J74: =IFERROR(RTD("cqg.rtd", ,"ContractData",C74, "PerCentNetLastTrade",, "T")/100,"") -> 0.00599880024 | K74: =RTD("cqg.rtd", ,"ContractData", C74, "T_CVol",, "T") -> 4988094 | L74: 74 | M74: =IFERROR(RANK($J74,$J$1:J$391)+COUNTIF($J$1:J74,J74)-1,"") -> 75 | N74: S.US.CMG | O74: S.US.KNSL
A75: S.US.CNM | B75: 0 | C75: S.US.CNM | D75: =RTD("cqg.rtd", ,"ContractData",C75, "LongDescription",, "T") -> Core & Main, Inc. | H75: =RTD("cqg.rtd", ,"ContractData",C75, "LastTradeToday",, "T") -> 51.82 | I75: =RTD("cqg.rtd", ,"ContractData",C75, "NetLastTradeToday",, "T") -> -1.52 | J75: =IFERROR(RTD("cqg.rtd", ,"ContractData",C75, "PerCentNetLastTrade",, "T")/100,"") -> -0.02849643795 | K75: =RTD("cqg.rtd", ,"ContractData", C75, "T_CVol",, "T") -> 878068 | L75: 75 | M75: =IFERROR(RANK($J75,$J$1:J$391)+COUNTIF($J$1:J75,J75)-1,"") -> 355 | N75: S.US.CNM | O75: S.US.CMG
A76: S.US.COIN | B76: 0 | C76: S.US.COIN | D76: =RTD("cqg.rtd", ,"ContractData",C76, "LongDescription",, "T") -> Coinbase Global, Inc. Class A | H76: =RTD("cqg.rtd", ,"ContractData",C76, "LastTradeToday",, "T") -> 198.02 | I76: =RTD("cqg.rtd", ,"ContractData",C76, "NetLastTradeToday",, "T") -> -1.38 | J76: =IFERROR(RTD("cqg.rtd", ,"ContractData",C76, "PerCentNetLastTrade",, "T")/100,"") -> -0.006920762287 | K76: =RTD("cqg.rtd", ,"ContractData", C76, "T_CVol",, "T") -> 3589940 | L76: 76 | M76: =IFERROR(RANK($J76,$J$1:J$391)+COUNTIF($J$1:J76,J76)-1,"") -> 250 | N76: S.US.COIN | O76: S.US.SNOW
A77: S.US.COR | B77: 1 | C77: S.US.COR | D77: =RTD("cqg.rtd", ,"ContractData",C77, "LongDescription",, "T") -> Cencora Inc. | H77: =RTD("cqg.rtd", ,"ContractData",C77, "LastTradeToday",, "T") -> 292.44 | I77: =RTD("cqg.rtd", ,"ContractData",C77, "NetLastTradeToday",, "T") -> 0.47 | J77: =IFERROR(RTD("cqg.rtd", ,"ContractData",C77, "PerCentNetLastTrade",, "T")/100,"") -> 0.001609754427 | K77: =RTD("cqg.rtd", ,"ContractData", C77, "T_CVol",, "T") -> 669180 | L77: 77 | M77: =IFERROR(RANK($J77,$J$1:J$391)+COUNTIF($J$1:J77,J77)-1,"") -> 108 | N77: S.US.COR | O77: S.US.DDOG
A78: S.US.COST | B78: 0 | C78: S.US.COST | D78: =RTD("cqg.rtd", ,"ContractData",C78, "LongDescription",, "T") -> Costco Wholesale Corp | H78: =RTD("cqg.rtd", ,"ContractData",C78, "LastTradeToday",, "T") -> 1011.59 | I78: =RTD("cqg.rtd", ,"ContractData",C78, "NetLastTradeToday",, "T") -> -3.3 | J78: =IFERROR(RTD("cqg.rtd", ,"ContractData",C78, "PerCentNetLastTrade",, "T")/100,"") -> -0.003251583915 | K78: =RTD("cqg.rtd", ,"ContractData", C78, "T_CVol",, "T") -> 828429 | L78: 78 | M78: =IFERROR(RANK($J78,$J$1:J$391)+COUNTIF($J$1:J78,J78)-1,"") -> 190 | N78: S.US.COST | O78: S.US.TTEK
A79: S.US.CPAY | B79: 1 | C79: S.US.CPAY | D79: =RTD("cqg.rtd", ,"ContractData",C79, "LongDescription",, "T") -> Corpay, Inc. | H79: =RTD("cqg.rtd", ,"ContractData",C79, "LastTradeToday",, "T") -> 328.37 | I79: =RTD("cqg.rtd", ,"ContractData",C79, "NetLastTradeToday",, "T") -> 0.21 | J79: =IFERROR(RTD("cqg.rtd", ,"ContractData",C79, "PerCentNetLastTrade",, "T")/100,"") -> 0.0006399317406 | K79: =RTD("cqg.rtd", ,"ContractData", C79, "T_CVol",, "T") -> 281521 | L79: 79 | M79: =IFERROR(RANK($J79,$J$1:J$391)+COUNTIF($J$1:J79,J79)-1,"") -> 124 | N79: S.US.CPAY | O79: S.US.LOAR
A80: S.US.CPNG | B80: 0 | C80: S.US.CPNG | D80: =RTD("cqg.rtd", ,"ContractData",C80, "LongDescription",, "T") -> Coupang, Inc. | H80: =RTD("cqg.rtd", ,"ContractData",C80, "LastTradeToday",, "T") -> 23.98 | I80: =RTD("cqg.rtd", ,"ContractData",C80, "NetLastTradeToday",, "T") -> -0.01 | J80: =IFERROR(RTD("cqg.rtd", ,"ContractData",C80, "PerCentNetLastTrade",, "T")/100,"") -> -0.0004168403501 | K80: =RTD("cqg.rtd", ,"ContractData", C80, "T_CVol",, "T") -> 4249872 | L80: 80 | M80: =IFERROR(RANK($J80,$J$1:J$391)+COUNTIF($J$1:J80,J80)-1,"") -> 142 | N80: S.US.CPNG | O80: S.US.PGR
A81: S.US.CPRT | B81: 0 | C81: S.US.CPRT | D81: =RTD("cqg.rtd", ,"ContractData",C81, "LongDescription",, "T") -> Copart Inc | H81: =RTD("cqg.rtd", ,"ContractData",C81, "LastTradeToday",, "T") -> 60.76 | I81: =RTD("cqg.rtd", ,"ContractData",C81, "NetLastTradeToday",, "T") -> -0.29 | J81: =IFERROR(RTD("cqg.rtd", ,"ContractData",C81, "PerCentNetLastTrade",, "T")/100,"") -> -0.00475020475 | K81: =RTD("cqg.rtd", ,"ContractData", C81, "T_CVol",, "T") -> 1381461 | L81: 81 | M81: =IFERROR(RANK($J81,$J$1:J$391)+COUNTIF($J$1:J81,J81)-1,"") -> 221 | N81: S.US.CPRT | O81: S.US.QCOM
A82: S.US.CRM | B82: 1 | C82: S.US.CRM | D82: =RTD("cqg.rtd", ,"ContractData",C82, "LongDescription",, "T") -> Salesforce, Inc. | H82: =RTD("cqg.rtd", ,"ContractData",C82, "LastTradeToday",, "T") -> 273.09 | I82: =RTD("cqg.rtd", ,"ContractData",C82, "NetLastTradeToday",, "T") -> 0.46 | J82: =IFERROR(RTD("cqg.rtd", ,"ContractData",C82, "PerCentNetLastTrade",, "T")/100,"") -> 0.001687268459 | K82: =RTD("cqg.rtd", ,"ContractData", C82, "T_CVol",, "T") -> 2777020 | L82: 82 | M82: =IFERROR(RANK($J82,$J$1:J$391)+COUNTIF($J$1:J82,J82)-1,"") -> 107 | N82: S.US.CRM | O82: S.US.RMD
A83: S.US.CROX | B83: 0 | C83: S.US.CROX | D83: =RTD("cqg.rtd", ,"ContractData",C83, "LongDescription",, "T") -> Crocs Inc | H83: =RTD("cqg.rtd", ,"ContractData",C83, "LastTradeToday",, "T") -> 98.33 | I83: =RTD("cqg.rtd", ,"ContractData",C83, "NetLastTradeToday",, "T") -> -2.46 | J83: =IFERROR(RTD("cqg.rtd", ,"ContractData",C83, "PerCentNetLastTrade",, "T")/100,"") -> -0.02440718325 | K83: =RTD("cqg.rtd", ,"ContractData", C83, "T_CVol",, "T") -> 921061 | L83: 83 | M83: =IFERROR(RANK($J83,$J$1:J$391)+COUNTIF($J$1:J83,J83)-1,"") -> 344 | N83: S.US.CROX | O83: S.US.TYL
A84: S.US.CRWD | B84: 1 | C84: S.US.CRWD | D84: =RTD("cqg.rtd", ,"ContractData",C84, "LongDescription",, "T") -> CrowdStrike Holdings, Inc. Class A | H84: =RTD("cqg.rtd", ,"ContractData",C84, "LastTradeToday",, "T") -> 446.88 | I84: =RTD("cqg.rtd", ,"ContractData",C84, "NetLastTradeToday",, "T") -> 3.41 | J84: =IFERROR(RTD("cqg.rtd", ,"ContractData",C84, "PerCentNetLastTrade",, "T")/100,"") -> 0.007689358919 | K84: =RTD("cqg.rtd", ,"ContractData", C84, "T_CVol",, "T") -> 2116339 | L84: 84 | M84: =IFERROR(RANK($J84,$J$1:J$391)+COUNTIF($J$1:J84,J84)-1,"") -> 62 | N84: S.US.CRWD | O84: S.US.CL
A85: S.US.CSL | B85: 1 | C85: S.US.CSL | D85: =RTD("cqg.rtd", ,"ContractData",C85, "LongDescription",, "T") -> Carlisle Cos Inc | H85: =RTD("cqg.rtd", ,"ContractData",C85, "LastTradeToday",, "T") -> 387.81 | I85: =RTD("cqg.rtd", ,"ContractData",C85, "NetLastTradeToday",, "T") -> 2.76 | J85: =IFERROR(RTD("cqg.rtd", ,"ContractData",C85, "PerCentNetLastTrade",, "T")/100,"") -> 0.007167900273 | K85: =RTD("cqg.rtd", ,"ContractData", C85, "T_CVol",, "T") -> 246696 | L85: 85 | M85: =IFERROR(RANK($J85,$J$1:J$391)+COUNTIF($J$1:J85,J85)-1,"") -> 64 | N85: S.US.CSL | O85: S.US.LNW
A86: S.US.CTAS | B86: 1 | C86: S.US.CTAS | D86: =RTD("cqg.rtd", ,"ContractData",C86, "LongDescription",, "T") -> Cintas Corp | H86: =RTD("cqg.rtd", ,"ContractData",C86, "LastTradeToday",, "T") -> 213.33 | I86: =RTD("cqg.rtd", ,"ContractData",C86, "NetLastTradeToday",, "T") -> 1.51 | J86: =IFERROR(RTD("cqg.rtd", ,"ContractData",C86, "PerCentNetLastTrade",, "T")/100,"") -> 0.007128694174 | K86: =RTD("cqg.rtd", ,"ContractData", C86, "T_CVol",, "T") -> 605428 | L86: 86 | M86: =IFERROR(RANK($J86,$J$1:J$391)+COUNTIF($J$1:J86,J86)-1,"") -> 65 | N86: S.US.CTAS | O86: S.US.AAPL
A87: S.US.CVNA | B87: 1 | C87: S.US.CVNA | D87: =RTD("cqg.rtd", ,"ContractData",C87, "LongDescription",, "T") -> Carvana Co. | H87: =RTD("cqg.rtd", ,"ContractData",C87, "LastTradeToday",, "T") -> 259.64 | I87: =RTD("cqg.rtd", ,"ContractData",C87, "NetLastTradeToday",, "T") -> 0.07 | J87: =IFERROR(RTD("cqg.rtd", ,"ContractData",C87, "PerCentNetLastTrade",, "T")/100,"") -> 0.0002696767731 | K87: =RTD("cqg.rtd", ,"ContractData", C87, "T_CVol",, "T") -> 2321433 | L87: 87 | M87: =IFERROR(RANK($J87,$J$1:J$391)+COUNTIF($J$1:J87,J87)-1,"") -> 131 | N87: S.US.CVNA | O87: S.US.KMX
A88: S.US.DASH | B88: 0 | C88: S.US.DASH | D88: =RTD("cqg.rtd", ,"ContractData",C88, "LongDescription",, "T") -> DoorDash, Inc | H88: =RTD("cqg.rtd", ,"ContractData",C88, "LastTradeToday",, "T") -> 188.63 | I88: =RTD("cqg.rtd", ,"ContractData",C88, "NetLastTradeToday",, "T") -> -16.77 | J88: =IFERROR(RTD("cqg.rtd", ,"ContractData",C88, "PerCentNetLastTrade",, "T")/100,"") -> -0.08164556962 | K88: =RTD("cqg.rtd", ,"ContractData", C88, "T_CVol",, "T") -> 7563655 | L88: 88 | M88: =IFERROR(RANK($J88,$J$1:J$391)+COUNTIF($J$1:J88,J88)-1,"") -> 385 | N88: S.US.DASH | O88: S.US.RLI
A89: S.US.DAY | B89: 0 | C89: S.US.DAY | D89: =RTD("cqg.rtd", ,"ContractData",C89, "LongDescription",, "T") -> Dayforce Inc. | H89: =RTD("cqg.rtd", ,"ContractData",C89, "LastTradeToday",, "T") -> 58.1 | I89: =RTD("cqg.rtd", ,"ContractData",C89, "NetLastTradeToday",, "T") -> -0.3 | J89: =IFERROR(RTD("cqg.rtd", ,"ContractData",C89, "PerCentNetLastTrade",, "T")/100,"") -> -0.005136986301 | K89: =RTD("cqg.rtd", ,"ContractData", C89, "T_CVol",, "T") -> 1858343 | L89: 89 | M89: =IFERROR(RANK($J89,$J$1:J$391)+COUNTIF($J$1:J89,J89)-1,"") -> 230 | N89: S.US.DAY | O89: S.US.PG
A90: S.US.DBX | B90: 0 | C90: S.US.DBX | D90: =RTD("cqg.rtd", ,"ContractData",C90, "LongDescription",, "T") -> Dropbox, Inc. Class A | H90: =RTD("cqg.rtd", ,"ContractData",C90, "LastTradeToday",, "T") -> 28.97 | I90: =RTD("cqg.rtd", ,"ContractData",C90, "NetLastTradeToday",, "T") -> -0.01 | J90: =IFERROR(RTD("cqg.rtd", ,"ContractData",C90, "PerCentNetLastTrade",, "T")/100,"") -> -0.0003450655625 | K90: =RTD("cqg.rtd", ,"ContractData", C90, "T_CVol",, "T") -> 1896112 | L90: 90 | M90: =IFERROR(RANK($J90,$J$1:J$391)+COUNTIF($J$1:J90,J90)-1,"") -> 141 | N90: S.US.DBX | O90: S.US.NVDA
A91: S.US.DDOG | B91: 1 | C91: S.US.DDOG | D91: =RTD("cqg.rtd", ,"ContractData",C91, "LongDescription",, "T") -> Datadog, Inc. Class A | H91: =RTD("cqg.rtd", ,"ContractData",C91, "LastTradeToday",, "T") -> 106.29 | I91: =RTD("cqg.rtd", ,"ContractData",C91, "NetLastTradeToday",, "T") -> 0.59 | J91: =IFERROR(RTD("cqg.rtd", ,"ContractData",C91, "PerCentNetLastTrade",, "T")/100,"") -> 0.005581835383 | K91: =RTD("cqg.rtd", ,"ContractData", C91, "T_CVol",, "T") -> 11228614 | L91: 91 | M91: =IFERROR(RANK($J91,$J$1:J$391)+COUNTIF($J$1:J91,J91)-1,"") -> 77 | N91: S.US.DDOG | O91: S.US.DV
A92: S.US.DECK | B92: 0 | C92: S.US.DECK | D92: =RTD("cqg.rtd", ,"ContractData",C92, "LongDescription",, "T") -> Deckers Outdoor Corp | H92: =RTD("cqg.rtd", ,"ContractData",C92, "LastTradeToday",, "T") -> 117.09 | I92: =RTD("cqg.rtd", ,"ContractData",C92, "NetLastTradeToday",, "T") -> -1.24 | J92: =IFERROR(RTD("cqg.rtd", ,"ContractData",C92, "PerCentNetLastTrade",, "T")/100,"") -> -0.01047916843 | K92: =RTD("cqg.rtd", ,"ContractData", C92, "T_CVol",, "T") -> 1225428 | L92: 92 | M92: =IFERROR(RANK($J92,$J$1:J$391)+COUNTIF($J$1:J92,J92)-1,"") -> 286 | N92: S.US.DECK | O92: S.US.CHE
A93: S.US.DELL | B93: 1 | C93: S.US.DELL | D93: =RTD("cqg.rtd", ,"ContractData",C93, "LongDescription",, "T") -> Dell Technologies Inc. | H93: =RTD("cqg.rtd", ,"ContractData",C93, "LastTradeToday",, "T") -> 94.43 | I93: =RTD("cqg.rtd", ,"ContractData",C93, "NetLastTradeToday",, "T") -> 0.07 | J93: =IFERROR(RTD("cqg.rtd", ,"ContractData",C93, "PerCentNetLastTrade",, "T")/100,"") -> 0.0007418397626 | K93: =RTD("cqg.rtd", ,"ContractData", C93, "T_CVol",, "T") -> 3095393 | L93: 93 | M93: =IFERROR(RANK($J93,$J$1:J$391)+COUNTIF($J$1:J93,J93)-1,"") -> 122 | N93: S.US.DELL | O93: S.US.CFLT
A94: S.US.DJT | B94: 0 | C94: S.US.DJT | D94: =RTD("cqg.rtd", ,"ContractData",C94, "LongDescription",, "T") -> Trump Media & Technology Group Corp. | H94: =RTD("cqg.rtd", ,"ContractData",C94, "LastTradeToday",, "T") -> 23.87 | I94: =RTD("cqg.rtd", ,"ContractData",C94, "NetLastTradeToday",, "T") -> -0.39 | J94: =IFERROR(RTD("cqg.rtd", ,"ContractData",C94, "PerCentNetLastTrade",, "T")/100,"") -> -0.01607584501 | K94: =RTD("cqg.rtd", ,"ContractData", C94, "T_CVol",, "T") -> 1707724 | L94: 94 | M94: =IFERROR(RANK($J94,$J$1:J$391)+COUNTIF($J$1:J94,J94)-1,"") -> 322 | N94: S.US.DJT | O94: S.US.MPWR
A95: S.US.DKNG | B95: 0 | C95: S.US.DKNG | D95: =RTD("cqg.rtd", ,"ContractData",C95, "LongDescription",, "T") -> DraftKings Inc. Class A | H95: =RTD("cqg.rtd", ,"ContractData",C95, "LastTradeToday",, "T") -> 33.64 | I95: =RTD("cqg.rtd", ,"ContractData",C95, "NetLastTradeToday",, "T") -> -0.49 | J95: =IFERROR(RTD("cqg.rtd", ,"ContractData",C95, "PerCentNetLastTrade",, "T")/100,"") -> -0.01435687079 | K95: =RTD("cqg.rtd", ,"ContractData", C95, "T_CVol",, "T") -> 5873792 | L95: 95 | M95: =IFERROR(RANK($J95,$J$1:J$391)+COUNTIF($J$1:J95,J95)-1,"") -> 311 | N95: S.US.DKNG | O95: S.US.MKL
A96: S.US.DKS | B96: 0 | C96: S.US.DKS | D96: =RTD("cqg.rtd", ,"ContractData",C96, "LongDescription",, "T") -> Dicks Sporting Goods Inc. | H96: =RTD("cqg.rtd", ,"ContractData",C96, "LastTradeToday",, "T") -> 186.97 | I96: =RTD("cqg.rtd", ,"ContractData",C96, "NetLastTradeToday",, "T") -> -2.8 | J96: =IFERROR(RTD("cqg.rtd", ,"ContractData",C96, "PerCentNetLastTrade",, "T")/100,"") -> -0.01475470306 | K96: =RTD("cqg.rtd", ,"ContractData", C96, "T_CVol",, "T") -> 411085 | L96: 96 | M96: =IFERROR(RANK($J96,$J$1:J$391)+COUNTIF($J$1:J96,J96)-1,"") -> 314 | N96: S.US.DKS | O96: S.US.EQH
A97: S.US.DOCS | B97: 0 | C97: S.US.DOCS | D97: =RTD("cqg.rtd", ,"ContractData",C97, "LongDescription",, "T") -> Doximity, Inc. | H97: =RTD("cqg.rtd", ,"ContractData",C97, "LastTradeToday",, "T") -> 57.45 | I97: =RTD("cqg.rtd", ,"ContractData",C97, "NetLastTradeToday",, "T") -> -1.94 | J97: =IFERROR(RTD("cqg.rtd", ,"ContractData",C97, "PerCentNetLastTrade",, "T")/100,"") -> -0.03266543189 | K97: =RTD("cqg.rtd", ,"ContractData", C97, "T_CVol",, "T") -> 1132639 | L97: 97 | M97: =IFERROR(RANK($J97,$J$1:J$391)+COUNTIF($J$1:J97,J97)-1,"") -> 360 | N97: S.US.DOCS | O97: S.US.MCD
A98: S.US.DOCU | B98: 0 | C98: S.US.DOCU | D98: =RTD("cqg.rtd", ,"ContractData",C98, "LongDescription",, "T") -> DocuSign, Inc. | H98: =RTD("cqg.rtd", ,"ContractData",C98, "LastTradeToday",, "T") -> 82.12 | I98: =RTD("cqg.rtd", ,"ContractData",C98, "NetLastTradeToday",, "T") -> -0.32 | J98: =IFERROR(RTD("cqg.rtd", ,"ContractData",C98, "PerCentNetLastTrade",, "T")/100,"") -> -0.003881610869 | K98: =RTD("cqg.rtd", ,"ContractData", C98, "T_CVol",, "T") -> 488790 | L98: 98 | M98: =IFERROR(RANK($J98,$J$1:J$391)+COUNTIF($J$1:J98,J98)-1,"") -> 198 | N98: S.US.DOCU | O98: S.US.BRO
A99: S.US.DPZ | B99: 1 | C99: S.US.DPZ | D99: =RTD("cqg.rtd", ,"ContractData",C99, "LongDescription",, "T") -> Dominos Pizza, Inc. | H99: =RTD("cqg.rtd", ,"ContractData",C99, "LastTradeToday",, "T") -> 478.98 | I99: =RTD("cqg.rtd", ,"ContractData",C99, "NetLastTradeToday",, "T") -> 1.14 | J99: =IFERROR(RTD("cqg.rtd", ,"ContractData",C99, "PerCentNetLastTrade",, "T")/100,"") -> 0.002385735811 | K99: =RTD("cqg.rtd", ,"ContractData", C99, "T_CVol",, "T") -> 293147 | L99: 99 | M99: =IFERROR(RANK($J99,$J$1:J$391)+COUNTIF($J$1:J99,J99)-1,"") -> 104 | N99: S.US.DPZ | O99: S.US.ZS
A100: S.US.DRI | B100: 0 | C100: S.US.DRI | D100: =RTD("cqg.rtd", ,"ContractData",C100, "LongDescription",, "T") -> Darden Restaurants Inc | H100: =RTD("cqg.rtd", ,"ContractData",C100, "LastTradeToday",, "T") -> 199.11 | I100: =RTD("cqg.rtd", ,"ContractData",C100, "NetLastTradeToday",, "T") -> -3.57 | J100: =IFERROR(RTD("cqg.rtd", ,"ContractData",C100, "PerCentNetLastTrade",, "T")/100,"") -> -0.01761397276 | K100: =RTD("cqg.rtd", ,"ContractData", C100, "T_CVol",, "T") -> 462701 | L100: 100 | M100: =IFERROR(RANK($J100,$J$1:J$391)+COUNTIF($J$1:J100,J100)-1,"") -> 331 | N100: S.US.DRI | O100: S.US.WDAY
A101: S.US.DT | B101: 0 | C101: S.US.DT | D101: =RTD("cqg.rtd", ,"ContractData",C101, "LongDescription",, "T") -> Dynatrace Holdings LLC | H101: =RTD("cqg.rtd", ,"ContractData",C101, "LastTradeToday",, "T") -> 47.4 | I101: =RTD("cqg.rtd", ,"ContractData",C101, "NetLastTradeToday",, "T") -> -0.19 | J101: =IFERROR(RTD("cqg.rtd", ,"ContractData",C101, "PerCentNetLastTrade",, "T")/100,"") -> -0.003992435386 | K101: =RTD("cqg.rtd", ,"ContractData", C101, "T_CVol",, "T") -> 926062 | L101: 101 | M101: =IFERROR(RANK($J101,$J$1:J$391)+COUNTIF($J$1:J101,J101)-1,"") -> 202 | N101: S.US.DT | O101: S.US.PAYC
A102: S.US.DUOL | B102: 0 | C102: S.US.DUOL | D102: =RTD("cqg.rtd", ,"ContractData",C102, "LongDescription",, "T") -> Duolingo, Inc. Class A | H102: =RTD("cqg.rtd", ,"ContractData",C102, "LastTradeToday",, "T") -> 492.57 | I102: =RTD("cqg.rtd", ,"ContractData",C102, "NetLastTradeToday",, "T") -> -1.56 | J102: =IFERROR(RTD("cqg.rtd", ,"ContractData",C102, "PerCentNetLastTrade",, "T")/100,"") -> -0.003157063931 | K102: =RTD("cqg.rtd", ,"ContractData", C102, "T_CVol",, "T") -> 1242746 | L102: 102 | M102: =IFERROR(RANK($J102,$J$1:J$391)+COUNTIF($J$1:J102,J102)-1,"") -> 188 | N102: S.US.DUOL | O102: S.US.EW
A103: S.US.DV | B103: 1 | C103: S.US.DV | D103: =RTD("cqg.rtd", ,"ContractData",C103, "LongDescription",, "T") -> DoubleVerify Holdings, Inc. | H103: =RTD("cqg.rtd", ,"ContractData",C103, "LastTradeToday",, "T") -> 13.48 | I103: =RTD("cqg.rtd", ,"ContractData",C103, "NetLastTradeToday",, "T") -> 0.05 | J103: =IFERROR(RTD("cqg.rtd", ,"ContractData",C103, "PerCentNetLastTrade",, "T")/100,"") -> 0.003723008191 | K103: =RTD("cqg.rtd", ,"ContractData", C103, "T_CVol",, "T") -> 1414121 | L103: 103 | M103: =IFERROR(RANK($J103,$J$1:J$391)+COUNTIF($J$1:J103,J103)-1,"") -> 91 | N103: =C103 -> S.US.DV | O103: S.US.CI
A104: S.US.DVA | B104: 1 | C104: S.US.DVA | D104: =RTD("cqg.rtd", ,"ContractData",C104, "LongDescription",, "T") -> DaVita Inc. | H104: =RTD("cqg.rtd", ,"ContractData",C104, "LastTradeToday",, "T") -> 142.94 | I104: =RTD("cqg.rtd", ,"ContractData",C104, "NetLastTradeToday",, "T") -> 1.37 | J104: =IFERROR(RTD("cqg.rtd", ,"ContractData",C104, "PerCentNetLastTrade",, "T")/100,"") -> 0.009677191495 | K104: =RTD("cqg.rtd", ,"ContractData", C104, "T_CVol",, "T") -> 469838 | L104: 104 | M104: =IFERROR(RANK($J104,$J$1:J$391)+COUNTIF($J$1:J104,J104)-1,"") -> 46 | N104: S.US.DVA | O104: S.US.DPZ
A105: S.US.DXCM | B105: 1 | C105: S.US.DXCM | D105: =RTD("cqg.rtd", ,"ContractData",C105, "LongDescription",, "T") -> DexCom Inc | H105: =RTD("cqg.rtd", ,"ContractData",C105, "LastTradeToday",, "T") -> 81.98 | I105: =RTD("cqg.rtd", ,"ContractData",C105, "NetLastTradeToday",, "T") -> 1.71 | J105: =IFERROR(RTD("cqg.rtd", ,"ContractData",C105, "PerCentNetLastTrade",, "T")/100,"") -> 0.02130310203 | K105: =RTD("cqg.rtd", ,"ContractData", C105, "T_CVol",, "T") -> 3632641 | L105: 105 | M105: =IFERROR(RANK($J105,$J$1:J$391)+COUNTIF($J$1:J105,J105)-1,"") -> 16 | N105: S.US.DXCM | O105: S.US.PODD
A106: S.US.ECL | B106: 0 | C106: S.US.ECL | D106: =RTD("cqg.rtd", ,"ContractData",C106, "LongDescription",, "T") -> Ecolab Inc | H106: =RTD("cqg.rtd", ,"ContractData",C106, "LastTradeToday",, "T") -> 253.1 | I106: =RTD("cqg.rtd", ,"ContractData",C106, "NetLastTradeToday",, "T") -> -2 | J106: =IFERROR(RTD("cqg.rtd", ,"ContractData",C106, "PerCentNetLastTrade",, "T")/100,"") -> -0.007840062721 | K106: =RTD("cqg.rtd", ,"ContractData", C106, "T_CVol",, "T") -> 349670 | L106: 106 | M106: =IFERROR(RANK($J106,$J$1:J$391)+COUNTIF($J$1:J106,J106)-1,"") -> 264 | N106: S.US.ECL | O106: S.US.GE
A107: S.US.EFX | B107: 1 | C107: S.US.EFX | D107: =RTD("cqg.rtd", ,"ContractData",C107, "LongDescription",, "T") -> Equifax Inc | H107: =RTD("cqg.rtd", ,"ContractData",C107, "LastTradeToday",, "T") -> 262.39 | I107: =RTD("cqg.rtd", ,"ContractData",C107, "NetLastTradeToday",, "T") -> 0.04 | J107: =IFERROR(RTD("cqg.rtd", ,"ContractData",C107, "PerCentNetLastTrade",, "T")/100,"") -> 0.000152468077 | K107: =RTD("cqg.rtd", ,"ContractData", C107, "T_CVol",, "T") -> 293333 | L107: 107 | M107: =IFERROR(RANK($J107,$J$1:J$391)+COUNTIF($J$1:J107,J107)-1,"") -> 132 | N107: S.US.EFX | O107: S.US.CRM
A108: S.US.EG | B108: 0 | C108: S.US.EG | D108: =RTD("cqg.rtd", ,"ContractData",C108, "LongDescription",, "T") -> Everest Group, Ltd. | H108: =RTD("cqg.rtd", ,"ContractData",C108, "LastTradeToday",, "T") -> 345.59 | I108: =RTD("cqg.rtd", ,"ContractData",C108, "NetLastTradeToday",, "T") -> -1.77 | J108: =IFERROR(RTD("cqg.rtd", ,"ContractData",C108, "PerCentNetLastTrade",, "T")/100,"") -> -0.005095578075 | K108: =RTD("cqg.rtd", ,"ContractData", C108, "T_CVol",, "T") -> 232180 | L108: 108 | M108: =IFERROR(RANK($J108,$J$1:J$391)+COUNTIF($J$1:J108,J108)-1,"") -> 226 | N108: S.US.EG | O108: S.US.COR
A109: S.US.EL | B109: 1 | C109: S.US.EL | D109: =RTD("cqg.rtd", ,"ContractData",C109, "LongDescription",, "T") -> Estee Lauder Companies | H109: =RTD("cqg.rtd", ,"ContractData",C109, "LastTradeToday",, "T") -> 58.57 | I109: =RTD("cqg.rtd", ,"ContractData",C109, "NetLastTradeToday",, "T") -> 0.87 | J109: =IFERROR(RTD("cqg.rtd", ,"ContractData",C109, "PerCentNetLastTrade",, "T")/100,"") -> 0.0150779896 | K109: =RTD("cqg.rtd", ,"ContractData", C109, "T_CVol",, "T") -> 2066441 | L109: 109 | M109: =IFERROR(RANK($J109,$J$1:J$391)+COUNTIF($J$1:J109,J109)-1,"") -> 27 | N109: S.US.EL | O109: S.US.PEN
A110: S.US.ELF | B110: 0 | C110: S.US.ELF | D110: =RTD("cqg.rtd", ,"ContractData",C110, "LongDescription",, "T") -> e.l.f. Beauty, Inc. | H110: =RTD("cqg.rtd", ,"ContractData",C110, "LastTradeToday",, "T") -> 67.33 | I110: =RTD("cqg.rtd", ,"ContractData",C110, "NetLastTradeToday",, "T") -> -0.46 | J110: =IFERROR(RTD("cqg.rtd", ,"ContractData",C110, "PerCentNetLastTrade",, "T")/100,"") -> -0.006785661602 | K110: =RTD("cqg.rtd", ,"ContractData", C110, "T_CVol",, "T") -> 835954 | L110: 110 | M110: =IFERROR(RANK($J110,$J$1:J$391)+COUNTIF($J$1:J110,J110)-1,"") -> 248 | N110: S.US.ELF | O110: S.US.JBL
A111: S.US.ELV | B111: 0 | C111: S.US.ELV | D111: =RTD("cqg.rtd", ,"ContractData",C111, "LongDescription",, "T") -> Elevance Health, Inc. | H111: =RTD("cqg.rtd", ,"ContractData",C111, "LastTradeToday",, "T") -> 415.21 | I111: =RTD("cqg.rtd", ,"ContractData",C111, "NetLastTradeToday",, "T") -> -1.09 | J111: =IFERROR(RTD("cqg.rtd", ,"ContractData",C111, "PerCentNetLastTrade",, "T")/100,"") -> -0.002618304108 | K111: =RTD("cqg.rtd", ,"ContractData", C111, "T_CVol",, "T") -> 577893 | L111: 111 | M111: =IFERROR(RANK($J111,$J$1:J$391)+COUNTIF($J$1:J111,J111)-1,"") -> 177 | N111: S.US.ELV | O111: S.US.MMC
A112: S.US.EME | B112: 0 | C112: S.US.EME | D112: =RTD("cqg.rtd", ,"ContractData",C112, "LongDescription",, "T") -> EMCOR Group | H112: =RTD("cqg.rtd", ,"ContractData",C112, "LastTradeToday",, "T") -> 434.56 | I112: =RTD("cqg.rtd", ,"ContractData",C112, "NetLastTradeToday",, "T") -> -1.43 | J112: =IFERROR(RTD("cqg.rtd", ,"ContractData",C112, "PerCentNetLastTrade",, "T")/100,"") -> -0.003279891741 | K112: =RTD("cqg.rtd", ,"ContractData", C112, "T_CVol",, "T") -> 269961 | L112: 112 | M112: =IFERROR(RANK($J112,$J$1:J$391)+COUNTIF($J$1:J112,J112)-1,"") -> 192 | N112: S.US.EME | O112: S.US.AVGO
A113: S.US.ENPH | B113: 0 | C113: S.US.ENPH | D113: =RTD("cqg.rtd", ,"ContractData",C113, "LongDescription",, "T") -> Enphase Energy, Inc. | H113: =RTD("cqg.rtd", ,"ContractData",C113, "LastTradeToday",, "T") -> 44.33 | I113: =RTD("cqg.rtd", ,"ContractData",C113, "NetLastTradeToday",, "T") -> -0.09 | J113: =IFERROR(RTD("cqg.rtd", ,"ContractData",C113, "PerCentNetLastTrade",, "T")/100,"") -> -0.002026114363 | K113: =RTD("cqg.rtd", ,"ContractData", C113, "T_CVol",, "T") -> 4532820 | L113: 113 | M113: =IFERROR(RANK($J113,$J$1:J$391)+COUNTIF($J$1:J113,J113)-1,"") -> 168 | N113: S.US.ENPH | O113: S.US.NTNX
A114: S.US.ENTG | B114: 0 | C114: S.US.ENTG | D114: =RTD("cqg.rtd", ,"ContractData",C114, "LongDescription",, "T") -> Entegris Inc | H114: =RTD("cqg.rtd", ,"ContractData",C114, "LastTradeToday",, "T") -> 83.51 | I114: =RTD("cqg.rtd", ,"ContractData",C114, "NetLastTradeToday",, "T") -> -0.38 | J114: =IFERROR(RTD("cqg.rtd", ,"ContractData",C114, "PerCentNetLastTrade",, "T")/100,"") -> -0.004529741328 | K114: =RTD("cqg.rtd", ,"ContractData", C114, "T_CVol",, "T") -> 2131333 | L114: 114 | M114: =IFERROR(RANK($J114,$J$1:J$391)+COUNTIF($J$1:J114,J114)-1,"") -> 215 | N114: S.US.ENTG | O114: S.US.BPOP
A115: S.US.EPAM | B115: 0 | C115: S.US.EPAM | D115: =RTD("cqg.rtd", ,"ContractData",C115, "LongDescription",, "T") -> EPAM Systems, Inc. | H115: =RTD("cqg.rtd", ,"ContractData",C115, "LastTradeToday",, "T") -> 158.38 | I115: =RTD("cqg.rtd", ,"ContractData",C115, "NetLastTradeToday",, "T") -> -0.74 | J115: =IFERROR(RTD("cqg.rtd", ,"ContractData",C115, "PerCentNetLastTrade",, "T")/100,"") -> -0.00465057818 | K115: =RTD("cqg.rtd", ,"ContractData", C115, "T_CVol",, "T") -> 315765 | L115: 115 | M115: =IFERROR(RANK($J115,$J$1:J$391)+COUNTIF($J$1:J115,J115)-1,"") -> 220 | N115: S.US.EPAM | O115: S.US.AWI
A116: S.US.EQH | B116: 1 | C116: S.US.EQH | D116: =RTD("cqg.rtd", ,"ContractData",C116, "LongDescription",, "T") -> Equitable Holdings, Inc. | H116: =RTD("cqg.rtd", ,"ContractData",C116, "LastTradeToday",, "T") -> 50.47 | I116: =RTD("cqg.rtd", ,"ContractData",C116, "NetLastTradeToday",, "T") -> 0.16 | J116: =IFERROR(RTD("cqg.rtd", ,"ContractData",C116, "PerCentNetLastTrade",, "T")/100,"") -> 0.00318028225 | K116: =RTD("cqg.rtd", ,"ContractData", C116, "T_CVol",, "T") -> 1097234 | L116: 116 | M116: =IFERROR(RANK($J116,$J$1:J$391)+COUNTIF($J$1:J116,J116)-1,"") -> 96 | N116: S.US.EQH | O116: S.US.MSTR
A117: S.US.EQIX | B117: 0 | C117: S.US.EQIX | D117: =RTD("cqg.rtd", ,"ContractData",C117, "LongDescription",, "T") -> Equinix Inc | H117: =RTD("cqg.rtd", ,"ContractData",C117, "LastTradeToday",, "T") -> 878.8 | I117: =RTD("cqg.rtd", ,"ContractData",C117, "NetLastTradeToday",, "T") -> -4.41 | J117: =IFERROR(RTD("cqg.rtd", ,"ContractData",C117, "PerCentNetLastTrade",, "T")/100,"") -> -0.004993149987 | K117: =RTD("cqg.rtd", ,"ContractData", C117, "T_CVol",, "T") -> 267396 | L117: 117 | M117: =IFERROR(RANK($J117,$J$1:J$391)+COUNTIF($J$1:J117,J117)-1,"") -> 222 | N117: S.US.EQIX | O117: S.US.AM
A118: S.US.EQT | B118: 0 | C118: S.US.EQT | D118: =RTD("cqg.rtd", ,"ContractData",C118, "LongDescription",, "T") -> EQT Corp | H118: =RTD("cqg.rtd", ,"ContractData",C118, "LastTradeToday",, "T") -> 53.47 | I118: =RTD("cqg.rtd", ,"ContractData",C118, "NetLastTradeToday",, "T") -> -0.05 | J118: =IFERROR(RTD("cqg.rtd", ,"ContractData",C118, "PerCentNetLastTrade",, "T")/100,"") -> -0.0009342301943 | K118: =RTD("cqg.rtd", ,"ContractData", C118, "T_CVol",, "T") -> 3921738 | L118: 118 | M118: =IFERROR(RANK($J118,$J$1:J$391)+COUNTIF($J$1:J118,J118)-1,"") -> 150 | N118: S.US.EQT | O118: S.US.AMT
A119: S.US.ESTC | B119: 0 | C119: S.US.ESTC | D119: =RTD("cqg.rtd", ,"ContractData",C119, "LongDescription",, "T") -> Elastic N.V. | H119: =RTD("cqg.rtd", ,"ContractData",C119, "LastTradeToday",, "T") -> 82.88 | I119: =RTD("cqg.rtd", ,"ContractData",C119, "NetLastTradeToday",, "T") -> -0.38 | J119: =IFERROR(RTD("cqg.rtd", ,"ContractData",C119, "PerCentNetLastTrade",, "T")/100,"") -> -0.004564016334 | K119: =RTD("cqg.rtd", ,"ContractData", C119, "T_CVol",, "T") -> 1091750 | L119: 119 | M119: =IFERROR(RANK($J119,$J$1:J$391)+COUNTIF($J$1:J119,J119)-1,"") -> 216 | N119: S.US.ESTC | O119: S.US.ISRG
A120: S.US.ETSY | B120: 0 | C120: S.US.ETSY | D120: =RTD("cqg.rtd", ,"ContractData",C120, "LongDescription",, "T") -> Etsy, Inc. | H120: =RTD("cqg.rtd", ,"ContractData",C120, "LastTradeToday",, "T") -> 44.97 | I120: =RTD("cqg.rtd", ,"ContractData",C120, "NetLastTradeToday",, "T") -> -0.11 | J120: =IFERROR(RTD("cqg.rtd", ,"ContractData",C120, "PerCentNetLastTrade",, "T")/100,"") -> -0.002440106477 | K120: =RTD("cqg.rtd", ,"ContractData", C120, "T_CVol",, "T") -> 2109845 | L120: 120 | M120: =IFERROR(RANK($J120,$J$1:J$391)+COUNTIF($J$1:J120,J120)-1,"") -> 173 | N120: S.US.ETSY | O120: S.US.ROST
A121: S.US.EW | B121: 1 | C121: S.US.EW | D121: =RTD("cqg.rtd", ,"ContractData",C121, "LongDescription",, "T") -> Edwards LifeSciences | H121: =RTD("cqg.rtd", ,"ContractData",C121, "LastTradeToday",, "T") -> 75.31 | I121: =RTD("cqg.rtd", ,"ContractData",C121, "NetLastTradeToday",, "T") -> 0.2 | J121: =IFERROR(RTD("cqg.rtd", ,"ContractData",C121, "PerCentNetLastTrade",, "T")/100,"") -> 0.002662761283 | K121: =RTD("cqg.rtd", ,"ContractData", C121, "T_CVol",, "T") -> 1332561 | L121: 121 | M121: =IFERROR(RANK($J121,$J$1:J$391)+COUNTIF($J$1:J121,J121)-1,"") -> 102 | N121: S.US.EW | O121: S.US.ZBRA
A122: S.US.EXAS | B122: 1 | C122: S.US.EXAS | D122: =RTD("cqg.rtd", ,"ContractData",C122, "LongDescription",, "T") -> EXACT Sciences Corp | H122: =RTD("cqg.rtd", ,"ContractData",C122, "LastTradeToday",, "T") -> 53.92 | I122: =RTD("cqg.rtd", ,"ContractData",C122, "NetLastTradeToday",, "T") -> 0.59 | J122: =IFERROR(RTD("cqg.rtd", ,"ContractData",C122, "PerCentNetLastTrade",, "T")/100,"") -> 0.01106319145 | K122: =RTD("cqg.rtd", ,"ContractData", C122, "T_CVol",, "T") -> 2738060 | L122: 122 | M122: =IFERROR(RANK($J122,$J$1:J$391)+COUNTIF($J$1:J122,J122)-1,"") -> 42 | N122: S.US.EXAS | O122: S.US.DELL
A123: S.US.EXEL | B123: 0 | C123: S.US.EXEL | D123: =RTD("cqg.rtd", ,"ContractData",C123, "LongDescription",, "T") -> Exelixis, Inc. | H123: =RTD("cqg.rtd", ,"ContractData",C123, "LastTradeToday",, "T") -> 36.65 | I123: =RTD("cqg.rtd", ,"ContractData",C123, "NetLastTradeToday",, "T") -> -3.19 | J123: =IFERROR(RTD("cqg.rtd", ,"ContractData",C123, "PerCentNetLastTrade",, "T")/100,"") -> -0.08007028112 | K123: =RTD("cqg.rtd", ,"ContractData", C123, "T_CVol",, "T") -> 2821396 | L123: 123 | M123: =IFERROR(RANK($J123,$J$1:J$391)+COUNTIF($J$1:J123,J123)-1,"") -> 384 | N123: S.US.EXEL | O123: S.US.CGNX
A124: S.US.EXP | B124: 0 | C124: S.US.EXP | D124: =RTD("cqg.rtd", ,"ContractData",C124, "LongDescription",, "T") -> Eagle Materials Inc | H124: =RTD("cqg.rtd", ,"ContractData",C124, "LastTradeToday",, "T") -> 231.84 | I124: =RTD("cqg.rtd", ,"ContractData",C124, "NetLastTradeToday",, "T") -> -3.06 | J124: =IFERROR(RTD("cqg.rtd", ,"ContractData",C124, "PerCentNetLastTrade",, "T")/100,"") -> -0.01302681992 | K124: =RTD("cqg.rtd", ,"ContractData", C124, "T_CVol",, "T") -> 127684 | L124: 124 | M124: =IFERROR(RANK($J124,$J$1:J$391)+COUNTIF($J$1:J124,J124)-1,"") -> 304 | N124: S.US.EXP | O124: S.US.CPAY
A125: S.US.EXPD | B125: 0 | C125: S.US.EXPD | D125: =RTD("cqg.rtd", ,"ContractData",C125, "LongDescription",, "T") -> Expeditors Intl of WA Inc | H125: =RTD("cqg.rtd", ,"ContractData",C125, "LastTradeToday",, "T") -> 106.74 | I125: =RTD("cqg.rtd", ,"ContractData",C125, "NetLastTradeToday",, "T") -> -5.03 | J125: =IFERROR(RTD("cqg.rtd", ,"ContractData",C125, "PerCentNetLastTrade",, "T")/100,"") -> -0.04500313143 | K125: =RTD("cqg.rtd", ,"ContractData", C125, "T_CVol",, "T") -> 1552765 | L125: 125 | M125: =IFERROR(RANK($J125,$J$1:J$391)+COUNTIF($J$1:J125,J125)-1,"") -> 370 | N125: S.US.EXPD | O125: S.US.KO
A126: S.US.EXPE | B126: 0 | C126: S.US.EXPE | D126: =RTD("cqg.rtd", ,"ContractData",C126, "LongDescription",, "T") -> Expedia Group, Inc. | H126: =RTD("cqg.rtd", ,"ContractData",C126, "LastTradeToday",, "T") -> 165.12 | I126: =RTD("cqg.rtd", ,"ContractData",C126, "NetLastTradeToday",, "T") -> -0.5 | J126: =IFERROR(RTD("cqg.rtd", ,"ContractData",C126, "PerCentNetLastTrade",, "T")/100,"") -> -0.003018959063 | K126: =RTD("cqg.rtd", ,"ContractData", C126, "T_CVol",, "T") -> 1230942 | L126: 126 | M126: =IFERROR(RANK($J126,$J$1:J$391)+COUNTIF($J$1:J126,J126)-1,"") -> 184 | N126: S.US.EXPE | O126: S.US.FI
A127: S.US.FAST | B127: 0 | C127: S.US.FAST | D127: =RTD("cqg.rtd", ,"ContractData",C127, "LongDescription",, "T") -> Fastenal Co | H127: =RTD("cqg.rtd", ,"ContractData",C127, "LastTradeToday",, "T") -> 78.65 | I127: =RTD("cqg.rtd", ,"ContractData",C127, "NetLastTradeToday",, "T") -> -3.77 | J127: =IFERROR(RTD("cqg.rtd", ,"ContractData",C127, "PerCentNetLastTrade",, "T")/100,"") -> -0.04574132492 | K127: =RTD("cqg.rtd", ,"ContractData", C127, "T_CVol",, "T") -> 2780197 | L127: 127 | M127: =IFERROR(RANK($J127,$J$1:J$391)+COUNTIF($J$1:J127,J127)-1,"") -> 371 | N127: S.US.FAST | O127: S.US.APPF
A128: S.US.FDS | B128: 0 | C128: S.US.FDS | D128: =RTD("cqg.rtd", ,"ContractData",C128, "LongDescription",, "T") -> Factet Research | H128: =RTD("cqg.rtd", ,"ContractData",C128, "LastTradeToday",, "T") -> 430.81 | I128: =RTD("cqg.rtd", ,"ContractData",C128, "NetLastTradeToday",, "T") -> -2.28 | J128: =IFERROR(RTD("cqg.rtd", ,"ContractData",C128, "PerCentNetLastTrade",, "T")/100,"") -> -0.005264494678 | K128: =RTD("cqg.rtd", ,"ContractData", C128, "T_CVol",, "T") -> 131319 | L128: 128 | M128: =IFERROR(RANK($J128,$J$1:J$391)+COUNTIF($J$1:J128,J128)-1,"") -> 235 | N128: S.US.FDS | O128: S.US.IRM
A129: S.US.FERG | B129: 0 | C129: S.US.FERG | D129: =RTD("cqg.rtd", ,"ContractData",C129, "LongDescription",, "T") -> Ferguson plc | H129: =RTD("cqg.rtd", ,"ContractData",C129, "LastTradeToday",, "T") -> 169.52 | I129: =RTD("cqg.rtd", ,"ContractData",C129, "NetLastTradeToday",, "T") -> -2.86 | J129: =IFERROR(RTD("cqg.rtd", ,"ContractData",C129, "PerCentNetLastTrade",, "T")/100,"") -> -0.01659125189 | K129: =RTD("cqg.rtd", ,"ContractData", C129, "T_CVol",, "T") -> 516120 | L129: 129 | M129: =IFERROR(RANK($J129,$J$1:J$391)+COUNTIF($J$1:J129,J129)-1,"") -> 325 | N129: S.US.FERG | O129: =VLOOKUP($L129,$M$1:$N$391,2,FALSE) -> S.US.MCO
A130: S.US.FI | B130: =IF(J130>0,1,0) -> 1 | C130: S.US.FI | D130: =RTD("cqg.rtd", ,"ContractData",C130, "LongDescription",, "T") -> Fiserv, Inc. | H130: =RTD("cqg.rtd", ,"ContractData",C130, "LastTradeToday",, "T") -> 185.59 | I130: =RTD("cqg.rtd", ,"ContractData",C130, "NetLastTradeToday",, "T") -> 0.09 | J130: =IFERROR(RTD("cqg.rtd", ,"ContractData",C130, "PerCentNetLastTrade",, "T")/100,"") -> 0.0004851752022 | K130: =RTD("cqg.rtd", ,"ContractData", C130, "T_CVol",, "T") -> 1409446 | L130: 130 | M130: =IFERROR(RANK($J130,$J$1:J$391)+COUNTIF($J$1:J130,J130)-1,"") -> 126 | N130: S.US.FI | O130: S.US.BKNG
A131: S.US.FICO | B131: 0 | C131: S.US.FICO | D131: =RTD("cqg.rtd", ,"ContractData",C131, "LongDescription",, "T") -> Fair Isaac Inc | H131: =RTD("cqg.rtd", ,"ContractData",C131, "LastTradeToday",, "T") -> 2076.18 | I131: =RTD("cqg.rtd", ,"ContractData",C131, "NetLastTradeToday",, "T") -> -4.23 | J131: =IFERROR(RTD("cqg.rtd", ,"ContractData",C131, "PerCentNetLastTrade",, "T")/100,"") -> -0.002033253061 | K131: =RTD("cqg.rtd", ,"ContractData", C131, "T_CVol",, "T") -> 48049 | L131: =L130+1 -> 131 | M131: =IFERROR(RANK($J131,$J$1:J$391)+COUNTIF($J$1:J131,J131)-1,"") -> 169 | N131: S.US.FICO | O131: S.US.CVNA
A132: S.US.FIVE | B132: 0 | C132: S.US.FIVE | D132: =RTD("cqg.rtd", ,"ContractData",C132, "LongDescription",, "T") -> Five Below, Inc. | H132: =RTD("cqg.rtd", ,"ContractData",C132, "LastTradeToday",, "T") -> 81.32 | I132: =RTD("cqg.rtd", ,"ContractData",C132, "NetLastTradeToday",, "T") -> -1.47 | J132: =IFERROR(RTD("cqg.rtd", ,"ContractData",C132, "PerCentNetLastTrade",, "T")/100,"") -> -0.0177557676 | K132: =RTD("cqg.rtd", ,"ContractData", C132, "T_CVol",, "T") -> 1331568 | L132: 132 | M132: =IFERROR(RANK($J132,$J$1:J$391)+COUNTIF($J$1:J132,J132)-1,"") -> 332 | N132: S.US.FIVE | O132: S.US.EFX
A133: S.US.FIVN | B133: 0 | C133: S.US.FIVN | D133: =RTD("cqg.rtd", ,"ContractData",C133, "LongDescription",, "T") -> Five9, Inc. | H133: =RTD("cqg.rtd", ,"ContractData",C133, "LastTradeToday",, "T") -> 25.11 | I133: =RTD("cqg.rtd", ,"ContractData",C133, "NetLastTradeToday",, "T") -> -0.13 | J133: =IFERROR(RTD("cqg.rtd", ,"ContractData",C133, "PerCentNetLastTrade",, "T")/100,"") -> -0.005150554675 | K133: =RTD("cqg.rtd", ,"ContractData", C133, "T_CVol",, "T") -> 958051 | L133: 133 | M133: =IFERROR(RANK($J133,$J$1:J$391)+COUNTIF($J$1:J133,J133)-1,"") -> 233 | N133: S.US.FIVN | O133: S.US.V
A134: S.US.FIX | B134: 0 | C134: S.US.FIX | D134: =RTD("cqg.rtd", ,"ContractData",C134, "LongDescription",, "T") -> Comfort Systems USA Inc | H134: =RTD("cqg.rtd", ,"ContractData",C134, "LastTradeToday",, "T") -> 431.69 | I134: =RTD("cqg.rtd", ,"ContractData",C134, "NetLastTradeToday",, "T") -> -3.6 | J134: =IFERROR(RTD("cqg.rtd", ,"ContractData",C134, "PerCentNetLastTrade",, "T")/100,"") -> -0.008270348503 | K134: =RTD("cqg.rtd", ,"ContractData", C134, "T_CVol",, "T") -> 130828 | L134: 134 | M134: =IFERROR(RANK($J134,$J$1:J$391)+COUNTIF($J$1:J134,J134)-1,"") -> 268 | N134: S.US.FIX | O134: S.US.BSY
A135: S.US.FND | B135: 0 | C135: S.US.FND | D135: =RTD("cqg.rtd", ,"ContractData",C135, "LongDescription",, "T") -> Floor And Decor Holdings, Inc. | H135: =RTD("cqg.rtd", ,"ContractData",C135, "LastTradeToday",, "T") -> 73.31 | I135: =RTD("cqg.rtd", ,"ContractData",C135, "NetLastTradeToday",, "T") -> -0.69 | J135: =IFERROR(RTD("cqg.rtd", ,"ContractData",C135, "PerCentNetLastTrade",, "T")/100,"") -> -0.009324324324 | K135: =RTD("cqg.rtd", ,"ContractData", C135, "T_CVol",, "T") -> 1476667 | L135: 135 | M135: =IFERROR(RANK($J135,$J$1:J$391)+COUNTIF($J$1:J135,J135)-1,"") -> 278 | N135: S.US.FND | O135: S.US.LNG
A136: S.US.FOUR | B136: 1 | C136: S.US.FOUR | D136: =RTD("cqg.rtd", ,"ContractData",C136, "LongDescription",, "T") -> Shift4 Payments, Inc | H136: =RTD("cqg.rtd", ,"ContractData",C136, "LastTradeToday",, "T") -> 83.22 | I136: =RTD("cqg.rtd", ,"ContractData",C136, "NetLastTradeToday",, "T") -> 0.58 | J136: =IFERROR(RTD("cqg.rtd", ,"ContractData",C136, "PerCentNetLastTrade",, "T")/100,"") -> 0.00701839303 | K136: =RTD("cqg.rtd", ,"ContractData", C136, "T_CVol",, "T") -> 878604 | L136: 136 | M136: =IFERROR(RANK($J136,$J$1:J$391)+COUNTIF($J$1:J136,J136)-1,"") -> 66 | N136: S.US.FOUR | O136: S.US.WM
A137: S.US.FRPT | B137: 1 | C137: S.US.FRPT | D137: =RTD("cqg.rtd", ,"ContractData",C137, "LongDescription",, "T") -> Freshpet, Inc. | H137: =RTD("cqg.rtd", ,"ContractData",C137, "LastTradeToday",, "T") -> 81 | I137: =RTD("cqg.rtd", ,"ContractData",C137, "NetLastTradeToday",, "T") -> 1.91 | J137: =IFERROR(RTD("cqg.rtd", ,"ContractData",C137, "PerCentNetLastTrade",, "T")/100,"") -> 0.02414970287 | K137: =RTD("cqg.rtd", ,"ContractData", C137, "T_CVol",, "T") -> 1574570 | L137: 137 | M137: =IFERROR(RANK($J137,$J$1:J$391)+COUNTIF($J$1:J137,J137)-1,"") -> 13 | N137: S.US.FRPT | O137: S.US.SKX
A138: S.US.FTNT | B138: 0 | C138: S.US.FTNT | D138: =RTD("cqg.rtd", ,"ContractData",C138, "LongDescription",, "T") -> Fortinet, Inc. | H138: =RTD("cqg.rtd", ,"ContractData",C138, "LastTradeToday",, "T") -> 107.62 | I138: =RTD("cqg.rtd", ,"ContractData",C138, "NetLastTradeToday",, "T") -> -1.07 | J138: =IFERROR(RTD("cqg.rtd", ,"ContractData",C138, "PerCentNetLastTrade",, "T")/100,"") -> -0.009844511915 | K138: =RTD("cqg.rtd", ,"ContractData", C138, "T_CVol",, "T") -> 3132632 | L138: 138 | M138: =IFERROR(RANK($J138,$J$1:J$391)+COUNTIF($J$1:J138,J138)-1,"") -> 282 | N138: S.US.FTNT | O138: S.US.MA
A139: S.US.FTRE | B139: 0 | C139: S.US.FTRE | D139: =RTD("cqg.rtd", ,"ContractData",C139, "LongDescription",, "T") -> Fortrea Holdings Inc. | H139: =RTD("cqg.rtd", ,"ContractData",C139, "LastTradeToday",, "T") -> 5.51 | I139: =RTD("cqg.rtd", ,"ContractData",C139, "NetLastTradeToday",, "T") -> -0.42 | J139: =IFERROR(RTD("cqg.rtd", ,"ContractData",C139, "PerCentNetLastTrade",, "T")/100,"") -> -0.07082630691 | K139: =RTD("cqg.rtd", ,"ContractData", C139, "T_CVol",, "T") -> 1179886 | L139: 139 | M139: =IFERROR(RANK($J139,$J$1:J$391)+COUNTIF($J$1:J139,J139)-1,"") -> 382 | N139: S.US.FTRE | O139: S.US.ADSK
A140: S.US.FWONA | B140: 0 | C140: S.US.FWONA | D140: =RTD("cqg.rtd", ,"ContractData",C140, "LongDescription",, "T") -> Liberty Media Corporation | H140: =RTD("cqg.rtd", ,"ContractData",C140, "LastTradeToday",, "T") -> 82.9 | I140: =RTD("cqg.rtd", ,"ContractData",C140, "NetLastTradeToday",, "T") -> -1.37 | J140: =IFERROR(RTD("cqg.rtd", ,"ContractData",C140, "PerCentNetLastTrade",, "T")/100,"") -> -0.0162572683 | K140: =RTD("cqg.rtd", ,"ContractData", C140, "T_CVol",, "T") -> 62760 | L140: 140 | M140: =IFERROR(RANK($J140,$J$1:J$391)+COUNTIF($J$1:J140,J140)-1,"") -> 324 | N140: S.US.FWONA | O140: S.US.SSD
A141: S.US.FWONK | B141: 0 | C141: S.US.FWONK | D141: =RTD("cqg.rtd", ,"ContractData",C141, "LongDescription",, "T") -> Liberty Media Corporation Series C | H141: =RTD("cqg.rtd", ,"ContractData",C141, "LastTradeToday",, "T") -> 91.07 | I141: =RTD("cqg.rtd", ,"ContractData",C141, "NetLastTradeToday",, "T") -> -0.85 | J141: =IFERROR(RTD("cqg.rtd", ,"ContractData",C141, "PerCentNetLastTrade",, "T")/100,"") -> -0.009247171453 | K141: =RTD("cqg.rtd", ,"ContractData", C141, "T_CVol",, "T") -> 867469 | L141: 141 | M141: =IFERROR(RANK($J141,$J$1:J$391)+COUNTIF($J$1:J141,J141)-1,"") -> 276 | N141: S.US.FWONK | O141: S.US.DBX
A142: S.US.GDDY | B142: 1 | C142: S.US.GDDY | D142: =RTD("cqg.rtd", ,"ContractData",C142, "LongDescription",, "T") -> GoDaddy Inc. | H142: =RTD("cqg.rtd", ,"ContractData",C142, "LastTradeToday",, "T") -> 183.42 | I142: =RTD("cqg.rtd", ,"ContractData",C142, "NetLastTradeToday",, "T") -> 1.23 | J142: =IFERROR(RTD("cqg.rtd", ,"ContractData",C142, "PerCentNetLastTrade",, "T")/100,"") -> 0.006751193809 | K142: =RTD("cqg.rtd", ,"ContractData", C142, "T_CVol",, "T") -> 589317 | L142: 142 | M142: =IFERROR(RANK($J142,$J$1:J$391)+COUNTIF($J$1:J142,J142)-1,"") -> 69 | N142: S.US.GDDY | O142: S.US.CPNG
A143: S.US.GE | B143: 1 | C143: S.US.GE | D143: =RTD("cqg.rtd", ,"ContractData",C143, "LongDescription",, "T") -> General Electric Co | H143: =RTD("cqg.rtd", ,"ContractData",C143, "LastTradeToday",, "T") -> 209.3 | I143: =RTD("cqg.rtd", ,"ContractData",C143, "NetLastTradeToday",, "T") -> 0.36 | J143: =IFERROR(RTD("cqg.rtd", ,"ContractData",C143, "PerCentNetLastTrade",, "T")/100,"") -> 0.001722982674 | K143: =RTD("cqg.rtd", ,"ContractData", C143, "T_CVol",, "T") -> 2077610 | L143: 143 | M143: =IFERROR(RANK($J143,$J$1:J$391)+COUNTIF($J$1:J143,J143)-1,"") -> 106 | N143: S.US.GE | O143: S.US.PCOR
A144: S.US.GEHC | B144: 0 | C144: S.US.GEHC | D144: =RTD("cqg.rtd", ,"ContractData",C144, "LongDescription",, "T") -> GE HealthCare Technologies Inc. | H144: =RTD("cqg.rtd", ,"ContractData",C144, "LastTradeToday",, "T") -> 67.58 | I144: =RTD("cqg.rtd", ,"ContractData",C144, "NetLastTradeToday",, "T") -> -1.79 | J144: =IFERROR(RTD("cqg.rtd", ,"ContractData",C144, "PerCentNetLastTrade",, "T")/100,"") -> -0.02580366153 | K144: =RTD("cqg.rtd", ,"ContractData", C144, "T_CVol",, "T") -> 3504763 | L144: 144 | M144: =IFERROR(RANK($J144,$J$1:J$391)+COUNTIF($J$1:J144,J144)-1,"") -> 348 | N144: S.US.GEHC | O144: S.US.VLTO
A145: S.US.GLOB | B145: 1 | C145: S.US.GLOB | D145: =RTD("cqg.rtd", ,"ContractData",C145, "LongDescription",, "T") -> Globant S.A. | H145: =RTD("cqg.rtd", ,"ContractData",C145, "LastTradeToday",, "T") -> 119.59 | I145: =RTD("cqg.rtd", ,"ContractData",C145, "NetLastTradeToday",, "T") -> 1.77 | J145: =IFERROR(RTD("cqg.rtd", ,"ContractData",C145, "PerCentNetLastTrade",, "T")/100,"") -> 0.01502291631 | K145: =RTD("cqg.rtd", ,"ContractData", C145, "T_CVol",, "T") -> 336954 | L145: 145 | M145: =IFERROR(RANK($J145,$J$1:J$391)+COUNTIF($J$1:J145,J145)-1,"") -> 28 | N145: S.US.GLOB | O145: S.US.LOPE
A146: S.US.GNRC | B146: 0 | C146: S.US.GNRC | D146: =RTD("cqg.rtd", ,"ContractData",C146, "LongDescription",, "T") -> Generac Holdings Inc. | H146: =RTD("cqg.rtd", ,"ContractData",C146, "LastTradeToday",, "T") -> 114.28 | I146: =RTD("cqg.rtd", ,"ContractData",C146, "NetLastTradeToday",, "T") -> -2.32 | J146: =IFERROR(RTD("cqg.rtd", ,"ContractData",C146, "PerCentNetLastTrade",, "T")/100,"") -> -0.01989708405 | K146: =RTD("cqg.rtd", ,"ContractData", C146, "T_CVol",, "T") -> 335253 | L146: 146 | M146: =IFERROR(RANK($J146,$J$1:J$391)+COUNTIF($J$1:J146,J146)-1,"") -> 339 | N146: S.US.GNRC | O146: S.US.UI
A147: S.US.GOOG | B147: 0 | C147: S.US.GOOG | D147: =RTD("cqg.rtd", ,"ContractData",C147, "LongDescription",, "T") -> Alphabet, Inc. Class C | H147: =RTD("cqg.rtd", ,"ContractData",C147, "LastTradeToday",, "T") -> 165.8 | I147: =RTD("cqg.rtd", ,"ContractData",C147, "NetLastTradeToday",, "T") -> -0.25 | J147: =IFERROR(RTD("cqg.rtd", ,"ContractData",C147, "PerCentNetLastTrade",, "T")/100,"") -> -0.001505570611 | K147: =RTD("cqg.rtd", ,"ContractData", C147, "T_CVol",, "T") -> 7421433 | L147: 147 | M147: =IFERROR(RANK($J147,$J$1:J$391)+COUNTIF($J$1:J147,J147)-1,"") -> 162 | N147: S.US.GOOG | O147: S.US.CASY
A148: S.US.GOOGL | B148: 0 | C148: S.US.GOOGL | D148: =RTD("cqg.rtd", ,"ContractData",C148, "LongDescription",, "T") -> Alphabet, Inc. Class A | H148: =RTD("cqg.rtd", ,"ContractData",C148, "LastTradeToday",, "T") -> 163.91 | I148: =RTD("cqg.rtd", ,"ContractData",C148, "NetLastTradeToday",, "T") -> -0.3 | J148: =IFERROR(RTD("cqg.rtd", ,"ContractData",C148, "PerCentNetLastTrade",, "T")/100,"") -> -0.001826928932 | K148: =RTD("cqg.rtd", ,"ContractData", C148, "T_CVol",, "T") -> 12001887 | L148: 148 | M148: =IFERROR(RANK($J148,$J$1:J$391)+COUNTIF($J$1:J148,J148)-1,"") -> 165 | N148: S.US.GOOGL | O148: S.US.NU
A149: S.US.GS | B149: 0 | C149: S.US.GS | D149: =RTD("cqg.rtd", ,"ContractData",C149, "LongDescription",, "T") -> Goldman Sachs Group | H149: =RTD("cqg.rtd", ,"ContractData",C149, "LastTradeToday",, "T") -> 553.18 | I149: =RTD("cqg.rtd", ,"ContractData",C149, "NetLastTradeToday",, "T") -> -6.38 | J149: =IFERROR(RTD("cqg.rtd", ,"ContractData",C149, "PerCentNetLastTrade",, "T")/100,"") -> -0.01140181571 | K149: =RTD("cqg.rtd", ,"ContractData", C149, "T_CVol",, "T") -> 2082019 | L149: 149 | M149: =IFERROR(RANK($J149,$J$1:J$391)+COUNTIF($J$1:J149,J149)-1,"") -> 292 | N149: S.US.GS | O149: S.US.BILL
A150: S.US.GTLB | B150: 1 | C150: S.US.GTLB | D150: =RTD("cqg.rtd", ,"ContractData",C150, "LongDescription",, "T") -> GitLab, Inc. | H150: =RTD("cqg.rtd", ,"ContractData",C150, "LastTradeToday",, "T") -> 46.28 | I150: =RTD("cqg.rtd", ,"ContractData",C150, "NetLastTradeToday",, "T") -> 0.8 | J150: =IFERROR(RTD("cqg.rtd", ,"ContractData",C150, "PerCentNetLastTrade",, "T")/100,"") -> 0.01759014952 | K150: =RTD("cqg.rtd", ,"ContractData", C150, "T_CVol",, "T") -> 1017856 | L150: 150 | M150: =IFERROR(RANK($J150,$J$1:J$391)+COUNTIF($J$1:J150,J150)-1,"") -> 19 | N150: S.US.GTLB | O150: S.US.EQT
A151: S.US.GWRE | B151: 1 | C151: S.US.GWRE | D151: =RTD("cqg.rtd", ,"ContractData",C151, "LongDescription",, "T") -> Guidewire Software, Inc. | H151: =RTD("cqg.rtd", ,"ContractData",C151, "LastTradeToday",, "T") -> 211.82 | I151: =RTD("cqg.rtd", ,"ContractData",C151, "NetLastTradeToday",, "T") -> 1.43 | J151: =IFERROR(RTD("cqg.rtd", ,"ContractData",C151, "PerCentNetLastTrade",, "T")/100,"") -> 0.006796900993 | K151: =RTD("cqg.rtd", ,"ContractData", C151, "T_CVol",, "T") -> 319236 | L151: 151 | M151: =IFERROR(RANK($J151,$J$1:J$391)+COUNTIF($J$1:J151,J151)-1,"") -> 68 | N151: S.US.GWRE | O151: S.US.MDB
A152: S.US.GWW | B152: 0 | C152: S.US.GWW | D152: =RTD("cqg.rtd", ,"ContractData",C152, "LongDescription",, "T") -> Grainger (WW) Inc | H152: =RTD("cqg.rtd", ,"ContractData",C152, "LastTradeToday",, "T") -> 1042.37 | I152: =RTD("cqg.rtd", ,"ContractData",C152, "NetLastTradeToday",, "T") -> -23.11 | J152: =IFERROR(RTD("cqg.rtd", ,"ContractData",C152, "PerCentNetLastTrade",, "T")/100,"") -> -0.02168975485 | K152: =RTD("cqg.rtd", ,"ContractData", C152, "T_CVol",, "T") -> 114464 | L152: 152 | M152: =IFERROR(RANK($J152,$J$1:J$391)+COUNTIF($J$1:J152,J152)-1,"") -> 341 | N152: S.US.GWW | O152: S.US.PAYX
A153: S.US.H | B153: 0 | C153: S.US.H | D153: =RTD("cqg.rtd", ,"ContractData",C153, "LongDescription",, "T") -> Hyatt Hotels | H153: =RTD("cqg.rtd", ,"ContractData",C153, "LastTradeToday",, "T") -> 121.27 | I153: =RTD("cqg.rtd", ,"ContractData",C153, "NetLastTradeToday",, "T") -> -0.94 | J153: =IFERROR(RTD("cqg.rtd", ,"ContractData",C153, "PerCentNetLastTrade",, "T")/100,"") -> -0.007691678259 | K153: =RTD("cqg.rtd", ,"ContractData", C153, "T_CVol",, "T") -> 633856 | L153: 153 | M153: =IFERROR(RANK($J153,$J$1:J$391)+COUNTIF($J$1:J153,J153)-1,"") -> 260 | N153: S.US.H | O153: S.US.TXRH
A154: S.US.HAS | B154: 0 | C154: S.US.HAS | D154: =RTD("cqg.rtd", ,"ContractData",C154, "LongDescription",, "T") -> Hasbro Inc | H154: =RTD("cqg.rtd", ,"ContractData",C154, "LastTradeToday",, "T") -> 61.04 | I154: =RTD("cqg.rtd", ,"ContractData",C154, "NetLastTradeToday",, "T") -> -0.15 | J154: =IFERROR(RTD("cqg.rtd", ,"ContractData",C154, "PerCentNetLastTrade",, "T")/100,"") -> -0.002451380945 | K154: =RTD("cqg.rtd", ,"ContractData", C154, "T_CVol",, "T") -> 982603 | L154: 154 | M154: =IFERROR(RANK($J154,$J$1:J$391)+COUNTIF($J$1:J154,J154)-1,"") -> 174 | N154: S.US.HAS | O154: S.US.TEAM
A155: S.US.HCA | B155: 1 | C155: S.US.HCA | D155: =RTD("cqg.rtd", ,"ContractData",C155, "LongDescription",, "T") -> HCA Holdings Inc. | H155: =RTD("cqg.rtd", ,"ContractData",C155, "LastTradeToday",, "T") -> 357.16 | I155: =RTD("cqg.rtd", ,"ContractData",C155, "NetLastTradeToday",, "T") -> 7.78 | J155: =IFERROR(RTD("cqg.rtd", ,"ContractData",C155, "PerCentNetLastTrade",, "T")/100,"") -> 0.02226801763 | K155: =RTD("cqg.rtd", ,"ContractData", C155, "T_CVol",, "T") -> 1019968 | L155: 155 | M155: =IFERROR(RANK($J155,$J$1:J$391)+COUNTIF($J$1:J155,J155)-1,"") -> 15 | N155: S.US.HCA | O155: S.US.LAMR
A156: S.US.HD | B156: 0 | C156: S.US.HD | D156: =RTD("cqg.rtd", ,"ContractData",C156, "LongDescription",, "T") -> Home Depot, Inc. | H156: =RTD("cqg.rtd", ,"ContractData",C156, "LastTradeToday",, "T") -> 359.87 | I156: =RTD("cqg.rtd", ,"ContractData",C156, "NetLastTradeToday",, "T") -> -1.86 | J156: =IFERROR(RTD("cqg.rtd", ,"ContractData",C156, "PerCentNetLastTrade",, "T")/100,"") -> -0.005141956708 | K156: =RTD("cqg.rtd", ,"ContractData", C156, "T_CVol",, "T") -> 1308531 | L156: 156 | M156: =IFERROR(RANK($J156,$J$1:J$391)+COUNTIF($J$1:J156,J156)-1,"") -> 231 | N156: S.US.HD | O156: S.US.SAM
A157: S.US.HEI | B157: 0 | C157: S.US.HEI | D157: =RTD("cqg.rtd", ,"ContractData",C157, "LongDescription",, "T") -> HEICO CORP | H157: =RTD("cqg.rtd", ,"ContractData",C157, "LastTradeToday",, "T") -> 263.72 | I157: =RTD("cqg.rtd", ,"ContractData",C157, "NetLastTradeToday",, "T") -> -0.75 | J157: =IFERROR(RTD("cqg.rtd", ,"ContractData",C157, "PerCentNetLastTrade",, "T")/100,"") -> -0.0028358604 | K157: =RTD("cqg.rtd", ,"ContractData", C157, "T_CVol",, "T") -> 203210 | L157: 157 | M157: =IFERROR(RANK($J157,$J$1:J$391)+COUNTIF($J$1:J157,J157)-1,"") -> 180 | N157: S.US.HEI | O157: S.US.TW
A158: S.US.HEIA | B158: 0 | C158: S.US.HEIA | D158: =RTD("cqg.rtd", ,"ContractData",C158, "LongDescription",, "T") -> HEICO Corp ClA | H158: =RTD("cqg.rtd", ,"ContractData",C158, "LastTradeToday",, "T") -> 209.74 | I158: =RTD("cqg.rtd", ,"ContractData",C158, "NetLastTradeToday",, "T") -> -1.69 | J158: =IFERROR(RTD("cqg.rtd", ,"ContractData",C158, "PerCentNetLastTrade",, "T")/100,"") -> -0.007993189235 | K158: =RTD("cqg.rtd", ,"ContractData", C158, "T_CVol",, "T") -> 74733 | L158: 158 | M158: =IFERROR(RANK($J158,$J$1:J$391)+COUNTIF($J$1:J158,J158)-1,"") -> 265 | N158: S.US.HEIA | O158: S.US.BURL
A159: S.US.HES | B159: 1 | C159: S.US.HES | D159: =RTD("cqg.rtd", ,"ContractData",C159, "LongDescription",, "T") -> Hess Corporation | H159: =RTD("cqg.rtd", ,"ContractData",C159, "LastTradeToday",, "T") -> 129.88 | I159: =RTD("cqg.rtd", ,"ContractData",C159, "NetLastTradeToday",, "T") -> 1.08 | J159: =IFERROR(RTD("cqg.rtd", ,"ContractData",C159, "PerCentNetLastTrade",, "T")/100,"") -> 0.008385093168 | K159: =RTD("cqg.rtd", ,"ContractData", C159, "T_CVol",, "T") -> 807470 | L159: 159 | M159: =IFERROR(RANK($J159,$J$1:J$391)+COUNTIF($J$1:J159,J159)-1,"") -> 57 | N159: S.US.HES | O159: S.US.ADP
A160: S.US.HLI | B160: 0 | C160: S.US.HLI | D160: =RTD("cqg.rtd", ,"ContractData",C160, "LongDescription",, "T") -> Houlihan Lokey, Inc. | H160: =RTD("cqg.rtd", ,"ContractData",C160, "LastTradeToday",, "T") -> 163.06 | I160: =RTD("cqg.rtd", ,"ContractData",C160, "NetLastTradeToday",, "T") -> -1.22 | J160: =IFERROR(RTD("cqg.rtd", ,"ContractData",C160, "PerCentNetLastTrade",, "T")/100,"") -> -0.007426345264 | K160: =RTD("cqg.rtd", ,"ContractData", C160, "T_CVol",, "T") -> 301164 | L160: 160 | M160: =IFERROR(RANK($J160,$J$1:J$391)+COUNTIF($J$1:J160,J160)-1,"") -> 255 | N160: S.US.HLI | O160: S.US.SPOT
A161: S.US.HLT | B161: 0 | C161: S.US.HLT | D161: =RTD("cqg.rtd", ,"ContractData",C161, "LongDescription",, "T") -> Hilton Inc. | H161: =RTD("cqg.rtd", ,"ContractData",C161, "LastTradeToday",, "T") -> 237.1 | I161: =RTD("cqg.rtd", ,"ContractData",C161, "NetLastTradeToday",, "T") -> -1.86 | J161: =IFERROR(RTD("cqg.rtd", ,"ContractData",C161, "PerCentNetLastTrade",, "T")/100,"") -> -0.007783729494 | K161: =RTD("cqg.rtd", ,"ContractData", C161, "T_CVol",, "T") -> 1143500 | L161: 161 | M161: =IFERROR(RANK($J161,$J$1:J$391)+COUNTIF($J$1:J161,J161)-1,"") -> 263 | N161: S.US.HLT | O161: S.US.NTAP
A162: S.US.HON | B162: 0 | C162: S.US.HON | D162: =RTD("cqg.rtd", ,"ContractData",C162, "LongDescription",, "T") -> Honeywell Intl | H162: =RTD("cqg.rtd", ,"ContractData",C162, "LastTradeToday",, "T") -> 210.49 | I162: =RTD("cqg.rtd", ,"ContractData",C162, "NetLastTradeToday",, "T") -> -3.76 | J162: =IFERROR(RTD("cqg.rtd", ,"ContractData",C162, "PerCentNetLastTrade",, "T")/100,"") -> -0.0175495916 | K162: =RTD("cqg.rtd", ,"ContractData", C162, "T_CVol",, "T") -> 3768969 | L162: 162 | M162: =IFERROR(RANK($J162,$J$1:J$391)+COUNTIF($J$1:J162,J162)-1,"") -> 330 | N162: S.US.HON | O162: S.US.GOOG
A163: S.US.HPQ | B163: 0 | C163: S.US.HPQ | D163: =RTD("cqg.rtd", ,"ContractData",C163, "LongDescription",, "T") -> Hewlett-Packard Company | H163: =RTD("cqg.rtd", ,"ContractData",C163, "LastTradeToday",, "T") -> 25.78 | I163: =RTD("cqg.rtd", ,"ContractData",C163, "NetLastTradeToday",, "T") -> -0.12 | J163: =IFERROR(RTD("cqg.rtd", ,"ContractData",C163, "PerCentNetLastTrade",, "T")/100,"") -> -0.004633204633 | K163: =RTD("cqg.rtd", ,"ContractData", C163, "T_CVol",, "T") -> 3212580 | L163: 163 | M163: =IFERROR(RANK($J163,$J$1:J$391)+COUNTIF($J$1:J163,J163)-1,"") -> 218 | N163: S.US.HPQ | O163: S.US.MSFT
A164: S.US.HRB | B164: 0 | C164: S.US.HRB | D164: =RTD("cqg.rtd", ,"ContractData",C164, "LongDescription",, "T") -> Block (H&R) Inc | H164: =RTD("cqg.rtd", ,"ContractData",C164, "LastTradeToday",, "T") -> 61.24 | I164: =RTD("cqg.rtd", ,"ContractData",C164, "NetLastTradeToday",, "T") -> -0.26 | J164: =IFERROR(RTD("cqg.rtd", ,"ContractData",C164, "PerCentNetLastTrade",, "T")/100,"") -> -0.004227642276 | K164: =RTD("cqg.rtd", ,"ContractData", C164, "T_CVol",, "T") -> 641292 | L164: 164 | M164: =IFERROR(RANK($J164,$J$1:J$391)+COUNTIF($J$1:J164,J164)-1,"") -> 208 | N164: S.US.HRB | O164: S.US.CAH
A165: S.US.HSY | B165: 1 | C165: S.US.HSY | D165: =RTD("cqg.rtd", ,"ContractData",C165, "LongDescription",, "T") -> Hershey Foods Corp | H165: =RTD("cqg.rtd", ,"ContractData",C165, "LastTradeToday",, "T") -> 169.25 | I165: =RTD("cqg.rtd", ,"ContractData",C165, "NetLastTradeToday",, "T") -> 2.59 | J165: =IFERROR(RTD("cqg.rtd", ,"ContractData",C165, "PerCentNetLastTrade",, "T")/100,"") -> 0.01554062162 | K165: =RTD("cqg.rtd", ,"ContractData", C165, "T_CVol",, "T") -> 793900 | L165: 165 | M165: =IFERROR(RANK($J165,$J$1:J$391)+COUNTIF($J$1:J165,J165)-1,"") -> 25 | N165: S.US.HSY | O165: S.US.GOOGL
A166: S.US.HUBS | B166: 0 | C166: S.US.HUBS | D166: =RTD("cqg.rtd", ,"ContractData",C166, "LongDescription",, "T") -> Hubspot Inc | H166: =RTD("cqg.rtd", ,"ContractData",C166, "LastTradeToday",, "T") -> 636.86 | I166: =RTD("cqg.rtd", ,"ContractData",C166, "NetLastTradeToday",, "T") -> -2.54 | J166: =IFERROR(RTD("cqg.rtd", ,"ContractData",C166, "PerCentNetLastTrade",, "T")/100,"") -> -0.003972474195 | K166: =RTD("cqg.rtd", ,"ContractData", C166, "T_CVol",, "T") -> 288251 | L166: 166 | M166: =IFERROR(RANK($J166,$J$1:J$391)+COUNTIF($J$1:J166,J166)-1,"") -> 201 | N166: S.US.HUBS | O166: S.US.ORLY
A167: S.US.HWM | B167: 1 | C167: S.US.HWM | D167: =RTD("cqg.rtd", ,"ContractData",C167, "LongDescription",, "T") -> Howmet Aerospace Inc. | H167: =RTD("cqg.rtd", ,"ContractData",C167, "LastTradeToday",, "T") -> 156.41 | I167: =RTD("cqg.rtd", ,"ContractData",C167, "NetLastTradeToday",, "T") -> 2.07 | J167: =IFERROR(RTD("cqg.rtd", ,"ContractData",C167, "PerCentNetLastTrade",, "T")/100,"") -> 0.01341194765 | K167: =RTD("cqg.rtd", ,"ContractData", C167, "T_CVol",, "T") -> 1556189 | L167: 167 | M167: =IFERROR(RANK($J167,$J$1:J$391)+COUNTIF($J$1:J167,J167)-1,"") -> 32 | N167: =C167 -> S.US.HWM | O167: S.US.ROL
A168: S.US.IDXX | B168: 0 | C168: S.US.IDXX | D168: =RTD("cqg.rtd", ,"ContractData",C168, "LongDescription",, "T") -> IDEXX Laboratories Inc | H168: =RTD("cqg.rtd", ,"ContractData",C168, "LastTradeToday",, "T") -> 473.04 | I168: =RTD("cqg.rtd", ,"ContractData",C168, "NetLastTradeToday",, "T") -> -2.03 | J168: =IFERROR(RTD("cqg.rtd", ,"ContractData",C168, "PerCentNetLastTrade",, "T")/100,"") -> -0.004273054497 | K168: =RTD("cqg.rtd", ,"ContractData", C168, "T_CVol",, "T") -> 640893 | L168: 168 | M168: =IFERROR(RANK($J168,$J$1:J$391)+COUNTIF($J$1:J168,J168)-1,"") -> 210 | N168: S.US.IDXX | O168: S.US.ENPH
A169: S.US.INCY | B169: 0 | C169: S.US.INCY | D169: =RTD("cqg.rtd", ,"ContractData",C169, "LongDescription",, "T") -> Incyte Corporation | H169: =RTD("cqg.rtd", ,"ContractData",C169, "LastTradeToday",, "T") -> 59.78 | I169: =RTD("cqg.rtd", ,"ContractData",C169, "NetLastTradeToday",, "T") -> -2.33 | J169: =IFERROR(RTD("cqg.rtd", ,"ContractData",C169, "PerCentNetLastTrade",, "T")/100,"") -> -0.03751408791 | K169: =RTD("cqg.rtd", ,"ContractData", C169, "T_CVol",, "T") -> 1221308 | L169: 169 | M169: =IFERROR(RANK($J169,$J$1:J$391)+COUNTIF($J$1:J169,J169)-1,"") -> 366 | N169: S.US.INCY | O169: S.US.FICO
A170: S.US.INGM | B170: 0 | C170: S.US.INGM | D170: =RTD("cqg.rtd", ,"ContractData",C170, "LongDescription",, "T") -> Ingram Micro Holding Corp | H170: =RTD("cqg.rtd", ,"ContractData",C170, "LastTradeToday",, "T") -> 18.36 | I170: =RTD("cqg.rtd", ,"ContractData",C170, "NetLastTradeToday",, "T") -> -0.06 | J170: =IFERROR(RTD("cqg.rtd", ,"ContractData",C170, "PerCentNetLastTrade",, "T")/100,"") -> -0.00325732899 | K170: =RTD("cqg.rtd", ,"ContractData", C170, "T_CVol",, "T") -> 147300 | L170: 170 | M170: =IFERROR(RANK($J170,$J$1:J$391)+COUNTIF($J$1:J170,J170)-1,"") -> 191 | N170: S.US.INGM | O170: S.US.MORN
A171: S.US.INSP | B171: 1 | C171: S.US.INSP | D171: =RTD("cqg.rtd", ,"ContractData",C171, "LongDescription",, "T") -> Inspire Medical Systems, Inc. | H171: =RTD("cqg.rtd", ,"ContractData",C171, "LastTradeToday",, "T") -> 159.75 | I171: =RTD("cqg.rtd", ,"ContractData",C171, "NetLastTradeToday",, "T") -> 1.01 | J171: =IFERROR(RTD("cqg.rtd", ,"ContractData",C171, "PerCentNetLastTrade",, "T")/100,"") -> 0.006362605518 | K171: =RTD("cqg.rtd", ,"ContractData", C171, "T_CVol",, "T") -> 953597 | L171: 171 | M171: =IFERROR(RANK($J171,$J$1:J$391)+COUNTIF($J$1:J171,J171)-1,"") -> 73 | N171: S.US.INSP | O171: S.US.NCNO
A172: S.US.INTU | B172: 0 | C172: S.US.INTU | D172: =RTD("cqg.rtd", ,"ContractData",C172, "LongDescription",, "T") -> Intuit Corp | H172: =RTD("cqg.rtd", ,"ContractData",C172, "LastTradeToday",, "T") -> 628.94 | I172: =RTD("cqg.rtd", ,"ContractData",C172, "NetLastTradeToday",, "T") -> -3.24 | J172: =IFERROR(RTD("cqg.rtd", ,"ContractData",C172, "PerCentNetLastTrade",, "T")/100,"") -> -0.005125122592 | K172: =RTD("cqg.rtd", ,"ContractData", C172, "T_CVol",, "T") -> 505862 | L172: 172 | M172: =IFERROR(RANK($J172,$J$1:J$391)+COUNTIF($J$1:J172,J172)-1,"") -> 229 | N172: S.US.INTU | O172: S.US.ARES
A173: S.US.IONS | B173: 0 | C173: S.US.IONS | D173: =RTD("cqg.rtd", ,"ContractData",C173, "LongDescription",, "T") -> Ionis Pharmaceuticals, Inc. | H173: =RTD("cqg.rtd", ,"ContractData",C173, "LastTradeToday",, "T") -> 32 | I173: =RTD("cqg.rtd", ,"ContractData",C173, "NetLastTradeToday",, "T") -> -1.64 | J173: =IFERROR(RTD("cqg.rtd", ,"ContractData",C173, "PerCentNetLastTrade",, "T")/100,"") -> -0.04875148633 | K173: =RTD("cqg.rtd", ,"ContractData", C173, "T_CVol",, "T") -> 1147678 | L173: 173 | M173: =IFERROR(RANK($J173,$J$1:J$391)+COUNTIF($J$1:J173,J173)-1,"") -> 375 | N173: S.US.IONS | O173: S.US.ETSY
A174: S.US.IQV | B174: 0 | C174: S.US.IQV | D174: =RTD("cqg.rtd", ,"ContractData",C174, "LongDescription",, "T") -> IQVIA Holdings, Inc. | H174: =RTD("cqg.rtd", ,"ContractData",C174, "LastTradeToday",, "T") -> 145.88 | I174: =RTD("cqg.rtd", ,"ContractData",C174, "NetLastTradeToday",, "T") -> -6.42 | J174: =IFERROR(RTD("cqg.rtd", ,"ContractData",C174, "PerCentNetLastTrade",, "T")/100,"") -> -0.04215364412 | K174: =RTD("cqg.rtd", ,"ContractData", C174, "T_CVol",, "T") -> 2166184 | L174: 174 | M174: =IFERROR(RANK($J174,$J$1:J$391)+COUNTIF($J$1:J174,J174)-1,"") -> 369 | N174: S.US.IQV | O174: S.US.HAS
A175: S.US.IRDM | B175: 1 | C175: S.US.IRDM | D175: =RTD("cqg.rtd", ,"ContractData",C175, "LongDescription",, "T") -> Iridium Communications Inc | H175: =RTD("cqg.rtd", ,"ContractData",C175, "LastTradeToday",, "T") -> 26.28 | I175: =RTD("cqg.rtd", ,"ContractData",C175, "NetLastTradeToday",, "T") -> 0.51 | J175: =IFERROR(RTD("cqg.rtd", ,"ContractData",C175, "PerCentNetLastTrade",, "T")/100,"") -> 0.01979045402 | K175: =RTD("cqg.rtd", ,"ContractData", C175, "T_CVol",, "T") -> 771360 | L175: 175 | M175: =IFERROR(RANK($J175,$J$1:J$391)+COUNTIF($J$1:J175,J175)-1,"") -> 18 | N175: S.US.IRDM | O175: S.US.TRGP
A176: S.US.IRM | B176: 1 | C176: S.US.IRM | D176: =RTD("cqg.rtd", ,"ContractData",C176, "LongDescription",, "T") -> Iron Mountain Inc | H176: =RTD("cqg.rtd", ,"ContractData",C176, "LastTradeToday",, "T") -> 97.21 | I176: =RTD("cqg.rtd", ,"ContractData",C176, "NetLastTradeToday",, "T") -> 0.04 | J176: =IFERROR(RTD("cqg.rtd", ,"ContractData",C176, "PerCentNetLastTrade",, "T")/100,"") -> 0.0004116496861 | K176: =RTD("cqg.rtd", ,"ContractData", C176, "T_CVol",, "T") -> 825288 | L176: 176 | M176: =IFERROR(RANK($J176,$J$1:J$391)+COUNTIF($J$1:J176,J176)-1,"") -> 128 | N176: S.US.IRM | O176: S.US.AZEK
A177: S.US.ISRG | B177: 1 | C177: S.US.ISRG | D177: =RTD("cqg.rtd", ,"ContractData",C177, "LongDescription",, "T") -> Intuitive Surgical Inc | H177: =RTD("cqg.rtd", ,"ContractData",C177, "LastTradeToday",, "T") -> 532.37 | I177: =RTD("cqg.rtd", ,"ContractData",C177, "NetLastTradeToday",, "T") -> 0.55 | J177: =IFERROR(RTD("cqg.rtd", ,"ContractData",C177, "PerCentNetLastTrade",, "T")/100,"") -> 0.001034184499 | K177: =RTD("cqg.rtd", ,"ContractData", C177, "T_CVol",, "T") -> 723313 | L177: 177 | M177: =IFERROR(RANK($J177,$J$1:J$391)+COUNTIF($J$1:J177,J177)-1,"") -> 119 | N177: S.US.ISRG | O177: S.US.ELV
A178: S.US.IT | B178: 1 | C178: S.US.IT | D178: =RTD("cqg.rtd", ,"ContractData",C178, "LongDescription",, "T") -> Gartner Group | H178: =RTD("cqg.rtd", ,"ContractData",C178, "LastTradeToday",, "T") -> 432.72 | I178: =RTD("cqg.rtd", ,"ContractData",C178, "NetLastTradeToday",, "T") -> 5.74 | J178: =IFERROR(RTD("cqg.rtd", ,"ContractData",C178, "PerCentNetLastTrade",, "T")/100,"") -> 0.01344325261 | K178: =RTD("cqg.rtd", ,"ContractData", C178, "T_CVol",, "T") -> 682445 | L178: 178 | M178: =IFERROR(RANK($J178,$J$1:J$391)+COUNTIF($J$1:J178,J178)-1,"") -> 31 | N178: S.US.IT | O178: S.US.ROKU
A179: S.US.ITW | B179: 0 | C179: S.US.ITW | D179: =RTD("cqg.rtd", ,"ContractData",C179, "LongDescription",, "T") -> Illinois Tools Works Inc | H179: =RTD("cqg.rtd", ,"ContractData",C179, "LastTradeToday",, "T") -> 239.63 | I179: =RTD("cqg.rtd", ,"ContractData",C179, "NetLastTradeToday",, "T") -> -1.24 | J179: =IFERROR(RTD("cqg.rtd", ,"ContractData",C179, "PerCentNetLastTrade",, "T")/100,"") -> -0.005148005148 | K179: =RTD("cqg.rtd", ,"ContractData", C179, "T_CVol",, "T") -> 538079 | L179: 179 | M179: =IFERROR(RANK($J179,$J$1:J$391)+COUNTIF($J$1:J179,J179)-1,"") -> 232 | N179: S.US.ITW | O179: S.US.SNPS
A180: S.US.JBL | B180: 1 | C180: S.US.JBL | D180: =RTD("cqg.rtd", ,"ContractData",C180, "LongDescription",, "T") -> Jabil Inc. | H180: =RTD("cqg.rtd", ,"ContractData",C180, "LastTradeToday",, "T") -> 150.45 | I180: =RTD("cqg.rtd", ,"ContractData",C180, "NetLastTradeToday",, "T") -> 0.23 | J180: =IFERROR(RTD("cqg.rtd", ,"ContractData",C180, "PerCentNetLastTrade",, "T")/100,"") -> 0.001531087738 | K180: =RTD("cqg.rtd", ,"ContractData", C180, "T_CVol",, "T") -> 467188 | L180: 180 | M180: =IFERROR(RANK($J180,$J$1:J$391)+COUNTIF($J$1:J180,J180)-1,"") -> 110 | N180: S.US.JBL | O180: S.US.HEI
A181: S.US.JEF | B181: 0 | C181: S.US.JEF | D181: =RTD("cqg.rtd", ,"ContractData",C181, "LongDescription",, "T") -> Jefferies Financial Group Inc. | H181: =RTD("cqg.rtd", ,"ContractData",C181, "LastTradeToday",, "T") -> 48.46 | I181: =RTD("cqg.rtd", ,"ContractData",C181, "NetLastTradeToday",, "T") -> -0.29 | J181: =IFERROR(RTD("cqg.rtd", ,"ContractData",C181, "PerCentNetLastTrade",, "T")/100,"") -> -0.005948717949 | K181: =RTD("cqg.rtd", ,"ContractData", C181, "T_CVol",, "T") -> 594940 | L181: 181 | M181: =IFERROR(RANK($J181,$J$1:J$391)+COUNTIF($J$1:J181,J181)-1,"") -> 243 | N181: S.US.JEF | O181: S.US.ALAB
A182: S.US.JLL | B182: 0 | C182: S.US.JLL | D182: =RTD("cqg.rtd", ,"ContractData",C182, "LongDescription",, "T") -> Jones Lang LaSalle Inc | H182: =RTD("cqg.rtd", ,"ContractData",C182, "LastTradeToday",, "T") -> 230.26 | I182: =RTD("cqg.rtd", ,"ContractData",C182, "NetLastTradeToday",, "T") -> -2.58 | J182: =IFERROR(RTD("cqg.rtd", ,"ContractData",C182, "PerCentNetLastTrade",, "T")/100,"") -> -0.01108057035 | K182: =RTD("cqg.rtd", ,"ContractData", C182, "T_CVol",, "T") -> 289658 | L182: 182 | M182: =IFERROR(RANK($J182,$J$1:J$391)+COUNTIF($J$1:J182,J182)-1,"") -> 289 | N182: S.US.JLL | O182: S.US.TRU
A183: S.US.KBR | B183: 1 | C183: S.US.KBR | D183: =RTD("cqg.rtd", ,"ContractData",C183, "LongDescription",, "T") -> KBR, Inc | H183: =RTD("cqg.rtd", ,"ContractData",C183, "LastTradeToday",, "T") -> 54.33 | I183: =RTD("cqg.rtd", ,"ContractData",C183, "NetLastTradeToday",, "T") -> 2.76 | J183: =IFERROR(RTD("cqg.rtd", ,"ContractData",C183, "PerCentNetLastTrade",, "T")/100,"") -> 0.05351948807 | K183: =RTD("cqg.rtd", ,"ContractData", C183, "T_CVol",, "T") -> 1633969 | L183: 183 | M183: =IFERROR(RANK($J183,$J$1:J$391)+COUNTIF($J$1:J183,J183)-1,"") -> 5 | N183: S.US.KBR | O183: S.US.LPLA
A184: S.US.KKR | B184: 0 | C184: S.US.KKR | D184: =RTD("cqg.rtd", ,"ContractData",C184, "LongDescription",, "T") -> KKR & Co. Inc. | H184: =RTD("cqg.rtd", ,"ContractData",C184, "LastTradeToday",, "T") -> 114.42 | I184: =RTD("cqg.rtd", ,"ContractData",C184, "NetLastTradeToday",, "T") -> -0.37 | J184: =IFERROR(RTD("cqg.rtd", ,"ContractData",C184, "PerCentNetLastTrade",, "T")/100,"") -> -0.003223277289 | K184: =RTD("cqg.rtd", ,"ContractData", C184, "T_CVol",, "T") -> 2408061 | L184: 184 | M184: =IFERROR(RANK($J184,$J$1:J$391)+COUNTIF($J$1:J184,J184)-1,"") -> 189 | N184: S.US.KKR | O184: S.US.EXPE
A185: S.US.KLAC | B185: 0 | C185: S.US.KLAC | D185: =RTD("cqg.rtd", ,"ContractData",C185, "LongDescription",, "T") -> KLA Corporation | H185: =RTD("cqg.rtd", ,"ContractData",C185, "LastTradeToday",, "T") -> 685.38 | I185: =RTD("cqg.rtd", ,"ContractData",C185, "NetLastTradeToday",, "T") -> -7.91 | J185: =IFERROR(RTD("cqg.rtd", ,"ContractData",C185, "PerCentNetLastTrade",, "T")/100,"") -> -0.01140936693 | K185: =RTD("cqg.rtd", ,"ContractData", C185, "T_CVol",, "T") -> 485034 | L185: 185 | M185: =IFERROR(RANK($J185,$J$1:J$391)+COUNTIF($J$1:J185,J185)-1,"") -> 293 | N185: S.US.KLAC | O185: S.US.SPG
A186: S.US.KMB | B186: 1 | C186: S.US.KMB | D186: =RTD("cqg.rtd", ,"ContractData",C186, "LongDescription",, "T") -> Kimberly-Clark Corp | H186: =RTD("cqg.rtd", ,"ContractData",C186, "LastTradeToday",, "T") -> 132.99 | I186: =RTD("cqg.rtd", ,"ContractData",C186, "NetLastTradeToday",, "T") -> 2.09 | J186: =IFERROR(RTD("cqg.rtd", ,"ContractData",C186, "PerCentNetLastTrade",, "T")/100,"") -> 0.01596638655 | K186: =RTD("cqg.rtd", ,"ContractData", C186, "T_CVol",, "T") -> 1661438 | L186: 186 | M186: =IFERROR(RANK($J186,$J$1:J$391)+COUNTIF($J$1:J186,J186)-1,"") -> 23 | N186: S.US.KMB | O186: S.US.CDW
A187: S.US.KMX | B187: 1 | C187: S.US.KMX | D187: =RTD("cqg.rtd", ,"ContractData",C187, "LongDescription",, "T") -> Carmax Inc | H187: =RTD("cqg.rtd", ,"ContractData",C187, "LastTradeToday",, "T") -> 66.56 | I187: =RTD("cqg.rtd", ,"ContractData",C187, "NetLastTradeToday",, "T") -> 0.27 | J187: =IFERROR(RTD("cqg.rtd", ,"ContractData",C187, "PerCentNetLastTrade",, "T")/100,"") -> 0.004073012521 | K187: =RTD("cqg.rtd", ,"ContractData", C187, "T_CVol",, "T") -> 1364642 | L187: 187 | M187: =IFERROR(RANK($J187,$J$1:J$391)+COUNTIF($J$1:J187,J187)-1,"") -> 87 | N187: S.US.KMX | O187: S.US.TRIP
A188: S.US.KNSL | B188: 1 | C188: S.US.KNSL | D188: =RTD("cqg.rtd", ,"ContractData",C188, "LongDescription",, "T") -> Kinsale Capital Group, Inc. | H188: =RTD("cqg.rtd", ,"ContractData",C188, "LastTradeToday",, "T") -> 458.8 | I188: =RTD("cqg.rtd", ,"ContractData",C188, "NetLastTradeToday",, "T") -> 2.78 | J188: =IFERROR(RTD("cqg.rtd", ,"ContractData",C188, "PerCentNetLastTrade",, "T")/100,"") -> 0.00609622385 | K188: =RTD("cqg.rtd", ,"ContractData", C188, "T_CVol",, "T") -> 68439 | L188: 188 | M188: =IFERROR(RANK($J188,$J$1:J$391)+COUNTIF($J$1:J188,J188)-1,"") -> 74 | N188: S.US.KNSL | O188: S.US.DUOL
A189: S.US.KO | B189: 1 | C189: S.US.KO | D189: =RTD("cqg.rtd", ,"ContractData",C189, "LongDescription",, "T") -> Coca-Cola Company | H189: =RTD("cqg.rtd", ,"ContractData",C189, "LastTradeToday",, "T") -> 71.74 | I189: =RTD("cqg.rtd", ,"ContractData",C189, "NetLastTradeToday",, "T") -> 0.04 | J189: =IFERROR(RTD("cqg.rtd", ,"ContractData",C189, "PerCentNetLastTrade",, "T")/100,"") -> 0.0005578800558 | K189: =RTD("cqg.rtd", ,"ContractData", C189, "T_CVol",, "T") -> 7699777 | L189: 189 | M189: =IFERROR(RANK($J189,$J$1:J$391)+COUNTIF($J$1:J189,J189)-1,"") -> 125 | N189: S.US.KO | O189: S.US.KKR
A190: S.US.LAMR | B190: 0 | C190: S.US.LAMR | D190: =RTD("cqg.rtd", ,"ContractData",C190, "LongDescription",, "T") -> Lamar Advertising Co | H190: =RTD("cqg.rtd", ,"ContractData",C190, "LastTradeToday",, "T") -> 116.06 | I190: =RTD("cqg.rtd", ,"ContractData",C190, "NetLastTradeToday",, "T") -> -0.14 | J190: =IFERROR(RTD("cqg.rtd", ,"ContractData",C190, "PerCentNetLastTrade",, "T")/100,"") -> -0.001204819277 | K190: =RTD("cqg.rtd", ,"ContractData", C190, "T_CVol",, "T") -> 342630 | L190: 190 | M190: =IFERROR(RANK($J190,$J$1:J$391)+COUNTIF($J$1:J190,J190)-1,"") -> 155 | N190: S.US.LAMR | O190: S.US.COST
A191: S.US.LAZ | B191: 0 | C191: S.US.LAZ | D191: =RTD("cqg.rtd", ,"ContractData",C191, "LongDescription",, "T") -> Lazard Inc. | H191: =RTD("cqg.rtd", ,"ContractData",C191, "LastTradeToday",, "T") -> 40.03 | I191: =RTD("cqg.rtd", ,"ContractData",C191, "NetLastTradeToday",, "T") -> -0.46 | J191: =IFERROR(RTD("cqg.rtd", ,"ContractData",C191, "PerCentNetLastTrade",, "T")/100,"") -> -0.01136082983 | K191: =RTD("cqg.rtd", ,"ContractData", C191, "T_CVol",, "T") -> 859731 | L191: 191 | M191: =IFERROR(RANK($J191,$J$1:J$391)+COUNTIF($J$1:J191,J191)-1,"") -> 291 | N191: S.US.LAZ | O191: S.US.INGM
A192: S.US.LBRDA | B192: 1 | C192: S.US.LBRDA | D192: =RTD("cqg.rtd", ,"ContractData",C192, "LongDescription",, "T") -> Liberty Broadband Corporation Class A | H192: =RTD("cqg.rtd", ,"ContractData",C192, "LastTradeToday",, "T") -> 91.63 | I192: =RTD("cqg.rtd", ,"ContractData",C192, "NetLastTradeToday",, "T") -> 1.23 | J192: =IFERROR(RTD("cqg.rtd", ,"ContractData",C192, "PerCentNetLastTrade",, "T")/100,"") -> 0.01360619469 | K192: =RTD("cqg.rtd", ,"ContractData", C192, "T_CVol",, "T") -> 154800 | L192: 192 | M192: =IFERROR(RANK($J192,$J$1:J$391)+COUNTIF($J$1:J192,J192)-1,"") -> 29 | N192: S.US.LBRDA | O192: S.US.EME
A193: S.US.LBRDK | B193: 1 | C193: S.US.LBRDK | D193: =RTD("cqg.rtd", ,"ContractData",C193, "LongDescription",, "T") -> Liberty Broadband Corporation Class C | H193: =RTD("cqg.rtd", ,"ContractData",C193, "LastTradeToday",, "T") -> 92.92 | I193: =RTD("cqg.rtd", ,"ContractData",C193, "NetLastTradeToday",, "T") -> 1.14 | J193: =IFERROR(RTD("cqg.rtd", ,"ContractData",C193, "PerCentNetLastTrade",, "T")/100,"") -> 0.01242100676 | K193: =RTD("cqg.rtd", ,"ContractData", C193, "T_CVol",, "T") -> 520866 | L193: 193 | M193: =IFERROR(RANK($J193,$J$1:J$391)+COUNTIF($J$1:J193,J193)-1,"") -> 37 | N193: S.US.LBRDK | O193: =VLOOKUP($L193,$M$1:$N$391,2,FALSE) -> S.US.PPC
A194: S.US.LECO | B194: =IF(J194>0,1,0) -> 0 | C194: S.US.LECO | D194: =RTD("cqg.rtd", ,"ContractData",C194, "LongDescription",, "T") -> Lincoln Electric Hldgs Inc | H194: =RTD("cqg.rtd", ,"ContractData",C194, "LastTradeToday",, "T") -> 181 | I194: =RTD("cqg.rtd", ,"ContractData",C194, "NetLastTradeToday",, "T") -> -1.77 | J194: =IFERROR(RTD("cqg.rtd", ,"ContractData",C194, "PerCentNetLastTrade",, "T")/100,"") -> -0.009684302675 | K194: =RTD("cqg.rtd", ,"ContractData", C194, "T_CVol",, "T") -> 193511 | L194: 194 | M194: =IFERROR(RANK($J194,$J$1:J$391)+COUNTIF($J$1:J194,J194)-1,"") -> 280 | N194: S.US.LECO | O194: S.US.TJX
A195: S.US.LII | B195: 1 | C195: S.US.LII | D195: =RTD("cqg.rtd", ,"ContractData",C195, "LongDescription",, "T") -> Lennox Internatl | H195: =RTD("cqg.rtd", ,"ContractData",C195, "LastTradeToday",, "T") -> 567.38 | I195: =RTD("cqg.rtd", ,"ContractData",C195, "NetLastTradeToday",, "T") -> 4.46 | J195: =IFERROR(RTD("cqg.rtd", ,"ContractData",C195, "PerCentNetLastTrade",, "T")/100,"") -> 0.007922973069 | K195: =RTD("cqg.rtd", ,"ContractData", C195, "T_CVol",, "T") -> 265449 | L195: =L194+1 -> 195 | M195: =IFERROR(RANK($J195,$J$1:J$391)+COUNTIF($J$1:J195,J195)-1,"") -> 61 | N195: S.US.LII | O195: S.US.AMZN
A196: S.US.LLY | B196: 0 | C196: S.US.LLY | D196: =RTD("cqg.rtd", ,"ContractData",C196, "LongDescription",, "T") -> Lilly (Eli) & Company | H196: =RTD("cqg.rtd", ,"ContractData",C196, "LastTradeToday",, "T") -> 774.49 | I196: =RTD("cqg.rtd", ,"ContractData",C196, "NetLastTradeToday",, "T") -> -46.97 | J196: =IFERROR(RTD("cqg.rtd", ,"ContractData",C196, "PerCentNetLastTrade",, "T")/100,"") -> -0.05717868186 | K196: =RTD("cqg.rtd", ,"ContractData", C196, "T_CVol",, "T") -> 3726444 | L196: 196 | M196: =IFERROR(RANK($J196,$J$1:J$391)+COUNTIF($J$1:J196,J196)-1,"") -> 378 | N196: S.US.LLY | O196: S.US.APH
A197: S.US.LMT | B197: 0 | C197: S.US.LMT | D197: =RTD("cqg.rtd", ,"ContractData",C197, "LongDescription",, "T") -> Lockheed Martin Corp | H197: =RTD("cqg.rtd", ,"ContractData",C197, "LastTradeToday",, "T") -> 468.96 | I197: =RTD("cqg.rtd", ,"ContractData",C197, "NetLastTradeToday",, "T") -> -2.6 | J197: =IFERROR(RTD("cqg.rtd", ,"ContractData",C197, "PerCentNetLastTrade",, "T")/100,"") -> -0.005513614386 | K197: =RTD("cqg.rtd", ,"ContractData", C197, "T_CVol",, "T") -> 710139 | L197: 197 | M197: =IFERROR(RANK($J197,$J$1:J$391)+COUNTIF($J$1:J197,J197)-1,"") -> 238 | N197: S.US.LMT | O197: S.US.BA
A198: S.US.LNG | B198: 0 | C198: S.US.LNG | D198: =RTD("cqg.rtd", ,"ContractData",C198, "LongDescription",, "T") -> Cheniere Energy Inc | H198: =RTD("cqg.rtd", ,"ContractData",C198, "LastTradeToday",, "T") -> 235.51 | I198: =RTD("cqg.rtd", ,"ContractData",C198, "NetLastTradeToday",, "T") -> 0 | J198: =IFERROR(RTD("cqg.rtd", ,"ContractData",C198, "PerCentNetLastTrade",, "T")/100,"") -> 0 | K198: =RTD("cqg.rtd", ,"ContractData", C198, "T_CVol",, "T") -> 1017196 | L198: 198 | M198: =IFERROR(RANK($J198,$J$1:J$391)+COUNTIF($J$1:J198,J198)-1,"") -> 135 | N198: S.US.LNG | O198: S.US.DOCU
A199: S.US.LNW | B199: 1 | C199: S.US.LNW | D199: =RTD("cqg.rtd", ,"ContractData",C199, "LongDescription",, "T") -> Light & Wonder, Inc. | H199: =RTD("cqg.rtd", ,"ContractData",C199, "LastTradeToday",, "T") -> 93.85 | I199: =RTD("cqg.rtd", ,"ContractData",C199, "NetLastTradeToday",, "T") -> 0.45 | J199: =IFERROR(RTD("cqg.rtd", ,"ContractData",C199, "PerCentNetLastTrade",, "T")/100,"") -> 0.004817987152 | K199: =RTD("cqg.rtd", ,"ContractData", C199, "T_CVol",, "T") -> 414477 | L199: 199 | M199: =IFERROR(RANK($J199,$J$1:J$391)+COUNTIF($J$1:J199,J199)-1,"") -> 85 | N199: S.US.LNW | O199: S.US.PCTY
A200: S.US.LOAR | B200: 1 | C200: S.US.LOAR | D200: =RTD("cqg.rtd", ,"ContractData",C200, "LongDescription",, "T") -> Loar Holdings Inc. | H200: =RTD("cqg.rtd", ,"ContractData",C200, "LastTradeToday",, "T") -> 97.3 | I200: =RTD("cqg.rtd", ,"ContractData",C200, "NetLastTradeToday",, "T") -> 0.51 | J200: =IFERROR(RTD("cqg.rtd", ,"ContractData",C200, "PerCentNetLastTrade",, "T")/100,"") -> 0.005269139374 | K200: =RTD("cqg.rtd", ,"ContractData", C200, "T_CVol",, "T") -> 344239 | L200: 200 | M200: =IFERROR(RANK($J200,$J$1:J$391)+COUNTIF($J$1:J200,J200)-1,"") -> 79 | N200: S.US.LOAR | O200: S.US.SPR
... 192 more rows
